Workbook

Sheet Profile
B1: Ward Profiles | F1: Version date: 4 November 2019
B3: These profiles intend to give the most up to date social and economic information available for each of the wards within the Kent area.
B4: Information relating to the population, employment, deprivation, crime and housing development are included.
B5: Some 2011 Census indicators have not yet been released and so 2001 Census remains the most current information available.
B7: Information is also available within these profiles for urban/rural areas. This is achieved by aggregating data from wards within these areas.
B8: As of 7 May 2015 new ward boundaries came in to effect in the local authority districts of Canterbury, Folkestone & Hythe, Swale and Tonbridge & Malling. Some data sets are not yet available to the new wards so there will be some gaps in the profiles for these areas at ward level.
B10: County Electoral Division data is no longer available from this profile but 2011 Census data for these geographies can be found in the
B11: 2011 Census Summary Profiles
B13: To use these profiles:
B14: Select the topic area you are interested in from the selection below. If you hover over each topic title it will give you an idea of the
B15: information that can be found there.
B16: From each topic page you can select a district and then an individual ward within that district.
B17: Alternatively you can select urban/rural area. These areas use ward data that has been aggregated
B18: to create the individual urban/rural areas as defined by the Office for National Statistics.
B19: A glossary of terms can be found at the bottom of each topic page.
B20: To print a copy of the topic click the print topic button on each page.
B21: To select a different topic click the Select Different Topic button.
C23: Select topic here
C25: Population | E25: Housing & Households
C27: Diversity | E27: Young People, Education and Skills
C29: Health | E29: Older People
C31: Deprivation | E31: Economy
B41: Strategic Commissioning - Analytics
B42: Kent County Council
B43: www.kent.gov.uk/research

Sheet Population
B1: Population
B2: Includes information about the age of the population, marital status, household composition, ethnicity, religion, country of birth and a Mosaic profile of the selected area. | N2: =Profile!F1 -> Version date: 4 November 2019
B6: =Data!A12&" , "&Data!A13 -> Aylesford Green , Ashford | E6: As of 7 May 2015 new ward boundaries came in to effect in the local authority districts of Canterbury, Folkestone & Hythe, Swale and Tonbridge & Malling. Some data sets are not yet available to the new wards so there will be some gaps in the profiles for these areas at ward level.
I8: ="Population Pyramid, "&'Transposed data'!D7 -> Population Pyramid, 2018
I9: ='Transposed data'!C7 -> Source: 2018 Mid Year Estimates, The Office for National Statistics (ONS), © Crown Copyright
J10: Total Persons | L10: Males | N10: Females
J11: No. | K11: % of total population | L11: No. | M11: % of males | N11: No. | O11: % of females
I12: All Ages | J12: ='Transposed data'!E7 -> 4090 | L12: ='Transposed data'!E8 -> 1930 | N12: ='Transposed data'!E9 -> 2160
E13: =M13*-1 -> -0.08959088555 | I13: 0-4 | J13: ='Transposed data'!E10 -> 330 | K13: ='Transposed data'!E128 -> 0.08002936858 | L13: ='Transposed data'!E29 -> 170 | M13: ='Transposed data'!E147 -> 0.08959088555 | N13: ='Transposed data'!E48 -> 150 | O13: ='Transposed data'!E166 -> 0.07146171694
E14: -0.08493008804 | I14: 5-9 | J14: ='Transposed data'!E11 -> 310 | K14: ='Transposed data'!E129 -> 0.07611355849 | L14: ='Transposed data'!E30 -> 160 | M14: ='Transposed data'!E148 -> 0.08493008804 | N14: ='Transposed data'!E49 -> 150 | O14: ='Transposed data'!E167 -> 0.06821345708
E15: -0.0704298291 | I15: 10-14 | J15: ='Transposed data'!E12 -> 300 | K15: ='Transposed data'!E130 -> 0.07244248654 | L15: ='Transposed data'!E31 -> 140 | M15: ='Transposed data'!E149 -> 0.0704298291 | N15: ='Transposed data'!E50 -> 160 | O15: ='Transposed data'!E168 -> 0.07424593968
E16: -0.06576903159 | I16: 15-19 | J16: ='Transposed data'!E13 -> 270 | K16: ='Transposed data'!E131 -> 0.06583455702 | L16: ='Transposed data'!E32 -> 130 | M16: ='Transposed data'!E150 -> 0.06576903159 | N16: ='Transposed data'!E51 -> 140 | O16: ='Transposed data'!E169 -> 0.06589327146
E17: -0.05592957017 | I17: 20-24 | J17: ='Transposed data'!E14 -> 270 | K17: ='Transposed data'!E132 -> 0.0648556045 | L17: ='Transposed data'!E33 -> 110 | M17: ='Transposed data'!E151 -> 0.05592957017 | N17: ='Transposed data'!E52 -> 160 | O17: ='Transposed data'!E170 -> 0.07285382831
E18: -0.07198342828 | I18: 25-29 | J18: ='Transposed data'!E15 -> 280 | K18: ='Transposed data'!E133 -> 0.0680372002 | L18: ='Transposed data'!E34 -> 140 | M18: ='Transposed data'!E152 -> 0.07198342828 | N18: ='Transposed data'!E53 -> 140 | O18: ='Transposed data'!E171 -> 0.06450116009
E19: -0.08337648887 | I19: 30-34 | J19: ='Transposed data'!E16 -> 350 | K19: ='Transposed data'!E134 -> 0.0859030837 | L19: ='Transposed data'!E35 -> 160 | M19: ='Transposed data'!E153 -> 0.08337648887 | N19: ='Transposed data'!E54 -> 190 | O19: ='Transposed data'!E172 -> 0.08816705336
E20: -0.06214396686 | I20: 35-39 | J20: ='Transposed data'!E17 -> 280 | K20: ='Transposed data'!E135 -> 0.06730298581 | L20: ='Transposed data'!E36 -> 120 | M20: ='Transposed data'!E154 -> 0.06214396686 | N20: ='Transposed data'!E55 -> 160 | O20: ='Transposed data'!E173 -> 0.07192575406
E21: -0.0704298291 | I21: 40-44 | J21: ='Transposed data'!E18 -> 280 | K21: ='Transposed data'!E136 -> 0.06926089085 | L21: ='Transposed data'!E37 -> 140 | M21: ='Transposed data'!E155 -> 0.0704298291 | N21: ='Transposed data'!E56 -> 150 | O21: ='Transposed data'!E174 -> 0.06821345708
E22: -0.06887622993 | I22: 45-49 | J22: ='Transposed data'!E19 -> 280 | K22: ='Transposed data'!E137 -> 0.06950562898 | L22: ='Transposed data'!E38 -> 130 | M22: ='Transposed data'!E156 -> 0.06887622993 | N22: ='Transposed data'!E57 -> 150 | O22: ='Transposed data'!E175 -> 0.07006960557
E23: -0.06162610047 | I23: 50-54 | J23: ='Transposed data'!E20 -> 270 | K23: ='Transposed data'!E138 -> 0.06510034263 | L23: ='Transposed data'!E39 -> 120 | M23: ='Transposed data'!E157 -> 0.06162610047 | N23: ='Transposed data'!E58 -> 150 | O23: ='Transposed data'!E176 -> 0.06821345708
E24: -0.04764370792 | I24: 55-59 | J24: ='Transposed data'!E21 -> 180 | K24: ='Transposed data'!E139 -> 0.04478707783 | L24: ='Transposed data'!E40 -> 90 | M24: ='Transposed data'!E158 -> 0.04764370792 | N24: ='Transposed data'!E59 -> 90 | O24: ='Transposed data'!E177 -> 0.04222737819
E25: -0.03366131538 | I25: 60-64 | J25: ='Transposed data'!E22 -> 150 | K25: ='Transposed data'!E140 -> 0.03768967205 | L25: ='Transposed data'!E41 -> 70 | M25: ='Transposed data'!E159 -> 0.03366131538 | N25: ='Transposed data'!E60 -> 90 | O25: ='Transposed data'!E178 -> 0.04129930394
E26: -0.04194717763 | I26: 65-69 | J26: ='Transposed data'!E23 -> 180 | K26: ='Transposed data'!E141 -> 0.04405286344 | L26: ='Transposed data'!E42 -> 80 | M26: ='Transposed data'!E160 -> 0.04194717763 | N26: ='Transposed data'!E61 -> 100 | O26: ='Transposed data'!E179 -> 0.04593967517
E27: -0.04919730709 | I27: 70-74 | J27: ='Transposed data'!E24 -> 170 | K27: ='Transposed data'!E142 -> 0.04185022026 | L27: ='Transposed data'!E43 -> 100 | M27: ='Transposed data'!E161 -> 0.04919730709 | N27: ='Transposed data'!E62 -> 80 | O27: ='Transposed data'!E180 -> 0.03526682135
E28: -0.02019678923 | I28: 75-79 | J28: ='Transposed data'!E25 -> 80 | K28: ='Transposed data'!E143 -> 0.0186000979 | L28: ='Transposed data'!E44 -> 40 | M28: ='Transposed data'!E162 -> 0.02019678923 | N28: ='Transposed data'!E63 -> 40 | O28: ='Transposed data'!E181 -> 0.01716937355
E29: -0.01242879337 | I29: 80-84 | J29: ='Transposed data'!E26 -> 70 | K29: ='Transposed data'!E144 -> 0.0178658835 | L29: ='Transposed data'!E45 -> 20 | M29: ='Transposed data'!E163 -> 0.01242879337 | N29: ='Transposed data'!E64 -> 50 | O29: ='Transposed data'!E182 -> 0.02273781903
E30: -0.006214396686 | I30: 85-89 | J30: ='Transposed data'!E27 -> 30 | K30: ='Transposed data'!E145 -> 0.007342143906 | L30: ='Transposed data'!E46 -> 10 | M30: ='Transposed data'!E164 -> 0.006214396686 | N30: ='Transposed data'!E65 -> 20 | O30: ='Transposed data'!E183 -> 0.008352668213
I31: 90+ | J31: ='Transposed data'!E28 -> 10 | K31: ='Transposed data'!E146 -> 0.003426333823 | L31: ='Transposed data'!E47 -> 10 | M31: ='Transposed data'!E165 -> 0.003625064733 | N31: ='Transposed data'!E66 -> 10 | O31: ='Transposed data'!E184 -> 0.003248259861
I32: Note: Numbers have been rounded to the nearest 10
I33: Percentages have been calculated using unrounded data
B35: Population by broad age group
B36: ='Transposed data'!C67 -> Source: 2018 Mid Year Estimates, The Office for National Statistics (ONS), © Crown Copyright - 2018
B37: ='Transposed data'!D67 -> 2018 | C37: ='Transposed data'!$E$6 -> Aylesford Green | E37: ='Transposed data'!$F$6 -> Ashford | G37: KCC Area
C38: No. | D38: % of age group | E38: No. | F38: % of age group | G38: No. | H38: % of age group
B39: Total | C39: ='Transposed data'!E7 -> 4090 | D39: 1 | E39: ='Transposed data'!F7 -> 129300 | F39: =E39/E39 -> 1 | G39: ='Transposed data'!G7 -> 1568600 | H39: 1
B40: Males | C40: ='Transposed data'!E8 -> 1930 | D40: =C40/C39 -> 0.4718826406 | E40: ='Transposed data'!F8 -> 62800 | F40: =E40/E39 -> 0.4856921887 | G40: ='Transposed data'!G8 -> 770100 | H40: =G40/G39 -> 0.4909473416
B41: Females | C41: ='Transposed data'!E9 -> 2160 | D41: =C41/C39 -> 0.5281173594 | E41: ='Transposed data'!F9 -> 66400 | F41: =E41/E39 -> 0.5135344161 | G41: ='Transposed data'!G9 -> 798600 | H41: =G41/G39 -> 0.5091164095 | K41: =C37 -> Aylesford Green | L41: =E37 -> Ashford | M41: =G37 -> KCC Area
B42: 0-15 | C42: ='Transposed data'!E122 -> 400 | D42: 1 | E42: ='Transposed data'!F122 -> 26800 | F42: 1 | G42: ='Transposed data'!G122 -> 304500 | H42: 1 | J42: 0-15 | K42: =C42 -> 400 | L42: =E42 -> 26800 | M42: =G42 -> 304500
B43: Males | C43: ='Transposed data'!E123 -> 500 | D43: =C43/C42 -> 1.25 | E43: ='Transposed data'!F123 -> 13600 | F43: =E43/E42 -> 0.5074626866 | G43: ='Transposed data'!G123 -> 156500 | H43: =G43/G42 -> 0.5139573071 | J43: 16-64 | K43: =C45 -> 2550 | L43: =E45 -> 77600 | M43: =G45 -> 949600
B44: Females | C44: ='Transposed data'!E124 -> 490 | D44: =C44/C42 -> 1.225 | E44: ='Transposed data'!F124 -> 13100 | F44: =E44/E42 -> 0.4888059701 | G44: ='Transposed data'!G124 -> 148000 | H44: =G44/G42 -> 0.4860426929 | J44: 65+ | K44: =C48 -> 540 | L44: =E48 -> 25000 | M44: =G48 -> 314500
B45: 16-64 | C45: ='Transposed data'!E67 -> 2550 | D45: 1 | E45: ='Transposed data'!F67 -> 77600 | F45: 1 | G45: ='Transposed data'!G67 -> 949600 | H45: 1
B46: Males | C46: ='Transposed data'!E68 -> 1170 | D46: =C46/C45 -> 0.4588235294 | E46: ='Transposed data'!F68 -> 37800 | F46: =E46/E45 -> 0.4871134021 | G46: ='Transposed data'!G68 -> 470000 | H46: =G46/G45 -> 0.4949452401
B47: Females | C47: ='Transposed data'!E69 -> 1380 | D47: =C47/C45 -> 0.5411764706 | E47: ='Transposed data'!F69 -> 39700 | F47: =E47/E45 -> 0.5115979381 | G47: ='Transposed data'!G69 -> 479600 | H47: =G47/G45 -> 0.5050547599
B48: 65+ | C48: ='Transposed data'!E85 -> 540 | D48: 1 | E48: ='Transposed data'!F85 -> 25000 | F48: 1 | G48: ='Transposed data'!G85 -> 314500 | H48: 1
B49: Males | C49: ='Transposed data'!E86 -> 260 | D49: =C49/C48 -> 0.4814814815 | E49: ='Transposed data'!F86 -> 11400 | F49: =E49/E48 -> 0.456 | G49: ='Transposed data'!G86 -> 143500 | H49: =G49/G48 -> 0.4562798092
B50: Females | C50: ='Transposed data'!E87 -> 290 | D50: =C50/C48 -> 0.537037037 | E50: ='Transposed data'!F87 -> 13600 | F50: =E50/E48 -> 0.544 | G50: ='Transposed data'!G87 -> 171000 | H50: =G50/G48 -> 0.5437201908
B52: Note: Ward numbers have been rounded to the nearest 100. Percentages have been calculated using unrounded data
B53: District numbers are rounded to the nearest 100.
B60: ="Average Age "&'Transposed data'!D217 -> Average Age 2018
B61: ='Transposed data'!C217 -> Source: 2018 Mid Year Estimates, The Office for National Statistics (ONS), © Crown Copyright - 2018
C62: ='Transposed data'!$E$6 -> Aylesford Green | D62: ='Transposed data'!$F$6 -> Ashford | E62: KCC
B63: All Persons | C63: ='Transposed data'!E217 -> 35.35584924 | D63: ='Transposed data'!F217 -> 40.5640272 | E63: ='Transposed data'!G217 -> 41.10523115
B64: Males | C64: ='Transposed data'!E218 -> 34.78353185 | D64: ='Transposed data'!F218 -> 39.75880341 | E64: ='Transposed data'!G218 -> 40.13314798
B65: Females | C65: ='Transposed data'!E219 -> 35.86867749 | D65: ='Transposed data'!F219 -> 41.32572702 | E65: ='Transposed data'!G219 -> 42.04260115
B81: =Sheet1!L37 -> Mosaic Profile for Aylesford Green, Ashford, 2015
B83: Source: Experian Ltd 2014
C84: Percentage of population
C85: ='Transposed data'!$E$6 -> Aylesford Green | D85: ='Transposed data'!$F$6 -> Ashford | E85: KCC
B86: Group A | C86: ='Transposed data'!L179 -> 0 | D86: ='Transposed data'!M179 -> 0.2078755759 | E86: ='Transposed data'!N179 -> 0.08450604839
B87: Group B | C87: ='Transposed data'!L180 -> 0 | D87: ='Transposed data'!M180 -> 0.04456490222 | E87: ='Transposed data'!N180 -> 0.08925296418
B88: Group C | C88: ='Transposed data'!L181 -> 0 | D88: ='Transposed data'!M181 -> 0 | E88: ='Transposed data'!N181 -> 0.003665373432
B89: Group D | C89: ='Transposed data'!L182 -> 0.002816901408 | D89: ='Transposed data'!M182 -> 0.09368053094 | E89: ='Transposed data'!N182 -> 0.09829373503
B90: Group E | C90: ='Transposed data'!L183 -> 0 | D90: ='Transposed data'!M183 -> 0.05260317665 | E90: ='Transposed data'!N183 -> 0.0743547182
B91: Group F | C91: ='Transposed data'!L184 -> 0 | D91: ='Transposed data'!M184 -> 0.06987177422 | E91: ='Transposed data'!N184 -> 0.106527306
B92: Group G | C92: ='Transposed data'!L185 -> 0 | D92: ='Transposed data'!M185 -> 0.09122394407 | E92: ='Transposed data'!N185 -> 0.0726908576
B93: Group H | C93: ='Transposed data'!L186 -> 0.09577464789 | D93: ='Transposed data'!M186 -> 0.1596459293 | E93: ='Transposed data'!N186 -> 0.123767355
B94: Group I | C94: ='Transposed data'!L187 -> 0 | D94: ='Transposed data'!M187 -> 0.0005879699733 | E94: ='Transposed data'!N187 -> 0.01475316104
B95: Group J | C95: ='Transposed data'!L188 -> 0.06112676056 | D95: ='Transposed data'!M188 -> 0.02143271368 | E95: ='Transposed data'!N188 -> 0.06921475408
B96: Group K | C96: ='Transposed data'!L189 -> 0.04788732394 | D96: ='Transposed data'!M189 -> 0.03150069268 | E96: ='Transposed data'!N189 -> 0.03818108316
B97: Group L | C97: ='Transposed data'!L190 -> 0.2233802817 | D97: ='Transposed data'!M190 -> 0.07220754535 | E97: ='Transposed data'!N190 -> 0.05989238654
B98: Group M | C98: ='Transposed data'!L191 -> 0.258028169 | D98: ='Transposed data'!M191 -> 0.1003978865 | E98: ='Transposed data'!N191 -> 0.08750007419
B99: Group N | C99: ='Transposed data'!L192 -> 0.2783098592 | D99: ='Transposed data'!M192 -> 0.04455684784 | E99: ='Transposed data'!N192 -> 0.05216067763
B100: Group O | C100: ='Transposed data'!L193 -> 0.03267605634 | D100: ='Transposed data'!M193 -> 0.007595283353 | E100: ='Transposed data'!N193 -> 0.01353708536
B105: Mosaic Group Definitions
B106: Group A | C106: - Extremely affluent, well educated owner occupiers
B107: Group B | C107: - Well off families with older children, working in managerial and professional careers
B108: Group C | C108: - Retired people living comfortably in large bungalows and houses, often close to the sea
B109: Group D | C109: - Middle aged couples living in well maintained often semi detached houses that they own
B110: Group E | C110: - Cusp of retirement trades people with some health issues, mainly owning their homes
B111: Group F | C111: - Singles and divorcees approaching retirement, mostly living in privately rented flats and bungalows
B112: Group G | C112: - Younger professionals with children, some living in ethnically diverse neighbourhoods
B113: Group H | C113: - Young singles and couples in small privately rented flats and terraces on moderate incomes
B114: Group I | C114: - Transient young singles on benefits and students, renting terraces in areas of higher ethnic diversity
B115: Group J | C115: - Middle aged parents receiving benefits, living in neighbourhoods of social housing with higher levels of unemployment
B116: Group K | C116: - Singles and lone parents on low incomes, renting terraces in town centres
B117: Group L | C117: - Vulnerable singles and lone parents with young children, living in higher crime areas in neighbourhoods of social housing
B118: Group M | C118: - Elderly pensioners in poor health, living in social housing on very low incomes
B119: Group U | C119: ="- Unclassified" -> - Unclassified
B126: Length of reseidency
B127: Source: 2011 Census
C128: ='Transposed data'!$E$6 -> Aylesford Green | E128: ='Transposed data'!$F$6 -> Ashford | G128: KCC Area
C129: No. | D129: % | E129: No. | F129: % | G129: No. | H129: %
B130: Born in the UK | C130: ='Transposed data'!#REF! ->  | D130: =C130/#REF! ->  | E130: ='Transposed data'!#REF! ->  | F130: =E130/#REF! ->  | G130: ='Transposed data'!#REF! ->  | H130: =G130/#REF! -> 
B131: Less than 2 years | C131: ='Transposed data'!#REF! ->  | D131: =C131/#REF! ->  | E131: ='Transposed data'!#REF! ->  | F131: =E131/#REF! ->  | G131: ='Transposed data'!#REF! ->  | H131: =G131/#REF! -> 
B132: More than 2 years and less than 5 years | C132: ='Transposed data'!#REF! ->  | D132: =C132/#REF! ->  | E132: ='Transposed data'!#REF! ->  | F132: =E132/#REF! ->  | G132: ='Transposed data'!#REF! ->  | H132: =G132/#REF! -> 
B133: Mare than 5 years and less than 10 years | C133: ='Transposed data'!#REF! ->  | D133: =C133/#REF! ->  | E133: ='Transposed data'!#REF! ->  | F133: =E133/#REF! ->  | G133: ='Transposed data'!#REF! ->  | H133: =G133/#REF! -> 
B134: 10 years or more | C134: ='Transposed data'!#REF! ->  | D134: =C134/#REF! ->  | E134: ='Transposed data'!#REF! ->  | F134: =E134/#REF! ->  | G134: ='Transposed data'!#REF! ->  | H134: =G134/#REF! -> 
B139: Main language
B140: Source: 2011 Census
C141: ='Transposed data'!$E$6 -> Aylesford Green | E141: ='Transposed data'!$F$6 -> Ashford | G141: KCC Area
C142: No. | D142: % | E142: No. | F142: % | G142: No. | H142: %
B143: All people | C143: ='Transposed data'!#REF! ->  | E143: ='Transposed data'!#REF! ->  | G143: ='Transposed data'!#REF! -> 
B144: English (English or Welsh in Wales) | C144: ='Transposed data'!#REF! ->  | D144: =C144/#REF! ->  | E144: ='Transposed data'!#REF! ->  | F144: =E144/#REF! ->  | G144: ='Transposed data'!#REF! ->  | H144: =G144/#REF! -> 
B145: gaelic (Scots and irish) or Cornish | C145: ='Transposed data'!#REF! ->  | D145: =C145/#REF! ->  | E145: ='Transposed data'!#REF! ->  | F145: =E145/#REF! ->  | G145: ='Transposed data'!#REF! ->  | H145: =G145/#REF! -> 
B146: Other European Language (EU) | C146: ='Transposed data'!#REF! ->  | D146: =C146/#REF! ->  | E146: ='Transposed data'!#REF! ->  | F146: =E146/#REF! ->  | G146: ='Transposed data'!#REF! ->  | H146: =G146/#REF! -> 
B147: Other European Language (Non EU) | C147: ='Transposed data'!#REF! ->  | D147: =C147/#REF! ->  | E147: ='Transposed data'!#REF! ->  | F147: =E147/#REF! ->  | G147: ='Transposed data'!#REF! ->  | H147: =G147/#REF! -> 
B148: Urdu | C148: ='Transposed data'!#REF! ->  | D148: =C148/#REF! ->  | E148: ='Transposed data'!#REF! ->  | F148: =E148/#REF! ->  | G148: ='Transposed data'!#REF! ->  | H148: =G148/#REF! -> 
B149: Hindi | C149: ='Transposed data'!#REF! ->  | D149: =C149/#REF! ->  | E149: ='Transposed data'!#REF! ->  | F149: =E149/#REF! ->  | G149: ='Transposed data'!#REF! ->  | H149: =G149/#REF! -> 
B150: Panjabi | C150: ='Transposed data'!#REF! ->  | D150: =C150/#REF! ->  | E150: ='Transposed data'!#REF! ->  | F150: =E150/#REF! ->  | G150: ='Transposed data'!#REF! ->  | H150: =G150/#REF! -> 
B151: Chinese | C151: ='Transposed data'!#REF! ->  | D151: =C151/#REF! ->  | E151: ='Transposed data'!#REF! ->  | F151: =E151/#REF! ->  | G151: ='Transposed data'!#REF! ->  | H151: =G151/#REF! -> 
B152: Other Asian Language | C152: ='Transposed data'!#REF! ->  | D152: =C152/#REF! ->  | E152: ='Transposed data'!#REF! ->  | F152: =E152/#REF! ->  | G152: ='Transposed data'!#REF! ->  | H152: =G152/#REF! -> 
B153: Arabic | C153: ='Transposed data'!#REF! ->  | D153: =C153/#REF! ->  | E153: ='Transposed data'!#REF! ->  | F153: =E153/#REF! ->  | G153: ='Transposed data'!#REF! ->  | H153: =G153/#REF! -> 
B154: other African Language | C154: ='Transposed data'!#REF! ->  | D154: =C154/#REF! ->  | E154: ='Transposed data'!#REF! ->  | F154: =E154/#REF! ->  | G154: ='Transposed data'!#REF! ->  | H154: =G154/#REF! -> 
B155: other Languages | C155: ='Transposed data'!#REF! ->  | D155: =C155/#REF! ->  | E155: ='Transposed data'!#REF! ->  | F155: =E155/#REF! ->  | G155: ='Transposed data'!#REF! ->  | H155: =G155/#REF! -> 
B156: Unspecified | C156: ='Transposed data'!#REF! ->  | D156: =C156/#REF! ->  | E156: ='Transposed data'!#REF! ->  | F156: =E156/#REF! ->  | G156: ='Transposed data'!#REF! ->  | H156: =G156/#REF! -> 
B163: Household Language
B164: Source: 2011 Census
C165: ='Transposed data'!$E$6 -> Aylesford Green | E165: ='Transposed data'!$F$6 -> Ashford | G165: KCC Area
C166: No. | D166: % | E166: No. | F166: % | G166: No. | H166: %
B167: All Housholds | C167: ='Transposed data'!#REF! ->  | E167: ='Transposed data'!#REF! ->  | G167: ='Transposed data'!#REF! -> 
B168: All adults (16+) speak English as main language | C168: ='Transposed data'!#REF! ->  | E168: ='Transposed data'!#REF! ->  | G168: ='Transposed data'!#REF! -> 
B169: At least one (but not all) adult/s speak/s English as main language | C169: ='Transposed data'!#REF! ->  | E169: ='Transposed data'!#REF! ->  | G169: ='Transposed data'!#REF! -> 
B170: No adult speaks English as a main language but at least 1 child (u16) does | C170: ='Transposed data'!#REF! ->  | E170: ='Transposed data'!#REF! ->  | G170: ='Transposed data'!#REF! -> 
B171: No one speaks English as main language | C171: ='Transposed data'!#REF! ->  | E171: ='Transposed data'!#REF! ->  | G171: ='Transposed data'!#REF! -> 
B179: A | C179: - Country Living - Well off owners in rural locations enjoying the benefits of Country life
B181: B | C181: - Prestige Positions - Established families in large detached homes Living upmarket lifestyles
B183: C | C183: - City Prosperity - High status city dwellers living in central locations and persuing careers with high rewards
B185: D | C185: - Domestic Success - Thriving families who are busy bringing up children and following careers
B187: E | C187: - Suburban Stability - Mature suburban owners living in settled lives in mid-range housing
B189: F | C189: - Senior Security - Elderly people with assets who are enjoying a comfortable retirement
B191: G | C191: - Rural Reality - Householders living in inexpensive homes in village communities
B193: H | C193: - Aspiring Homemakers - Younger households settling down in housing priced within their means
B195: I | C195: - Urban Cohesion - Residents of settled urban communities with a strong sense of identity
B197: J | C197: - Rental Hubs - Educated young people privately renting in urban neighbourhoods
B199: K | C199: - Modest Traditions - Mature homeowners of value homes enjoying stable lifestyles
B201: L | C201: - Transient Renters - Single people privately renting low cost homes for the short term
B203: M | C203: - Family Basics - Families with limited resources who have to budget to make ends meet
B205: N | C205: - Vintage Value – Elderly people reliant on support to meet financial or practical needs
B207: O | C207: - Municipal Challenge – Urban renters of social housing facing an array of challenges
B208: Glossary
B210: Population Pyramids
B211: The population pyramids uses the latest ward level population figures from the annual Mid-Year Population estimates
B214: Population by age and gender
B215: All ward numbers are separately rounded to the nearest 10. District figures are rounded to the nearest 100. Percentages are calculated using unrounded data
B216: =I9 -> Source: 2018 Mid Year Estimates, The Office for National Statistics (ONS), © Crown Copyright
B219: Mosaic Profile
B220: Mosaic is a classification system designed by Experian to profile the characteristics of the UK population.
B221: Each household in the UK is classified as belonging to one of 15 groups and 66 types.
B222: These groups identify clusters of individuals and households that are as similar as possible to each other, and as different as possible to any other group.
B223: They describe the residents of a postcode in terms of their typical demographics, their behaviours, their lifestyle characteristics and their attitudes.
B224: This helps to ensure that the right services are provided to the areas that need them.
B225: Source: Experian Ltd

Sheet Diversity
B1: Diversity
B2: Includes information about marital status, ethnicity, religion and country of birth, arrival in the UK and language . | N2: =Profile!F1 -> Version date: 4 November 2019
B6: =Data!A12&" , "&Data!A13 -> Aylesford Green , Ashford | E6: As of 7 May 2015 new ward boundaries came in to effect in the local authority districts of Canterbury, Folkestone & Hythe, Swale and Tonbridge & Malling. Some data sets are not yet available to the new wards so there will be some gaps in the profiles for these areas at ward level.
B9: Marital Status
B10: ='Transposed data'!Q7&" , Table: "&'Transposed data'!R8 -> Source: 2011 Census, The Office for National Statistics (ONS), © Crown Copyright , Table: QS108
B11: 2011 | C11: ='Transposed data'!$E$6 -> Aylesford Green | E11: ='Transposed data'!$F$6 -> Ashford | G11: KCC Area
C12: No. | D12: % of 16+ pop | E12: No. | F12: % of 16+ pop | G12: No. | H12: % of 16+ pop
B13: Population age 16+ | C13: ='Transposed data'!S8 -> 2224 | D13: =C13/C$13 -> 1 | E13: ='Transposed data'!T8 -> 92512 | F13: =E13/E$13 -> 1 | G13: ='Transposed data'!U8 -> 1154344 | H13: =G13/G$13 -> 1
B14: Living in a couple | C14: ='Transposed data'!S9 -> 1204 | D14: 0.5413669065 | E14: ='Transposed data'!T9 -> 59329 | F14: 0.6413113974 | G14: ='Transposed data'!U9 -> 705406 | H14: 0.6110882025
B15: Married | C15: ='Transposed data'!S10 -> 888 | D15: 0.3992805755 | E15: ='Transposed data'!T10 -> 46996 | F15: 0.5079989623 | G15: ='Transposed data'!U10 -> 558238 | H15: 0.4835976104
B16: Cohabiting (opposite sex) | C16: ='Transposed data'!S11 -> 308 | D16: 0.1384892086 | E16: ='Transposed data'!T11 -> 11649 | F16: 0.1259187997 | G16: ='Transposed data'!U11 -> 138424 | H16: 0.119915727
B17: In a registered same-sex civil partnership or cohabiting (same-sex) | C17: ='Transposed data'!S12 -> 8 | D17: 0.003597122302 | E17: ='Transposed data'!T12 -> 684 | F17: 0.00739363542 | G17: ='Transposed data'!U12 -> 8744 | H17: 0.007574865032
B18: Not living in a couple | C18: ='Transposed data'!S13 -> 1020 | D18: 0.4586330935 | E18: ='Transposed data'!T13 -> 33183 | F18: 0.3586886026 | G18: ='Transposed data'!U13 -> 448938 | H18: 0.3889117975
B19: Single (never married or never registered a same-sex civil partnership) | C19: ='Transposed data'!S14 -> 603 | D19: 0.2711330935 | E19: ='Transposed data'!T14 -> 18814 | F19: 0.2033682117 | G19: ='Transposed data'!U14 -> 259064 | H19: 0.2244253013
B20: Married or in a registered same-sex civil partnership | C20: ='Transposed data'!S15 -> 26 | D20: 0.01169064748 | E20: ='Transposed data'!T15 -> 977 | F20: 0.01056079211 | G20: ='Transposed data'!U15 -> 12576 | H20: 0.01089449939
B21: Separated (but still legally married or still legally in a same-sex civil partnership) | C21: ='Transposed data'!S16 -> 49 | D21: 0.0220323741 | E21: ='Transposed data'!T16 -> 1967 | F21: 0.02126210654 | G21: ='Transposed data'!U16 -> 24994 | H21: 0.0216521245
B22: Divorced or formerly in a same-sex civil partnership which is now legally dissolved | C22: ='Transposed data'!S17 -> 199 | D22: 0.08947841727 | E22: ='Transposed data'!T17 -> 5711 | F22: 0.061732532 | G22: ='Transposed data'!U17 -> 76549 | H22: 0.06631385445
B23: Widowed or surviving partner from a same-sex civil partnership | C23: ='Transposed data'!S18 -> 143 | D23: 0.06429856115 | E23: ='Transposed data'!T18 -> 5714 | F23: 0.06176496022 | G23: ='Transposed data'!U18 -> 75755 | H23: 0.06562601789
B28: Religion
B29: ='Transposed data'!Q19&" , Table: "&'Transposed data'!R19 -> Source: 2011 Census, The Office for National Statistics (ONS), © Crown Copyright , Table: QS208
B30: 2011 | C30: ='Transposed data'!$E$6 -> Aylesford Green | E30: ='Transposed data'!$F$6 -> Ashford | G30: KCC Area
C31: No. | D31: % of all people | E31: No. | F31: % of all people | G31: No. | H31: % of all people
B32: All People | C32: ='Transposed data'!S7 -> 2872 | D32: =C32/C$32 -> 1 | E32: ='Transposed data'!T7 -> 117956 | F32: =E32/E$32 -> 1 | G32: ='Transposed data'!U7 -> 1463740 | H32: =G32/G$32 -> 1
B33: Christian | C33: ='Transposed data'!S19 -> 1647 | D33: 0.5734679666 | E33: ='Transposed data'!T19 -> 74253 | F33: 0.6294974397 | G33: ='Transposed data'!U19 -> 915200 | H33: 0.6252476533
B34: Buddhist | C34: ='Transposed data'!S20 -> 30 | D34: 0.01044568245 | E34: ='Transposed data'!T20 -> 803 | F34: 0.006807623182 | G34: ='Transposed data'!U20 -> 6802 | H34: 0.00464700015
B35: Hindu | C35: ='Transposed data'!S21 -> 49 | D35: 0.01706128134 | E35: ='Transposed data'!T21 -> 1282 | F35: 0.01086845943 | G35: ='Transposed data'!U21 -> 10943 | H35: 0.007476054491
B36: Jewish | C36: ='Transposed data'!S22 -> 4 | D36: 0.00139275766 | E36: ='Transposed data'!T22 -> 116 | F36: 0.0009834175455 | G36: ='Transposed data'!U22 -> 1777 | H36: 0.001214013418
B37: Muslim | C37: ='Transposed data'!S23 -> 33 | D37: 0.0114902507 | E37: ='Transposed data'!T23 -> 1019 | F37: 0.008638814473 | G37: ='Transposed data'!U23 -> 13932 | H37: 0.009518083813
B38: Sikh | C38: ='Transposed data'!S24 -> 0 | D38: 0 | E38: ='Transposed data'!T24 -> 95 | F38: 0.0008053850588 | G38: ='Transposed data'!U24 -> 10545 | H38: 0.007204148278
B39: Other religion | C39: ='Transposed data'!S25 -> 3 | D39: 0.001044568245 | E39: ='Transposed data'!T25 -> 432 | F39: 0.003662382583 | G39: ='Transposed data'!U25 -> 6145 | H39: 0.004198149945
B40: No religion | C40: ='Transposed data'!S26 -> 911 | D40: 0.3172005571 | E40: ='Transposed data'!T26 -> 30984 | F40: 0.2626742175 | G40: ='Transposed data'!U26 -> 391591 | H40: 0.267527703
B41: Religion not stated | C41: ='Transposed data'!S27 -> 195 | D41: 0.06789693593 | E41: ='Transposed data'!T27 -> 8972 | F41: 0.0760622605 | G41: ='Transposed data'!U27 -> 106805 | H41: 0.07296719363
B44: Ethnicity
B45: ='Transposed data'!Q28&" , Table: "&'Transposed data'!R28 -> Source: 2011 Census, The Office for National Statistics (ONS), © Crown Copyright , Table: QS201
B46: 2011 | C46: ='Transposed data'!$E$6 -> Aylesford Green | E46: ='Transposed data'!$F$6 -> Ashford | G46: KCC Area
C47: No. | D47: % of all people | E47: No. | F47: % of all people | G47: No. | H47: % of all people
B48: White | C48: ='Transposed data'!S28 -> 2639 | D48: =C48/C$32 -> 0.9188718663 | E48: ='Transposed data'!T28 -> 110520 | F48: =E48/E$32 -> 0.9369595442 | G48: ='Transposed data'!U28 -> 1371102 | H48: =G48/G$32 -> 0.9367114378
B49: BME (not white) | C49: ='Transposed data'!S33 -> 233 | D49: 0.0811281337 | E49: ='Transposed data'!T33 -> 7436 | F49: 0.06304045576 | G49: ='Transposed data'!U33 -> 92638 | H49: 0.06328856218
B50: White | C50: ='Transposed data'!S28 -> 2639 | D50: 0.9188718663 | E50: ='Transposed data'!T28 -> 110520 | F50: 0.9369595442 | G50: ='Transposed data'!U28 -> 1371102 | H50: 0.9367114378
B51: English/Welsh/Scottish/Northern Irish/British | C51: ='Transposed data'!S29 -> 2541 | D51: 0.8847493036 | E51: ='Transposed data'!T29 -> 105498 | F51: 0.8943843467 | G51: ='Transposed data'!U29 -> 1303558 | H51: 0.8905666307
B52: Irish | C52: ='Transposed data'!S30 -> 19 | D52: 0.006615598886 | E52: ='Transposed data'!T30 -> 753 | F52: 0.006383736308 | G52: ='Transposed data'!U30 -> 10239 | H52: 0.006995094757
B53: Gypsy or Irish Traveller | C53: ='Transposed data'!S31 -> 10 | D53: 0.00348189415 | E53: ='Transposed data'!T31 -> 531 | F53: 0.004501678592 | G53: ='Transposed data'!U31 -> 4685 | H53: 0.003200705043
B54: Other White | C54: ='Transposed data'!S32 -> 69 | D54: 0.02402506964 | E54: ='Transposed data'!T32 -> 3738 | F54: 0.03168978263 | G54: ='Transposed data'!U32 -> 52620 | H54: 0.03594900734
B55: Mixed/multiple ethnic groups | C55: ='Transposed data'!S34 -> 44 | D55: 0.01532033426 | E55: ='Transposed data'!T34 -> 1682 | F55: 0.01425955441 | G55: ='Transposed data'!U34 -> 22107 | H55: 0.01510309208
B56: White and Black Caribbean | C56: ='Transposed data'!S35 -> 16 | D56: 0.005571030641 | E56: ='Transposed data'!T35 -> 544 | F56: 0.004611889179 | G56: ='Transposed data'!U35 -> 6266 | H56: 0.004280814899
B57: White and Black African | C57: ='Transposed data'!S36 -> 7 | D57: 0.002437325905 | E57: ='Transposed data'!T36 -> 235 | F57: 0.001992268303 | G57: ='Transposed data'!U36 -> 2997 | H57: 0.002047494774
B58: White and Asian | C58: ='Transposed data'!S37 -> 7 | D58: 0.002437325905 | E58: ='Transposed data'!T37 -> 507 | F58: 0.004298212893 | G58: ='Transposed data'!U37 -> 7520 | H58: 0.005137524424
B59: Other Mixed | C59: ='Transposed data'!S38 -> 14 | D59: 0.004874651811 | E59: ='Transposed data'!T38 -> 396 | F59: 0.003357184035 | G59: ='Transposed data'!U38 -> 5324 | H59: 0.003637257983
B60: Asian/Asian British | C60: ='Transposed data'!S39 -> 150 | D60: 0.05222841226 | E60: ='Transposed data'!T39 -> 3991 | F60: 0.03383465021 | G60: ='Transposed data'!U39 -> 47614 | H60: 0.03252900105
B61: Indian | C61: ='Transposed data'!S40 -> 54 | D61: 0.01880222841 | E61: ='Transposed data'!T40 -> 958 | F61: 0.008121672488 | G61: ='Transposed data'!U40 -> 18136 | H61: 0.01239017858
B62: Pakistani | C62: ='Transposed data'!S41 -> 2 | D62: 0.0006963788301 | E62: ='Transposed data'!T41 -> 161 | F62: 0.001364915731 | G62: ='Transposed data'!U41 -> 2406 | H62: 0.001643734543
B63: Bangladeshi | C63: ='Transposed data'!S42 -> 8 | D63: 0.00278551532 | E63: ='Transposed data'!T42 -> 185 | F63: 0.00156838143 | G63: ='Transposed data'!U42 -> 3381 | H63: 0.002309836446
B64: Chinese | C64: ='Transposed data'!S43 -> 2 | D64: 0.0006963788301 | E64: ='Transposed data'!T43 -> 431 | F64: 0.003653904846 | G64: ='Transposed data'!U43 -> 5978 | H64: 0.004084058644
B65: Other Asian | C65: ='Transposed data'!S44 -> 84 | D65: 0.02924791086 | E65: ='Transposed data'!T44 -> 2256 | F65: 0.01912577571 | G65: ='Transposed data'!U44 -> 17713 | H65: 0.01210119283
B66: Black/African/Caribbean/Black British | C66: ='Transposed data'!S45 -> 32 | D66: 0.01114206128 | E66: ='Transposed data'!T45 -> 1375 | F66: 0.01165688901 | G66: ='Transposed data'!U45 -> 16216 | H66: 0.01107847022
B67: African | C67: ='Transposed data'!S46 -> 22 | D67: 0.007660167131 | E67: ='Transposed data'!T46 -> 948 | F67: 0.008036895113 | G67: ='Transposed data'!U46 -> 11523 | H67: 0.007872299725
B68: Caribbean | C68: ='Transposed data'!S47 -> 8 | D68: 0.00278551532 | E68: ='Transposed data'!T47 -> 327 | F68: 0.00277222015 | G68: ='Transposed data'!U47 -> 3293 | H68: 0.00224971648
B69: Other Black | C69: ='Transposed data'!S48 -> 2 | D69: 0.0006963788301 | E69: ='Transposed data'!T48 -> 100 | F69: 0.0008477737461 | G69: ='Transposed data'!U48 -> 1400 | H69: 0.0009564540151
B70: Other ethnic group | C70: ='Transposed data'!S49 -> 7 | D70: 0.002437325905 | E70: ='Transposed data'!T49 -> 388 | F70: 0.003289362135 | G70: ='Transposed data'!U49 -> 6701 | H70: 0.004577998825
B71: Arab | C71: ='Transposed data'!S50 -> 0 | D71: 0 | E71: ='Transposed data'!T50 -> 87 | F71: 0.0007375631591 | G71: ='Transposed data'!U50 -> 1535 | H71: 0.001048683509
B72: Any other ethnic group | C72: ='Transposed data'!S51 -> 7 | D72: 0.002437325905 | E72: ='Transposed data'!T51 -> 301 | F72: 0.002551798976 | G72: ='Transposed data'!U51 -> 5166 | H72: 0.003529315316
B77: Country of Birth
B78: ='Transposed data'!Q52&", Table: "&'Transposed data'!R52 -> Source: 2011 Census, The Office for National Statistics (ONS), © Crown Copyright, Table: QS203
B79: 2011 | C79: ='Transposed data'!$E$6 -> Aylesford Green | E79: ='Transposed data'!$F$6 -> Ashford | G79: KCC Area
C80: No. | D80: % of all people | E80: No. | F80: % of all people | G80: No. | H80: % of all people | J80: United Kingdom Total
B81: United Kingdom Total | C81: ='Transposed data'!S52 -> 2617 | D81: =C81/C$32 -> 0.9112116992 | E81: ='Transposed data'!T52 -> 106993 | F81: =E81/E$32 -> 0.9070585642 | G81: ='Transposed data'!U52 -> 1329988 | H81: =G81/G$32 -> 0.9086231161 | J81: Guernsey
B82: England | C82: ='Transposed data'!S53 -> 2568 | D82: 0.8941504178 | E82: ='Transposed data'!T53 -> 104391 | F82: 0.8849994913 | G82: ='Transposed data'!U53 -> 1296325 | H82: 0.8856251793 | J82: Jersey
B83: Northern Ireland | C83: ='Transposed data'!S54 -> 8 | D83: 0.00278551532 | E83: ='Transposed data'!T54 -> 367 | F83: 0.003111329648 | G83: ='Transposed data'!U54 -> 5231 | H83: 0.003573722109 | J83: Channel Islands (other)
B84: Scotland | C84: ='Transposed data'!S55 -> 30 | D84: 0.01044568245 | E84: ='Transposed data'!T55 -> 1393 | F84: 0.01180948828 | G84: ='Transposed data'!U55 -> 17405 | H84: 0.01189077295 | J84: Isle of Man
B85: Wales | C85: ='Transposed data'!S56 -> 11 | D85: 0.003830083565 | E85: ='Transposed data'!T56 -> 839 | F85: 0.00711282173 | G85: ='Transposed data'!U56 -> 10930 | H85: 0.007467173132 | J85: Ireland
B86: GB Other | C86: ='Transposed data'!S57 -> 0 | D86: 0 | E86: ='Transposed data'!T57 -> 1 | F86: 8.477737461e-06 | G86: ='Transposed data'!U57 -> 28 | H86: 1.91290803e-05 | J86: Other EU - Members in March 2001
B87: UK Other | C87: ='Transposed data'!S58 -> 0 | D87: 0 | E87: ='Transposed data'!T58 -> 2 | F87: 1.695547492e-05 | G87: ='Transposed data'!U58 -> 69 | H87: 4.713951931e-05 | J87: Other EU - Accession Countries (April 2001 to March 2011)
B88: Guernsey | C88: ='Transposed data'!S59 -> 0 | D88: 0 | E88: ='Transposed data'!T59 -> 11 | F88: 9.325511208e-05 | G88: ='Transposed data'!U59 -> 194 | H88: 0.0001325371992 | J88: Rest of Europe
B89: Jersey | C89: ='Transposed data'!S60 -> 2 | D89: 0.0006963788301 | E89: ='Transposed data'!T60 -> 21 | F89: 0.0001780324867 | G89: ='Transposed data'!U60 -> 234 | H89: 0.0001598644568 | J89: Africa
B90: Channel Islands (other) | C90: ='Transposed data'!S61 -> 0 | D90: 0 | E90: ='Transposed data'!T61 -> 3 | F90: 2.543321238e-05 | G90: ='Transposed data'!U61 -> 54 | H90: 3.689179772e-05 | J90: Middle East & Asia
B91: Isle of Man | C91: ='Transposed data'!S62 -> 0 | D91: 0 | E91: ='Transposed data'!T62 -> 12 | F91: 0.0001017328495 | G91: ='Transposed data'!U62 -> 145 | H91: 9.90613087e-05 | J91: The Americas & Caribbean
B92: Ireland | C92: ='Transposed data'!S63 -> 14 | D92: 0.004874651811 | E92: ='Transposed data'!T63 -> 620 | F92: 0.005256197226 | G92: ='Transposed data'!U63 -> 8419 | H92: 0.005751704538 | J92: Antarctica & Oceania
B93: Other EU Total | C93: ='Transposed data'!S64 -> 66 | D93: 0.02298050139 | E93: ='Transposed data'!T64 -> 3348 | F93: 0.02838346502 | G93: ='Transposed data'!U64 -> 46650 | H93: 0.03187041414 | J93: Other
B94: Members in March 2001 | C94: ='Transposed data'!S65 -> 33 | D94: 0.0114902507 | E94: ='Transposed data'!T65 -> 1680 | F94: =E94/E$32 -> 0.01424259894 | G94: ='Transposed data'!U65 -> 20778 | H94: =G94/G$32 -> 0.01419514395
B95: Accession Countries (April 2001 to March 2011) | C95: ='Transposed data'!S66 -> 33 | D95: 0.0114902507 | E95: ='Transposed data'!T66 -> 1668 | F95: 0.01414086609 | G95: ='Transposed data'!U66 -> 25872 | H95: 0.0176752702
B96: Rest of Europe | C96: ='Transposed data'!S67 -> 12 | D96: 0.004178272981 | E96: ='Transposed data'!T67 -> 375 | F96: 0.003179151548 | G96: ='Transposed data'!U67 -> 5130 | H96: 0.003504720784
B97: Africa | C97: ='Transposed data'!S68 -> 29 | D97: 0.01009749304 | E97: ='Transposed data'!T68 -> 1680 | F97: 0.01424259894 | G97: ='Transposed data'!U68 -> 20737 | H97: 0.01416713351
B98: Middle East & Asia | C98: ='Transposed data'!S69 -> 118 | D98: 0.04108635097 | E98: ='Transposed data'!T69 -> 3848 | F98: 0.03262233375 | G98: ='Transposed data'!U69 -> 38226 | H98: 0.0261152937
B99: The Americas & Caribbean | C99: ='Transposed data'!S70 -> 13 | D99: 0.004526462396 | E99: ='Transposed data'!T70 -> 700 | F99: 0.005934416223 | G99: ='Transposed data'!U70 -> 9647 | H99: 0.006590651345
B100: Antarctica & Oceania | C100: ='Transposed data'!S71 -> 1 | D100: 0.000348189415 | E100: ='Transposed data'!T71 -> 345 | F100: 0.002924819424 | G100: ='Transposed data'!U71 -> 4315 | H100: 0.002947927911
B101: Other | C101: ='Transposed data'!S72 -> 0 | D101: 0 | E101: ='Transposed data'!T72 -> 0 | F101: 0 | G101: ='Transposed data'!U72 -> 1 | H101: 6.831814393e-07
B106: Year of Arrival in the UK
B107: ='Transposed data'!Q81&", Table: "&'Transposed data'!R74 -> Source: 2011 Census, The Office for National Statistics (ONS), © Crown Copyright, Table: QS801
B108: 2011 | C108: ='Transposed data'!$E$6 -> Aylesford Green | E108: ='Transposed data'!$F$6 -> Ashford | G108: KCC Area
C109: No. | D109: % of all people | E109: No. | F109: % of all people | G109: No. | H109: % of all people
B110: Born in the UK | C110: ='Transposed data'!S73 -> 2617 | D110: =C110/C$32 -> 0.9112116992 | E110: ='Transposed data'!T73 -> 106993 | F110: =E110/E$32 -> 0.9070585642 | G110: ='Transposed data'!U73 -> 1329988 | H110: =G110/G$32 -> 0.9086231161 | K110: Before 1941
B111: Not born in the UK | C111: =SUM(C112:C122) -> 255 | D111: =C111/C$32 -> 0.08878830084 | E111: =SUM(E112:E122) -> 10963 | F111: =E111/E$32 -> 0.09294143579 | G111: =SUM(G112:G122) -> 133752 | H111: =G111/G$32 -> 0.09137688387 | K111: 1941-1950
B112: Arrived before 1941 | C112: ='Transposed data'!S74 -> 0 | D112: =C112/C$32 -> 0 | E112: ='Transposed data'!T74 -> 146 | F112: =E112/E$32 -> 0.001237749669 | G112: ='Transposed data'!U74 -> 1669 | H112: =G112/G$32 -> 0.001140229822 | K112: 1951-1960
B113: Arrived 1941-1950 | C113: ='Transposed data'!S75 -> 5 | D113: 0.001740947075 | E113: ='Transposed data'!T75 -> 314 | F113: 0.002662009563 | G113: ='Transposed data'!U75 -> 3979 | H113: 0.002718378947 | K113: 1961-1970
B114: Arrived 1951-1960 | C114: ='Transposed data'!S76 -> 8 | D114: 0.00278551532 | E114: ='Transposed data'!T76 -> 565 | F114: 0.004789921666 | G114: ='Transposed data'!U76 -> 7718 | H114: 0.005272794349 | K114: 1971-1980
B115: Arrived 1961-1970 | C115: ='Transposed data'!S77 -> 13 | D115: 0.004526462396 | E115: ='Transposed data'!T77 -> 881 | F115: 0.007468886704 | G115: ='Transposed data'!U77 -> 12000 | H115: 0.008198177272 | K115: 1981-1990
B116: Arrived 1971-1980 | C116: ='Transposed data'!S78 -> 17 | D116: 0.005919220056 | E116: ='Transposed data'!T78 -> 767 | F116: 0.006502424633 | G116: ='Transposed data'!U78 -> 10618 | H116: 0.007254020523 | K116: 1991-2000
B117: Arrived 1981-1990 | C117: ='Transposed data'!S79 -> 16 | D117: 0.005571030641 | E117: ='Transposed data'!T79 -> 745 | F117: 0.006315914409 | G117: ='Transposed data'!U79 -> 10353 | H117: 0.007072977441 | K117: 2001-2003
B118: Arrived 1991-2000 | C118: ='Transposed data'!S80 -> 32 | D118: 0.01114206128 | E118: ='Transposed data'!T80 -> 1581 | F118: 0.01340330293 | G118: ='Transposed data'!U80 -> 20147 | H118: 0.01376405646 | K118: 2004-2006
B119: Arrived 2001-2003 | C119: ='Transposed data'!S81 -> 36 | D119: 0.01253481894 | E119: ='Transposed data'!T81 -> 1177 | F119: 0.009978296992 | G119: ='Transposed data'!U81 -> 12281 | H119: 0.008390151256 | K119: 2007-2009
B120: Arrived 2004-2006 | C120: ='Transposed data'!S82 -> 42 | D120: 0.01462395543 | E120: ='Transposed data'!T82 -> 1994 | F120: 0.0169046085 | G120: ='Transposed data'!U82 -> 20718 | H120: 0.01415415306 | K120: 2010-2011
B121: Arrived 2007-2009 | C121: ='Transposed data'!S83 -> 64 | D121: 0.02228412256 | E121: ='Transposed data'!T83 -> 1915 | F121: 0.01623486724 | G121: ='Transposed data'!U83 -> 23437 | H121: 0.01601172339
B122: Arrived 2010-2011 | C122: ='Transposed data'!S84 -> 22 | D122: 0.007660167131 | E122: ='Transposed data'!T84 -> 878 | F122: 0.007443453491 | G122: ='Transposed data'!U84 -> 10832 | H122: 0.007400221351
B127: Length of residence in the UK
B128: ='Transposed data'!Q101&", Table: "&'Transposed data'!R85 -> Source: 2011 Census, The Office for National Statistics (ONS), © Crown Copyright, Table: QS803
B129: 2011 | C129: ='Transposed data'!$E$6 -> Aylesford Green | E129: ='Transposed data'!$F$6 -> Ashford | G129: KCC Area
C130: No. | D130: % of all people | E130: No. | F130: % of all people | G130: No. | H130: % of all people
B131: Born in the UK | C131: ='Transposed data'!S73 -> 2617 | D131: =C131/C$32 -> 0.9112116992 | E131: ='Transposed data'!T73 -> 106993 | F131: =E131/E$32 -> 0.9070585642 | G131: ='Transposed data'!U73 -> 1329988 | H131: =G131/G$32 -> 0.9086231161
B132: Less than 2 years | C132: ='Transposed data'!S85 -> 32 | D132: =C132/C$32 -> 0.01114206128 | E132: ='Transposed data'!T85 -> 1374 | F132: =E132/E$32 -> 0.01164841127 | G132: ='Transposed data'!U85 -> 18228 | H132: =G132/G$32 -> 0.01245303128
B133: More than 2 years and less than 5 years | C133: ='Transposed data'!S86 -> 66 | D133: =C133/C$32 -> 0.02298050139 | E133: ='Transposed data'!T86 -> 2065 | F133: =E133/E$32 -> 0.01750652786 | G133: ='Transposed data'!U86 -> 22043 | H133: =G133/G$32 -> 0.01505936847
B134: Mare than 5 years and less than 10 years | C134: ='Transposed data'!S87 -> 64 | D134: =C134/C$32 -> 0.02228412256 | E134: ='Transposed data'!T87 -> 2426 | F134: =E134/E$32 -> 0.02056699108 | G134: ='Transposed data'!U87 -> 25990 | H134: =G134/G$32 -> 0.01775588561
B135: 10 years or more | C135: ='Transposed data'!S88 -> 93 | D135: =C135/C$32 -> 0.0323816156 | E135: ='Transposed data'!T88 -> 5098 | F135: =E135/E$32 -> 0.04321950558 | G135: ='Transposed data'!U88 -> 67491 | H135: =G135/G$32 -> 0.04610859852
B140: Main Language (residents aged 3 and over)
B141: ='Transposed data'!Q114&", Table: "&'Transposed data'!R89 -> Source: 2011 Census, The Office for National Statistics (ONS), © Crown Copyright, Table: QS204
B142: 2011 | C142: ='Transposed data'!$E$6 -> Aylesford Green | E142: ='Transposed data'!$F$6 -> Ashford | G142: KCC Area
C143: No. | D143: % of all people | E143: No. | F143: % of all people | G143: No. | H143: % of all people
B144: All usual residents aged 3 and over | C144: ='Transposed data'!S89 -> 2730 | E144: ='Transposed data'!T89 -> 113353 | G144: ='Transposed data'!U89 -> 1410434
B145: English (English or Welsh if in Wales) | C145: ='Transposed data'!S90 -> 2580 | D145: =C145/C$144 -> 0.9450549451 | E145: ='Transposed data'!T90 -> 107842 | F145: =E145/E$144 -> 0.9513819661 | G145: ='Transposed data'!U90 -> 1346814 | H145: =G145/G$144 -> 0.9548933165
B146: Welsh/Cymraeg (in England only) | C146: ='Transposed data'!S91 -> 0 | D146: =C146/C$144 -> 0 | E146: ='Transposed data'!T91 -> 12 | F146: =E146/E$144 -> 0.0001058639824 | G146: ='Transposed data'!U91 -> 113 | H146: =G146/G$144 -> 8.011718379e-05
B147: Other UK language | C147: ='Transposed data'!S92 -> 0 | D147: 0 | E147: ='Transposed data'!T92 -> 8 | F147: 7.057598828e-05 | G147: ='Transposed data'!U92 -> 112 | H147: 7.940818216e-05
B148: French | C148: ='Transposed data'!S93 -> 3 | D148: 0.001098901099 | E148: ='Transposed data'!T93 -> 326 | F148: 0.002875971523 | G148: ='Transposed data'!U93 -> 3093 | H148: 0.002192942031
B149: Portuguese | C149: ='Transposed data'!S94 -> 0 | D149: 0 | E149: ='Transposed data'!T94 -> 79 | F149: 0.0006969378843 | G149: ='Transposed data'!U94 -> 1190 | H149: 0.0008437119355
B150: Spanish | C150: ='Transposed data'!S95 -> 1 | D150: 0.0003663003663 | E150: ='Transposed data'!T95 -> 82 | F150: 0.0007234038799 | G150: ='Transposed data'!U95 -> 1470 | H150: 0.001042232391
B151: Other European Language (EU) | C151: ='Transposed data'!S96 -> 31 | D151: 0.01135531136 | E151: ='Transposed data'!T96 -> 1658 | F151: 0.01462687357 | G151: ='Transposed data'!U96 -> 25553 | H151: 0.01811711856
B152: Other European Language (non EU) | C152: ='Transposed data'!S97 -> 11 | D152: 0.004029304029 | E152: ='Transposed data'!T97 -> 86 | F152: 0.0007586918741 | G152: ='Transposed data'!U97 -> 995 | H152: 0.0007054566183
B153: Other European Language (non-national) | C153: ='Transposed data'!S98 -> 0 | D153: 0 | E153: ='Transposed data'!T98 -> 5 | F153: 4.410999268e-05 | G153: ='Transposed data'!U98 -> 46 | H153: 3.261407482e-05
B154: Russian | C154: ='Transposed data'!S99 -> 1 | D154: 0.0003663003663 | E154: ='Transposed data'!T99 -> 84 | F154: 0.000741047877 | G154: ='Transposed data'!U99 -> 1753 | H154: 0.001242879851
B155: Turkish | C155: ='Transposed data'!S100 -> 2 | D155: 0.0007326007326 | E155: ='Transposed data'!T100 -> 98 | F155: 0.0008645558565 | G155: ='Transposed data'!U100 -> 1506 | H155: 0.001067756449
B156: Arabic | C156: ='Transposed data'!S101 -> 0 | D156: 0 | E156: ='Transposed data'!T101 -> 68 | F156: 0.0005998959004 | G156: ='Transposed data'!U101 -> 950 | H156: 0.0006735515451
B157: West/Central Asian Language | C157: ='Transposed data'!S102 -> 5 | D157: 0.001831501832 | E157: ='Transposed data'!T102 -> 116 | F157: 0.00102335183 | G157: ='Transposed data'!U102 -> 1492 | H157: 0.001057830427
B158: South Asian Language | C158: ='Transposed data'!S103 -> 79 | D158: 0.02893772894 | E158: ='Transposed data'!T103 -> 2224 | F158: 0.01962012474 | G158: ='Transposed data'!U103 -> 16344 | H158: 0.01158792258
B159: East Asian Language | C159: ='Transposed data'!S104 -> 6 | D159: 0.002197802198 | E159: ='Transposed data'!T104 -> 407 | F159: 0.003590553404 | G159: ='Transposed data'!U104 -> 6150 | H159: 0.004360360003
B160: Oceanic/Australian language (any) | C160: ='Transposed data'!S105 -> 0 | D160: 0 | E160: ='Transposed data'!T105 -> 1 | F160: 8.821998536e-06 | G160: ='Transposed data'!U105 -> 31 | H160: 2.197905042e-05
B161: North/South American language (any) | C161: ='Transposed data'!S106 -> 0 | D161: 0 | E161: ='Transposed data'!T106 -> 1 | F161: 8.821998536e-06 | G161: ='Transposed data'!U106 -> 1 | H161: 7.090016264e-07
B162: Caribbean Creole | C162: ='Transposed data'!S107 -> 0 | D162: 0 | E162: ='Transposed data'!T107 -> 1 | F162: 8.821998536e-06 | G162: ='Transposed data'!U107 -> 3 | H162: 2.127004879e-06
B163: African Language | C163: ='Transposed data'!S108 -> 8 | D163: 0.00293040293 | E163: ='Transposed data'!T108 -> 201 | F163: 0.001773221706 | G163: ='Transposed data'!U108 -> 1903 | H163: 0.001349230095
B164: Other Languages | C164: ='Transposed data'!S109 -> 0 | D164: 0 | E164: ='Transposed data'!T109 -> 15 | F164: 0.000132329978 | G164: ='Transposed data'!U109 -> 320 | H164: 0.0002268805205
B165: Sign Language | C165: ='Transposed data'!S110 -> 3 | D165: 0.001098901099 | E165: ='Transposed data'!T110 -> 39 | F165: 0.0003440579429 | G165: ='Transposed data'!U110 -> 595 | H165: 0.0004218559677
B170: Proficiency in English (residents aged 3 and over)
B171: ='Transposed data'!Q112&", Table: "&'Transposed data'!R112 -> Source: 2011 Census, The Office for National Statistics (ONS), © Crown Copyright, Table: QS205
B172: 2011 | C172: ='Transposed data'!$E$6 -> Aylesford Green | E172: ='Transposed data'!$F$6 -> Ashford | G172: KCC Area
C173: No. | D173: % of all people | E173: No. | F173: % of all people | G173: No. | H173: % of all people
B174: All usual residents aged 3 and over | C174: ='Transposed data'!S111 -> 2730 | E174: ='Transposed data'!T111 -> 113353 | G174: ='Transposed data'!U111 -> 1410434
B175: Main language is English (English or Welsh in Wales) | C175: ='Transposed data'!S112 -> 2580 | D175: =C175/C$144 -> 0.9450549451 | E175: ='Transposed data'!T112 -> 107842 | F175: =E175/E$144 -> 0.9513819661 | G175: ='Transposed data'!U112 -> 1346814 | H175: =G175/G$144 -> 0.9548933165
B176: Main Language is not English | C176: =C174-C175 -> 150 | D176: 0.05494505495 | E176: =E174-E175 -> 5511 | F176: 0.04861803393 | G176: =G174-G175 -> 63620 | H176: 0.04510668347
B177: Can speak English very well | C177: ='Transposed data'!S113 -> 61 | D177: 0.02234432234 | E177: ='Transposed data'!T113 -> 2539 | F177: 0.02239905428 | G177: ='Transposed data'!U113 -> 27276 | H177: 0.01933872836
B178: Can speak English well | C178: ='Transposed data'!S114 -> 61 | D178: 0.02234432234 | E178: ='Transposed data'!T114 -> 2130 | F178: 0.01879085688 | G178: ='Transposed data'!U114 -> 24248 | H178: 0.01719187144
B179: Cannot speak English well | C179: ='Transposed data'!S115 -> 23 | D179: 0.008424908425 | E179: ='Transposed data'!T115 -> 704 | F179: 0.006210686969 | G179: ='Transposed data'!U115 -> 10185 | H179: 0.007221181565
B180: Cannot speak English | C180: ='Transposed data'!S116 -> 5 | D180: 0.001831501832 | E180: ='Transposed data'!T116 -> 138 | F180: 0.001217435798 | G180: ='Transposed data'!U116 -> 1911 | H180: 0.001354902108
B186: Glossary
B188: Population by ethnicity
B189: These figures show the profile of the population by ethnic group.
B190: BME (Black Minority Ethnic) is defined as all those people who are not white.
B191: Source: 2011 Census
B194: Country of birth
B195: These figures show the profile of the population by the country in which they were born.
B196: Accession countries are those countries which joined the EU between 2001 and 2011.
B197: Rest of Europe includes Turkey and all other countries in europe not previously mentioned

Sheet Health
B1: Health
B2: Includes information about the numbers of births & deaths, life expectancy, people with limiting long term illness, health related benefits claimants and people providing unpaid care. | N2: =Profile!F1 -> Version date: 4 November 2019
B6: =Data!$A$12&" , "&Data!$A$13 -> Aylesford Green , Ashford | E6: As of 7 May 2015 new ward boundaries came in to effect in the local authority districts of Canterbury, Folkestone & Hythe, Swale and Tonbridge & Malling. Some data sets are not yet available to the new wards so there will be some gaps in the profiles for these areas at ward level.
B9: =Sheet1!L20 -> Number of live births, 2013 | I9: =Sheet1!L21 -> Number of deaths, 2013
B10: Source: Office for National Statistics | I10: Source: Office for National Statistics
B11: ='Transposed data'!K174 -> 2013 | C11: ='Transposed data'!$E$6 -> Aylesford Green | E11: ='Transposed data'!$F$6 -> Ashford | G11: KCC Area | J11: ='Transposed data'!$E$6 -> Aylesford Green | L11: ='Transposed data'!$F$6 -> Ashford | N11: KCC Area
C12: No. | D12: % of district total | E12: No. | F12: % of county total | G12: No. | J12: No. | K12: % of district total | L12: No. | M12: % of county total | N12: No.
B13: Total | C13: ='Transposed data'!$L$173 -> 70 | D13: =IF(ISERROR(($C$13/$E$13)),"-",($C$13/$E$13)) -> 0.04820936639 | E13: ='Transposed data'!$M$173 -> 1452 | F13: =$E$13/$G$13 -> 0.08563845473 | G13: ='Transposed data'!$N$173 -> 16955 | I13: Total | J13: ='Transposed data'!$L$176 -> 25 | K13: =IF(ISERROR(($J$13/$L$13)),"-",($J$13/$L$13)) -> 0.02455795678 | L13: ='Transposed data'!$M$176 -> 1018 | M13: =$L$13/$N$13 -> 0.06954501981 | N13: ='Transposed data'!$N$176 -> 14638
B14: Male | C14: ='Transposed data'!$L$174 -> 37 | D14: =IF(ISERROR(($C$14/$E$14)),"-",($C$14/$E$14)) -> 0.04966442953 | E14: ='Transposed data'!$M$174 -> 745 | F14: =$E$14/$G$14 -> 0.08517205899 | G14: ='Transposed data'!$N$174 -> 8747 | I14: Male | J14: ='Transposed data'!$L$177 -> 14 | K14: =IF(ISERROR(($J$14/$L$14)),"-",($J$14/$L$14)) -> 0.02723735409 | L14: ='Transposed data'!$M$177 -> 514 | M14: =$L$14/$N$14 -> 0.06786374439 | N14: ='Transposed data'!$N$177 -> 7574
B15: Female | C15: ='Transposed data'!$L$175 -> 33 | D15: =IF(ISERROR(($C$15/$E$15)),"-",($C$15/$E$15)) -> 0.04667609618 | E15: ='Transposed data'!$M$175 -> 707 | F15: =$E$15/$G$15 -> 0.08613547758 | G15: ='Transposed data'!$N$175 -> 8208 | I15: Female | J15: ='Transposed data'!$L$178 -> 11 | K15: =IF(ISERROR(($J$15/$L$15)),"-",($J$15/$L$15)) -> 0.02182539683 | L15: ='Transposed data'!$M$178 -> 504 | M15: =$L$15/$N$15 -> 0.07134767837 | N15: ='Transposed data'!$N$178 -> 7064
B22: Life Expectancy at Birth (in years)
B23: Source: Office for National Statistics
C24: ='Transposed data'!$E$6 -> Aylesford Green | D24: ='Transposed data'!$F$6 -> Ashford | E24: KCC Area
B25: Male | C25: ='Transposed data'!$L$171 -> 74 | D25: ='Transposed data'!$M$171 -> 80.41067 | E25: ='Transposed data'!$N$171 -> 79.93405
B26: Female | C26: ='Transposed data'!$L$172 -> 82.2 | D26: ='Transposed data'!$M$172 -> 83.85165 | E26: ='Transposed data'!$N$172 -> 83.3807
B27: Note: Ward life expectancy figures are experimental figures and currently only available for 1999/2003
B28: District and county figures are for the time period 2014/16
B33: Health & Disability
B34: ='Transposed data'!Q53&" , Table: "&'Transposed data'!R117&" & "&'Transposed data'!R121 -> Source: 2011 Census, The Office for National Statistics (ONS), © Crown Copyright , Table: QS303 & QS302
B35: 2011 | C35: ='Transposed data'!$E$6 -> Aylesford Green | E35: ='Transposed data'!$F$6 -> Ashford | G35: KCC Area
C36: No. | D36: % | E36: No. | F36: % | G36: No. | H36: %
B37: ALL PEOPLE - Total | C37: ='Transposed data'!S7 -> 2872 | D37: =$C$37/$C$37 -> 1 | E37: ='Transposed data'!T117 -> 117956 | F37: =$E$37/$E$37 -> 1 | G37: ='Transposed data'!U117 -> 1463740 | H37: =$G$37/$G$37 -> 1
B38: Day-to-day activities limited a lot | C38: ='Transposed data'!S118 -> 322 | D38: =$C38/$C$37 -> 0.1121169916 | E38: ='Transposed data'!T118 -> 8416 | F38: =$E$38/$E$37 -> 0.07134863848 | G38: ='Transposed data'!U118 -> 116407 | H38: =$G$38/$G$37 -> 0.07952710181
B39: Day-to-day activities limited a little | C39: ='Transposed data'!S119 -> 302 | D39: =$C39/$C$37 -> 0.1051532033 | E39: ='Transposed data'!T119 -> 10669 | F39: =$E$39/$E$37 -> 0.09044898098 | G39: ='Transposed data'!U119 -> 140631 | H39: =$G$39/$G$37 -> 0.09607648899
B40: Day-to-day activities not limited | C40: ='Transposed data'!S120 -> 2248 | D40: =$C$40/$C$37 -> 0.782729805 | E40: ='Transposed data'!T120 -> 98871 | F40: =$E$40/$E$37 -> 0.8382023805 | G40: ='Transposed data'!U120 -> 1206702 | H40: =$G$40/$G$37 -> 0.8243964092
B41: General Health - all people | C41: ='Transposed data'!S7 -> 2872 | D41: =$C$41/$C$41 -> 1 | E41: ='Transposed data'!T121 -> 117956 | F41: =$E$41/$E$41 -> 1 | G41: ='Transposed data'!U121 -> 1463740 | H41: =$G$41/$G$41 -> 1
B42: Very good health | C42: ='Transposed data'!S122 -> 1117 | D42: =$C42/$C$41 -> 0.3889275766 | E42: ='Transposed data'!T122 -> 56128 | F42: =$E42/$E$41 -> 0.4758384482 | G42: ='Transposed data'!U122 -> 683205 | H42: =$G42/$G$41 -> 0.4667529753
B43: Good health | C43: ='Transposed data'!S123 -> 1051 | D43: =$C43/$C$41 -> 0.3659470752 | E43: ='Transposed data'!T123 -> 41385 | F43: =$E43/$E$41 -> 0.3508511648 | G43: ='Transposed data'!U123 -> 510399 | H43: =$G43/$G$41 -> 0.3486951235
B44: Fair health | C44: ='Transposed data'!S124 -> 481 | D44: =$C44/$C$41 -> 0.1674791086 | E44: ='Transposed data'!T124 -> 15027 | F44: =$E44/$E$41 -> 0.1273949608 | G44: ='Transposed data'!U124 -> 194931 | H44: =$G44/$G$41 -> 0.1331732411
B45: Bad health | C45: ='Transposed data'!S125 -> 171 | D45: =$C45/$C$41 -> 0.05954038997 | E45: ='Transposed data'!T125 -> 4163 | F45: =$E45/$E$41 -> 0.03529282105 | G45: ='Transposed data'!U125 -> 58536 | H45: =$G45/$G$41 -> 0.03999070873
B46: Very bad health | C46: ='Transposed data'!S126 -> 52 | D46: =$C46/$C$41 -> 0.01810584958 | E46: ='Transposed data'!T126 -> 1253 | F46: =$E46/$E$41 -> 0.01062260504 | G46: ='Transposed data'!U126 -> 16669 | H46: =$G46/$G$41 -> 0.01138795141
B53: ="Health Related Benefits Claimants - "&'Transposed data'!K13 -> Health Related Benefits Claimants - Nov 2018
B54: Source: DWP - Note: figures may not sum due to rounding
C55: ='Transposed data'!$E$6 -> Aylesford Green | E55: ='Transposed data'!$F$6 -> Ashford | G55: KCC Area
C56: No. | D56: % of eligible population | E56: No. | F56: % of eligible population | G56: No. | H56: % of eligible population
B57: Disability Benefits Claimants (AA+DLA) (total population) | C57: ='Transposed data'!$L$38 -> 237 | D57: ='Transposed data'!$L$72 -> 0.05847520355 | E57: ='Transposed data'!$M$38 -> 6444 | F57: ='Transposed data'!$M$72 -> 0.0505304759 | G57: ='Transposed data'!$N$38 -> 84476 | H57: ='Transposed data'!$N$72 -> 0.05433812159
B58: Males | C58: ='Transposed data'!$L$40 -> 122 | D58: ='Transposed data'!$L$74 -> 0.06414300736 | E58: ='Transposed data'!$M$40 -> 3043 | F58: ='Transposed data'!$M$74 -> 0.04907352159 | G58: ='Transposed data'!$N$40 -> 39515 | H58: ='Transposed data'!$N$74 -> 0.05177019614
B59: Females | C59: ='Transposed data'!$L$41 -> 120 | D59: ='Transposed data'!$L$75 -> 0.05578800558 | E59: ='Transposed data'!$M$41 -> 3396 | F59: ='Transposed data'!$M$75 -> 0.05183308404 | G59: ='Transposed data'!$N$41 -> 44928 | H59: ='Transposed data'!$N$75 -> 0.05677322176
B60: Attendance Allowance (population aged 65+) | C60: ='Transposed data'!$L$32 -> 48 | D60: ='Transposed data'!$L$66 -> 0.08759124088 | E60: ='Transposed data'!$M$32 -> 2904 | F60: ='Transposed data'!$M$66 -> 0.1181640625 | G60: ='Transposed data'!$N$32 -> 39256 | H60: ='Transposed data'!$N$66 -> 0.1266334835
B61: Males | C61: ='Transposed data'!$L$33 -> 18 | D61: ='Transposed data'!$L$67 -> 0.06741573034 | E61: ='Transposed data'!$M$33 -> 1080 | F61: ='Transposed data'!$M$67 -> 0.09659243359 | G61: ='Transposed data'!$N$33 -> 14116 | H61: ='Transposed data'!$N$67 -> 0.1000113359
B62: Females | C62: ='Transposed data'!$L$34 -> 31 | D62: ='Transposed data'!$L$68 -> 0.1103202847 | E62: ='Transposed data'!$M$34 -> 1824 | F62: ='Transposed data'!$M$68 -> 0.1361702128 | G62: ='Transposed data'!$N$34 -> 25143 | H62: ='Transposed data'!$N$68 -> 0.1489046686
B63: Disability Living Allowance (total population) | C63: ='Transposed data'!$L$17 -> 189 | D63: ='Transposed data'!$L$51 -> 0.04663212435 | E63: ='Transposed data'!$M$17 -> 3540 | F63: ='Transposed data'!$M$51 -> 0.02775882754 | G63: ='Transposed data'!$N$17 -> 45220 | H63: ='Transposed data'!$N$51 -> 0.02908719469
B64: Males | C64: ='Transposed data'!$L$18 -> 104 | D64: ='Transposed data'!$L$52 -> 0.05467928496 | E64: ='Transposed data'!$M$18 -> 1963 | F64: ='Transposed data'!$M$52 -> 0.031656695 | G64: ='Transposed data'!$N$18 -> 25411 | H64: ='Transposed data'!$N$52 -> 0.03329197657
B65: Females | C65: ='Transposed data'!$L$19 -> 89 | D65: ='Transposed data'!$L$53 -> 0.04137610414 | E65: ='Transposed data'!$M$19 -> 1572 | F65: ='Transposed data'!$M$53 -> 0.02399340639 | G65: ='Transposed data'!$N$19 -> 19785 | H65: ='Transposed data'!$N$53 -> 0.02500129524
B68: ="Personal Independence Payments (PIP) - "&'Transposed data'!K231 -> Personal Independence Payments (PIP) - April 2019
B69: Source: DWP - Note: all figures rounded at source
C70: ='Transposed data'!$E$6 -> Aylesford Green | E70: ='Transposed data'!$F$6 -> Ashford | G70: KCC Area
C71: No. | D71: % of 16+ population | E71: No. | F71: % of 16+ population | G71: No. | H71: % of 16+ population
B72: PIP claimants | C72: ='Transposed data'!L231 -> 181 | D72: ='Transposed data'!L233 -> 0.05930537353 | E72: ='Transposed data'!M231 -> 3213 | F72: ='Transposed data'!M233 -> 0.03174430667 | G72: ='Transposed data'!N231 -> 41376 | H72: ='Transposed data'!N233 -> 0.032976229
B77: People Providing Unpaid Care
B78: ='Transposed data'!Q79&" , Table: "&'Transposed data'!R139 -> Source: 2011 Census, The Office for National Statistics (ONS), © Crown Copyright , Table: QS301
B79: 2011 | C79: ='Transposed data'!$E$6 -> Aylesford Green | E79: ='Transposed data'!$F$6 -> Ashford | G79: KCC Area
C80: No. | D80: % of all people | E80: No. | F80: % of all people | G80: No. | H80: % of all people
B81: All People | C81: ='Transposed data'!S7 -> 2872 | E81: ='Transposed data'!T121 -> 117956 | G81: ='Transposed data'!U121 -> 1463740
B82: People providing unpaid care | C82: =SUM(C81-C83) -> 303 | D82: =C82/C81 -> 0.1055013928 | E82: =SUM(E81-E83) -> 11819 | F82: =E82/E81 -> 0.1001983791 | G82: =SUM(G81-G83) -> 151777 | H82: =G82/G81 -> 0.1036912293
B83: People providing no care | C83: ='Transposed data'!S139 -> 2569 | D83: =C83/C81 -> 0.8944986072 | E83: ='Transposed data'!T139 -> 106137 | F83: =E83/E81 -> 0.8998016209 | G83: ='Transposed data'!U139 -> 1311963 | H83: =G83/G81 -> 0.8963087707
B89: People Providing Unpaid Care - hours of care
B90: ='Transposed data'!Q91&" , Table: "&'Transposed data'!R139 -> Source: 2011 Census, The Office for National Statistics (ONS), © Crown Copyright , Table: QS301
B91: 2011 | C91: ='Transposed data'!$E$6 -> Aylesford Green | E91: ='Transposed data'!$F$6 -> Ashford | G91: KCC Area
C92: No. | D92: % | E92: No. | F92: % | G92: No. | H92: %
B93: People providing unpaid care | C93: =C82 -> 303 | E93: =E82 -> 11819 | G93: =G82 -> 151777
B94: People providing unpaid care: 1 to 19 hours a week | C94: ='Transposed data'!S140 -> 164 | D94: =$C$94/$C$82 -> 0.5412541254 | E94: ='Transposed data'!T140 -> 7686 | F94: =$E$94/$E$82 -> 0.6503088248 | G94: ='Transposed data'!U140 -> 97464 | H94: =$G$94/$G$82 -> 0.6421526318
B95: People providing unpaid care: 20 to 49 hours a week | C95: ='Transposed data'!S141 -> 50 | D95: =$C$95/$C$82 -> 0.1650165017 | E95: ='Transposed data'!T141 -> 1428 | F95: =$E$95/$E$82 -> 0.1208224046 | G95: ='Transposed data'!U141 -> 18432 | H95: =$G$95/$G$82 -> 0.1214413251
B96: People providing unpaid care : 50 or more hours a week | C96: ='Transposed data'!S142 -> 89 | D96: =$C$96/$C$82 -> 0.2937293729 | E96: ='Transposed data'!T142 -> 2705 | F96: =$E$96/$E$82 -> 0.2288687706 | G96: ='Transposed data'!U142 -> 35881 | H96: =$G$96/$G$82 -> 0.2364060431
B98: Note: Percentages are shown as a proportion of all people providing unpaid care.
B102: People Providing Unpaid Care - Age
B103: ='Transposed data'!Q143 -> Source: 2011 Census, The Office for National Statistics (ONS), © Crown Copyright
B104: ='Transposed data'!R143 -> 2011 Census | C104: ='Transposed data'!$E$6 -> Aylesford Green | E104: ='Transposed data'!$F$6 -> Ashford | G104: KCC Area
C105: No. | D105: % | E105: No. | F105: % | G105: No. | H105: %
B106: All People providing unpaid care | C106: ='Transposed data'!$S$143 -> 303 | D106: =$C$106/$C$106 -> 1 | E106: ='Transposed data'!$T$143 -> 11819 | F106: =$E$106/$E$106 -> 1 | G106: ='Transposed data'!$U$143 -> 151777 | H106: =$G$106/$G$106 -> 1
B107: 0-15 | C107: ='Transposed data'!$S$144 -> 11 | D107: =$C$107/$C$106 -> 0.03630363036 | E107: ='Transposed data'!$T$144 -> 262 | F107: =$E$107/$E$106 -> 0.02216769608 | G107: ='Transposed data'!$U$144 -> 3436 | H107: =$G$107/$G$106 -> 0.02263847619
B108: 16-34 | C108: ='Transposed data'!$S$145 -> 54 | D108: =$C$108/$C$106 -> 0.1782178218 | E108: ='Transposed data'!$T$145 -> 1363 | F108: =$E$108/$E$106 -> 0.1153227853 | G108: ='Transposed data'!$U$145 -> 18826 | H108: =$G$108/$G$106 -> 0.1240372388
B109: 35-49 | C109: ='Transposed data'!$S$146 -> 95 | D109: =$C$109/$C$106 -> 0.3135313531 | E109: ='Transposed data'!$T$146 -> 3150 | F109: =$E$109/$E$106 -> 0.2665200102 | G109: ='Transposed data'!$U$146 -> 38614 | H109: =$G$109/$G$106 -> 0.2544127239
B110: 50-64 | C110: ='Transposed data'!$S$147 -> 91 | D110: =$C$110/$C$106 -> 0.300330033 | E110: ='Transposed data'!$T$147 -> 4294 | F110: =$E$110/$E$106 -> 0.3633133091 | G110: ='Transposed data'!$U$147 -> 55706 | H110: =$G$110/$G$106 -> 0.3670253069
B111: 65+ | C111: ='Transposed data'!$S$148 -> 52 | D111: =$C$111/$C$106 -> 0.1716171617 | E111: ='Transposed data'!$T$148 -> 2750 | F111: =$E$111/$E$106 -> 0.2326761993 | G111: ='Transposed data'!$U$148 -> 35195 | H111: =$G$111/$G$106 -> 0.2318862542
B113: Note: Percentages are shown as a proportion of all people providing unpaid care.
B120: Glossary
B122: Births & Deaths
B123: The number of births and deaths that occur in England and Wales are collated and presented in a data series called “Vital Statistics” by the Office for National Statistics (ONS).
B124: Source: Office for National Statistics, Vital Statistic
B126: Life Expectancy
B127: Life expectancy is the estimated number of years a person would be expected to survive if he or she continued to experience the area’s mortality rate at that time throughout
B128: the rest of their life. The figures reflect mortality of those living in an area at that point in time rather than those born in the area.
B129: The maps show the life expectancy for males and females in the UK at District level. Areas in red are within the 20% of all districts with the lowest life expectancy
B130: Ward figures are available for 1999-2003
B131: District figures are for 2014-2016
B132: Source: Office for National Statistics, Vital Statistics
B134: Health & Care
B135: This data shows the number of people who consider themselves to have a limiting long term illness, health problem or disability which limits daily activities or work
B136: Source: 2001 Census, Office for National Statistics
B138: Disability Benefits Claimants
B139: This data gives a count of the number of people claiming the disability related benefits Disability Living Allowance (DLA) and Attendance Allowance (AA).
B140: Source: Department for Work & Pensions longitudinal Study
B142: Carers
B143: The 2011 Census gives us data looking at the number of people who provide unpaid care.
B144: Source: 2011 Census, Office for National Statistics

Sheet Deprivation
B1: Deprivation
B2: Includes information from the Index of Multiple Deprivation, benefits claimants, worklessness, unemployment, tax credit recipients, children in poverty and recorded crime. | M2: =Profile!F1 -> Version date: 4 November 2019
B6: =Data!A12&" , "&Data!A13 -> Aylesford Green , Ashford | E6: As of 7 May 2015 new ward boundaries came in to effect in the local authority districts of Canterbury, Folkestone & Hythe, Swale and Tonbridge & Malling. Some data sets are not yet available to the new wards so there will be some gaps in the profiles for these areas at ward level.
B39: Index of Multiple Deprivation 2019 | C39: We are unable to match Lower Super Output Areas to new ward boundaries in Canterbury, Shepway, Swale and Tonbridge & Malling.
B40: Source: Index of Multiple Deprivation 2019, Communities and Local Government (CLG)
B41: National Rank out of 32,844 LSOAs. A rank of 1 represents the most deprived
B42: ="Lower Super Output Areas in "&$B$6 -> Lower Super Output Areas in Aylesford Green , Ashford | C42: IMD 2019 Rank | D42: Income Rank | E42: Employment Rank | F42: Health Deprivation & Disability Rank | G42: Education, Skills & Training Rank | H42: Barriers to Housing & Services Rank | I42: Crime Rank | J42: Living Environment Rank | K42: Income Deprivation Affecting Children Index (IDACI) | L42: Income Deprivation Affecting Older People (IDAOPI)
A43: 1 | B43: Ashford 005A | C43: 5590 | D43: 5330 | E43: 5474 | F43: 12107 | G43: 4946 | H43: 4959 | I43: 2900 | J43: 28269 | K43: 7292 | L43: 4609
A44: 1 | B44: Ashford 006A | C44: 9263 | D44: 8318 | E44: 8811 | F44: 11868 | G44: 4173 | H44: 15399 | I44: 7751 | J44: 29977 | K44: 9848 | L44: 7707
B54: Within top 10% most deprived in England?
B55: ="Lower Super Output Areas in "&$B$6 -> Lower Super Output Areas in Aylesford Green , Ashford | C55: IMD 2019 Rank | D55: Income Rank | E55: Employment Rank | F55: Health Deprivation & Disability Rank | G55: Education, Skills & Training Rank | H55: Barriers to Housing & Services Rank | I55: Crime Rank | J55: Living Environment Rank | K55: Income Deprivation Affecting Children Index (IDACI) | L55: Income Deprivation Affecting Older People (IDAOPI)
A56: 1 | B56: Ashford 005A | C56: No | D56: No | E56: No | F56: No | G56: No | H56: No | I56: Yes | J56: No | K56: No | L56: No
A57: 1 | B57: Ashford 006A | C57: No | D57: No | E57: No | F57: No | G57: No | H57: No | I57: No | J57: No | K57: No | L57: No
B71: ="Benefits Claimants - "&'Transposed data'!K13 -> Benefits Claimants - Nov 2018
B72: Source: DWP
C73: ='Transposed data'!$E$6 -> Aylesford Green | E73: ='Transposed data'!$F$6 -> Ashford | G73: KCC Area
C74: No. | D74: % | E74: No. | F74: % | G74: No. | H74: %
B75: Income Support | C75: ='Transposed data'!L14 -> 182 | D75: ='Transposed data'!L49 -> 0.02749576988 | E75: ='Transposed data'!M14 -> 3060 | F75: ='Transposed data'!M49 -> 0.01402885937 | G75: ='Transposed data'!N14 -> 41360 | H75: ='Transposed data'!N49 -> 0.01399276574
B76: Jobseekers Allowance | C76: ='Transposed data'!L16 -> 45 | D76: ='Transposed data'!L50 -> 0.01797124601 | E76: ='Transposed data'!M16 -> 560 | F76: ='Transposed data'!M50 -> 0.007306984694 | G76: ='Transposed data'!N16 -> 6140 | H76: ='Transposed data'!N50 -> 0.006499245812
B77: Employment & Support Allowance | C77: ='Transposed data'!L15 -> 65 | D77: ='Transposed data'!L48 -> 0.07268370607 | E77: ='Transposed data'!M15 -> 980 | F77: ='Transposed data'!M48 -> 0.03992745208 | G77: ='Transposed data'!N15 -> 12000 | H77: ='Transposed data'!N48 -> 0.04377993596
B78: Attendance Allowance | C78: ='Transposed data'!L32 -> 48 | D78: ='Transposed data'!L66 -> 0.08759124088 | E78: ='Transposed data'!M32 -> 2904 | F78: ='Transposed data'!M66 -> 0.1181640625 | G78: ='Transposed data'!N32 -> 39256 | H78: ='Transposed data'!N66 -> 0.1266334835
B79: Disability Living Allowance | C79: ='Transposed data'!L17 -> 189 | D79: ='Transposed data'!L51 -> 0.04663212435 | E79: ='Transposed data'!M17 -> 3540 | F79: ='Transposed data'!M51 -> 0.02775882754 | G79: ='Transposed data'!N17 -> 45220 | H79: ='Transposed data'!N51 -> 0.02908719469
B80: Pension Credits | C80: ='Transposed data'!L25 -> 144 | D80: ='Transposed data'!L59 -> 0.2093023256 | E80: ='Transposed data'!M25 -> 2800 | F80: ='Transposed data'!M59 -> 0.0892885615 | G80: ='Transposed data'!N25 -> 35400 | H80: ='Transposed data'!N59 -> 0.08913822972
B81: State pension | C81: ='Transposed data'!L29 -> 470 | D81: ='Transposed data'!L63 -> 0.7413249211 | E81: ='Transposed data'!M29 -> 24270 | F81: ='Transposed data'!M63 -> 0.8653023388 | G81: ='Transposed data'!N29 -> 305220 | H81: ='Transposed data'!N63 -> 0.8611937982
B83: Note: Percentages are shown as a proportion of the age group who are eligible to claim each benefit
B88: ="Universal Credit Claimants - "&'Transposed data'!K228 -> Universal Credit Claimants - May 2019
B89: Source: DWP
C90: ='Transposed data'!$E$6 -> Aylesford Green | E90: ='Transposed data'!$F$6 -> Ashford | G90: KCC Area
C91: No. | D91: % | E91: No. | F91: % | G91: No. | H91: %
B92: Total Universal Credit Claimants | C92: ='Transposed data'!L228 -> 201 | D92: ='Transposed data'!L232 -> 0.0802715655 | E92: ='Transposed data'!M228 -> 3245 | F92: ='Transposed data'!M232 -> 0.04234136667 | G92: ='Transposed data'!N228 -> 42095 | H92: ='Transposed data'!N232 -> 0.04455794014
B93: Note: Percentages are shown as a proportion of the population aged 16-64
B94: All data is rounded at source
C96: ='Transposed data'!$E$6 -> Aylesford Green | E96: ='Transposed data'!$F$6 -> Ashford | G96: KCC Area
C97: No. | D97: % of total UC claimants | E97: No. | F97: % of total UC claimants | G97: No. | H97: % of total UC claimants
B98: Universal Credit claimants in employment | C98: ='Transposed data'!L230 -> 69 | D98: =C98/C92 -> 0.3432835821 | E98: ='Transposed data'!M230 -> 1030 | F98: =E98/E92 -> 0.3174114022 | G98: ='Transposed data'!N230 -> 13233 | H98: =G98/G92 -> 0.3143603753
B99: Universal Credit claimants not in employment | C99: ='Transposed data'!L229 -> 125 | D99: =C99/C92 -> 0.6218905473 | E99: ='Transposed data'!M229 -> 2215 | F99: =E99/E92 -> 0.6825885978 | G99: ='Transposed data'!N229 -> 28862 | H99: =G99/G92 -> 0.6856396247
B101: All data is rounded at source so percentages may not sum to 100%
B105: ="Annual Average Unemployment - "&'Transposed data'!K124 -> Annual Average Unemployment - 2018
B106: Source: Claimant Count
C107: ='Transposed data'!$E$6 -> Aylesford Green | E107: ='Transposed data'!$F$6 -> Ashford | G107: KCC Area
C108: No. | D108: % Rate | E108: No. | F108: % Rate | G108: No. | H108: % Rate
B109: Total | C109: ='Transposed data'!L124 -> 70 | D109: =IF(ISERROR(('Transposed data'!L125/100)),"-",('Transposed data'!L125/100)) -> 0.02913025385 | E109: ='Transposed data'!M124 -> 1255 | F109: ='Transposed data'!M125/100 -> 0.017 | G109: ='Transposed data'!N124 -> 15770 | H109: ='Transposed data'!N125/100 -> 0.017
B110: 24 and under | C110: ='Transposed data'!L140 -> 20 | D110: ='Transposed data'!L156 -> 0.04338394794 | E110: ='Transposed data'!M140 -> 340 | F110: ='Transposed data'!M156 -> 0.02819470935 | G110: ='Transposed data'!N140 -> 3885 | H110: ='Transposed data'!N156 -> 0.0238765426
B111: 25-49 | C111: ='Transposed data'!L141 -> 40 | D111: ='Transposed data'!L157 -> 0.0272479564 | E111: ='Transposed data'!M141 -> 690 | F111: ='Transposed data'!M157 -> 0.01723147616 | G111: ='Transposed data'!N141 -> 9230 | H111: ='Transposed data'!N157 -> 0.01918340625
B112: 50+ | C112: ='Transposed data'!L142 -> 15 | D112: ='Transposed data'!L158 -> 0.02608695652 | E112: ='Transposed data'!M142 -> 400 | F112: ='Transposed data'!M158 -> 0.0163019114 | G112: ='Transposed data'!N142 -> 5265 | H112: ='Transposed data'!N158 -> 0.01749936849
B114: Note: Percentages are shown as a proportion of each age group
B121: ="Tax Credit Recipient Families (Working Tax Credit and/or Child Tax Credit) - "&'Transposed data'!K81 -> Tax Credit Recipient Families (Working Tax Credit and/or Child Tax Credit) - August 2016
B122: Source: HMRC
C123: ='Transposed data'!$E$6 -> Aylesford Green | E123: ='Transposed data'!$F$6 -> Ashford | G123: KCC Area
C124: No. | D124: % | E124: No. | F124: % | G124: No. | H124: %
B125: All Tax Credit recipients | C125: ='Transposed data'!L81 -> 395 | E125: ='Transposed data'!M81 -> 7225 | G125: ='Transposed data'!N81 -> 85465
B126: Families in work | C126: ='Transposed data'!L82 -> 280 | D126: =IF(ISERROR((C126/C$125)),"-",(C126/C$125)) -> 0.7088607595 | E126: ='Transposed data'!M82 -> 5070 | F126: =E126/E$125 -> 0.7017301038 | G126: ='Transposed data'!N82 -> 58680 | H126: =G126/G$125 -> 0.6865968525
B127: Lone Parents in work | C127: ='Transposed data'!L83 -> 115 | D127: 0.2911392405 | E127: ='Transposed data'!M83 -> 2055 | F127: 0.2844290657 | G127: ='Transposed data'!N83 -> 24220 | H127: 0.2833908618
B128: Couples in work | C128: =IF(ISERROR((C126-C127)),"-",(C126-C127)) -> 165 | D128: 0.417721519 | E128: =E126-E127 -> 3015 | F128: 0.4173010381 | G128: =G126-G127 -> 34460 | H128: 0.4032059908
B129: All families out of work | C129: ='Transposed data'!L84 -> 120 | D129: 0.3037974684 | E129: ='Transposed data'!M84 -> 2160 | F129: 0.2989619377 | G129: ='Transposed data'!N84 -> 26865 | H129: 0.3143392032
B130: Lone parents out of work | C130: ='Transposed data'!L85 -> 85 | D130: 0.2151898734 | E130: ='Transposed data'!M85 -> 1515 | F130: 0.2096885813 | G130: ='Transposed data'!N85 -> 19205 | H130: 0.2247118704
B131: Couples out of work | C131: ='Transposed data'!L86 -> 35 | D131: 0.08860759494 | E131: ='Transposed data'!M86 -> 625 | F131: 0.08650519031 | G131: ='Transposed data'!N86 -> 7585 | H131: 0.08874978061
B133: Note: Percentages are shown as a proportion of all recipients
B139: ="Children in Tax Credit Recipient Families (Working Tax Credit and/or Child Tax Credit) - "&'Transposed data'!K87 -> Children in Tax Credit Recipient Families (Working Tax Credit and/or Child Tax Credit) - August 2016
B140: Source:HMRC
C141: ='Transposed data'!$E$6 -> Aylesford Green | E141: ='Transposed data'!$F$6 -> Ashford | G141: KCC Area
C142: No. of children | D142: % | E142: No. of children | F142: % | G142: No. of children | H142: %
B143: All Tax Credit recipients | C143: ='Transposed data'!L87 -> 705 | E143: ='Transposed data'!M87 -> 13160 | G143: ='Transposed data'!N87 -> 151190
B144: Families in work | C144: ='Transposed data'!L88 -> 475 | D144: =IF(ISERROR((C144/C$143)),"-",(C144/C$143)) -> 0.6737588652 | E144: ='Transposed data'!M88 -> 8795 | F144: =E144/E$143 -> 0.6683130699 | G144: ='Transposed data'!N88 -> 98380 | H144: =G144/G$143 -> 0.6507044117
B145: Lone Parents in work | C145: ='Transposed data'!L89 -> 180 | D145: 0.2553191489 | E145: ='Transposed data'!M89 -> 3250 | F145: 0.2469604863 | G145: ='Transposed data'!N89 -> 38810 | H145: 0.2566968715
B146: Couples in work | C146: =IF(ISERROR((C144-C145)),"-",(C144-C145)) -> 295 | D146: 0.4184397163 | E146: =E144-E145 -> 5545 | F146: 0.4213525836 | G146: =G144-G145 -> 59570 | H146: 0.3940075402
B147: All families out of work | C147: ='Transposed data'!L90 -> 235 | D147: 0.3333333333 | E147: ='Transposed data'!M90 -> 4385 | F147: 0.3332066869 | G147: ='Transposed data'!N90 -> 52840 | H147: 0.3494940142
B148: Lone parents out of work | C148: ='Transposed data'!L91 -> 155 | D148: 0.219858156 | E148: ='Transposed data'!M91 -> 2930 | F148: 0.2226443769 | G148: ='Transposed data'!N91 -> 35805 | H148: 0.2368212183
B149: Couples out of work | C149: ='Transposed data'!L92 -> 80 | D149: 0.1134751773 | E149: ='Transposed data'!M92 -> 1495 | F149: 0.1136018237 | G149: ='Transposed data'!N92 -> 17125 | H149: 0.1132680733
B151: Note: Percentages are shown as a proportion of all children in recipient families
B157: ="Children in Poverty - "&'Transposed data'!K93 -> Children in Poverty - August 2016
B158: Source: HMRC
B159: Under 16 | C159: ='Transposed data'!$E$6 -> Aylesford Green | D159: ='Transposed data'!$F$6 -> Ashford | E159: KCC Area
B160: Children under 16 in families in receipt of CTC (<60% median income) or IS/JSA | C160: ='Transposed data'!L93 -> 200 | D160: ='Transposed data'!M93 -> 3755 | E160: ='Transposed data'!N93 -> 45200
B161: % of Children - under 16 in "Poverty" | C161: ='Transposed data'!L94 -> 0.21 | D161: ='Transposed data'!M94 -> 0.155 | E161: ='Transposed data'!N94 -> 0.165
B164: All children | C164: ='Transposed data'!$E$6 -> Aylesford Green | D164: ='Transposed data'!$F$6 -> Ashford | E164: KCC Area
B165: All Children in families in receipt of CTC (<60% median income) or IS/JSA | C165: ='Transposed data'!L95 -> 225 | D165: ='Transposed data'!M95 -> 4235 | E165: ='Transposed data'!N95 -> 51365
B166: % of Children in "Poverty" | C166: ='Transposed data'!L96 -> 0.209 | D166: ='Transposed data'!M96 -> 0.15 | E166: ='Transposed data'!N96 -> 0.161
B170: ="Recorded crimes per 1,000 population - "&'Transposed data'!K108 -> Recorded crimes per 1,000 population - 2015/16
B171: Source: KCC Community Safety Portal
C172: ='Transposed data'!$E$6 -> Aylesford Green | D172: ='Transposed data'!$F$6 -> Ashford | E172: KCC
B173: Burglary dwelling per 1,000 Households | C173: ='Transposed data'!L108 -> 15.2733119 | D173: ='Transposed data'!M108 -> 6.183993896 | E173: ='Transposed data'!N108 -> 5.949905482
B174: Burglary other | C174: ='Transposed data'!L109 -> 3.108222662 | D174: ='Transposed data'!M109 -> 3.245072829 | E174: ='Transposed data'!N109 -> 3.70000375
B175: Criminal damage offences | C175: ='Transposed data'!L110 -> 16.95394179 | D175: ='Transposed data'!M110 -> 9.168357665 | E175: ='Transposed data'!N110 -> 10.41504856
B176: Theft from motor vehicle | C176: ='Transposed data'!L114 -> 0.565131393 | D176: ='Transposed data'!M114 -> 2.374243159 | E176: ='Transposed data'!N114 -> 3.326387736
B177: Theft of motor vehicle | C177: ='Transposed data'!L115 -> 2.543091269 | D177: ='Transposed data'!M115 -> 0.9776295359 | E177: ='Transposed data'!N115 -> 1.265473595
B178: Theft of pedal cycle | C178: ='Transposed data'!L116 -> 3.955919751 | D178: ='Transposed data'!M116 -> 1.306244506 | E178: ='Transposed data'!N116 -> 0.812849177
B179: Theft offences | C179: ='Transposed data'!L117 -> 1.695394179 | D179: ='Transposed data'!M117 -> 7.525282814 | E179: ='Transposed data'!N117 -> 8.640707273
B180: Vehicle interference | C180: ='Transposed data'!L118 -> 1.130262786 | D180: ='Transposed data'!M118 -> 0.2793227245 | E180: ='Transposed data'!N118 -> 0.6568410565
B181: Violence against the person | C181: ='Transposed data'!L119 -> 2.825656965 | D181: ='Transposed data'!M119 -> 14.96019651 | E181: ='Transposed data'!N119 -> 18.58907059
B182: Victim based crime | C182: ='Transposed data'!L120 -> 7.911839503 | D182: ='Transposed data'!M120 -> 50.68064376 | E182: ='Transposed data'!N120 -> 58.10398577
B193: Glossary
B196: Index of Multiple Deprivation, 2019
B197: The IoD2019 is made up of 38 indicators which are grouped into seven domains each of which reflects a different aspect of deprivation.
B198: The seven domains are combined to produce an overall Index of Multiple Deprivation (IMD2019) score.
B199: Source: Ministry of Housing, Communities & Local; Government (MHCLG)
B201: Benefits Claimants
B202: This section looks at people who are claiming DWP benefits.
B203: Claimant rates are calculated as a proportion of the age group eligible to claim each individual benefit
B204: Income Support (16-59), Jobseekers Allowance (16-pension age), Incapacity Benefit/Employment & Support Allowance (16-pension age),
B205: Pension Credit (60+), State Pension (pension age and above)
B206: Note: State Pension Age is due to increase for for women to age 65 by 2018 and then to age 66 for both men and women by 2020
B207: Source: DWP
B209: Universal Credit
B210: Universal Credit is a new benefit which is replacing: Jobseekers Allowance. Income Support, ESA, Child Tax Credits, Working Tax Credits and Housing Benefit
B211: Source: DWP
B213: Unemployment
B214: These figures show the annual average number of people claiming Jobseekers Allowance or National Insurance Credits.
B215: Figures are released on a monthly basis. Monthly figures for Kent at ward and district level are available from our webpages.
B216: Source: NOMIS
B218: Tax Credit Recipient
B219: Tax credits are a system of financial support designed to help families. They are part of wider government policy to provide support to parents returning to work, reduce child poverty
B220: and increase financial support for all families.
B221: Source: HMRC
B223: Children in Poverty
B224: Child poverty figures show the proportion of children living in families in receipt of out of work benefits or tax credits where their reported income is less than 60% median income.
B225: Percentages are calculated using rounded data.
B226: Source: HMRC
B228: Recorded Crimes
B229: This shows the number of reported crimes per 1,000 population. Burglaries of dwellings are shown per 1,000 households.
B230: Source: Kent Police, Kent Connects Safer Communities Portal

Sheet Housing & Households
B1: Housing & Households
B2: Includes information about housing types, amenities, tenure, household composition, car ownership, housing stock, housing completions and council tax bands. | O2: =Profile!F1 -> Version date: 4 November 2019
B6: =Data!A12&" , "&Data!A13 -> Aylesford Green , Ashford | E6: As of 7 May 2015 new ward boundaries came in to effect in the local authority districts of Canterbury, Folkestone & Hythe, Swale and Tonbridge & Malling. Some data sets are not yet available to the new wards so there will be some gaps in the profiles for these areas at ward level.
B8: Housing - types
B9: ='Transposed data'!X7&" , Table: "&'Transposed data'!Y7 -> Source: 2011 Census, The Office for National Statistics (ONS), © Crown Copyright , Table: KS401
B10: 2011 | C10: ='Transposed data'!$E$6 -> Aylesford Green | E10: ='Transposed data'!$F$6 -> Ashford | G10: KCC Area
C11: No. | D11: % of total | E11: No. | F11: % of total | G11: No. | H11: % of total
B12: Total household spaces | C12: ='Transposed data'!Z7 -> 1244 | E12: ='Transposed data'!AA7 -> 49806 | G12: ='Transposed data'!AB7 -> 634800
B13: Total household spaces with residents | C13: ='Transposed data'!Z8 -> 1220 | D13: =C13/C$12 -> 0.9807073955 | E13: ='Transposed data'!AA8 -> 47787 | F13: =E13/E$12 -> 0.9594627153 | G13: ='Transposed data'!AB8 -> 605638 | H13: =G13/G$12 -> 0.9540611216
B14: Total household spaces without residents | C14: ='Transposed data'!Z9 -> 24 | D14: =C14/C$12 -> 0.0192926045 | E14: ='Transposed data'!AA9 -> 2019 | F14: 0.04053728466 | G14: ='Transposed data'!AB9 -> 29162 | H14: 0.04593887839
B15: Detached houses or bungalows | C15: ='Transposed data'!Z10 -> 50 | D15: 0.04019292605 | E15: ='Transposed data'!AA10 -> 16613 | F15: 0.3335541903 | G15: ='Transposed data'!AB10 -> 159426 | H15: 0.2511436673
B16: Semi-detached houses or bungalows | C16: ='Transposed data'!Z11 -> 428 | D16: 0.3440514469 | E16: ='Transposed data'!AA11 -> 15034 | F16: 0.3018511826 | G16: ='Transposed data'!AB11 -> 193930 | H16: 0.3054977946
B17: Terraced houses or bungalows | C17: ='Transposed data'!Z12 -> 455 | D17: 0.365755627 | E17: ='Transposed data'!AA12 -> 12031 | F17: 0.2415572421 | G17: ='Transposed data'!AB12 -> 157343 | H17: 0.2478623188
B18: Flats, maisonettes or apartments | C18: ='Transposed data'!Z13 -> 310 | D18: 0.2491961415 | E18: ='Transposed data'!AA13 -> 5629 | F18: 0.1130185118 | G18: ='Transposed data'!AB13 -> 118436 | H18: 0.1865721487
B19: Caravans or other temporary structures | C19: ='Transposed data'!Z14 -> 1 | D19: 0.0008038585209 | E19: ='Transposed data'!AA14 -> 499 | F19: 0.01001887323 | G19: ='Transposed data'!AB14 -> 5665 | H19: 0.008924070573
B28: Tenure
B29: ='Transposed data'!X23&" , Table: "&'Transposed data'!Y23 -> Source: 2011 Census, The Office for National Statistics (ONS), © Crown Copyright , Table: QS405
B30: 2011 | C30: ='Transposed data'!$E$6 -> Aylesford Green | E30: ='Transposed data'!$F$6 -> Ashford | G30: KCC Area
C31: No. | D31: % of total | E31: No. | F31: % of total | G31: No. | H31: % of total
B32: Total household spaces with residents | C32: ='Transposed data'!Z8 -> 1220 | E32: ='Transposed data'!AA8 -> 47787 | G32: ='Transposed data'!AB8 -> 605638
B33: Owner occupied households | C33: ='Transposed data'!Z23 -> 514 | D33: =C33/C$32 -> 0.4213114754 | E33: ='Transposed data'!AA23 -> 32685 | F33: =E33/E$32 -> 0.6839726285 | G33: ='Transposed data'!AB23 -> 407570 | H33: =G33/G$32 -> 0.6729597548
B34: owns outright | C34: ='Transposed data'!Z24 -> 147 | D34: =C34/C$32 -> 0.1204918033 | E34: ='Transposed data'!AA24 -> 15200 | F34: =E34/E$32 -> 0.3180781384 | G34: ='Transposed data'!AB24 -> 200638 | H34: =G34/G$32 -> 0.3312837041
B35: owns with a mortgage or loan | C35: ='Transposed data'!Z25 -> 367 | D35: 0.3008196721 | E35: ='Transposed data'!AA25 -> 17485 | F35: 0.3658944901 | G35: ='Transposed data'!AB25 -> 206932 | H35: 0.3416760507
B36: Shared ownership | C36: ='Transposed data'!Z26 -> 2 | D36: 0.001639344262 | E36: ='Transposed data'!AA26 -> 638 | F36: 0.01335091134 | G36: ='Transposed data'!AB26 -> 5776 | H36: 0.009537050185
B37: Rented households | C37: ='Transposed data'!Z27 -> 677 | D37: 0.5549180328 | E37: ='Transposed data'!AA27 -> 13764 | F37: 0.2880281248 | G37: ='Transposed data'!AB27 -> 184309 | H37: 0.3043220538
B38: rented from a local authority | C38: ='Transposed data'!Z28 -> 455 | D38: 0.3729508197 | E38: ='Transposed data'!AA28 -> 4702 | F38: 0.09839496097 | G38: ='Transposed data'!AB28 -> 35294 | H38: 0.05827573567
B39: rented from an housing association | C39: ='Transposed data'!Z29 -> 87 | D39: 0.07131147541 | E39: ='Transposed data'!AA29 -> 2213 | F39: 0.04630966581 | G39: ='Transposed data'!AB29 -> 48833 | H39: 0.08063067377
B40: privately rented | C40: ='Transposed data'!Z30 -> 119 | D40: 0.09754098361 | E40: ='Transposed data'!AA30 -> 6173 | F40: 0.1291773913 | G40: ='Transposed data'!AB30 -> 91250 | H40: 0.1506675605
B41: other rented | C41: ='Transposed data'!Z31 -> 16 | D41: 0.0131147541 | E41: ='Transposed data'!AA31 -> 676 | F41: 0.01414610668 | G41: ='Transposed data'!AB31 -> 8932 | H41: 0.01474808384
B42: Living Rent Free | C42: ='Transposed data'!Z32 -> 27 | D42: 0.02213114754 | E42: ='Transposed data'!AA32 -> 700 | F42: 0.01464833532 | G42: ='Transposed data'!AB32 -> 7983 | H42: 0.01318114121
B46: Household Composition - number of households
B47: ='Transposed data'!X52&" , Table: "&'Transposed data'!Y38 -> Source: 2011 Census, The Office for National Statistics (ONS), © Crown Copyright , Table: QS113
B48: 2011 | C48: ='Transposed data'!$E$6 -> Aylesford Green | E48: ='Transposed data'!$F$6 -> Ashford | G48: KCC Area
C49: No. | D49: % of total | E49: No. | F49: % of total | G49: No. | H49: % of total
B50: One person households | C50: ='Transposed data'!Z38 -> 395 | D50: =C50/C$32 -> 0.3237704918 | E50: ='Transposed data'!AA38 -> 12242 | F50: =E50/E$32 -> 0.2561784586 | G50: ='Transposed data'!AB38 -> 174331 | H50: =G50/G$32 -> 0.2878468656
B51: All aged 65 and over | C51: ='Transposed data'!Z39 -> 153 | D51: =C51/C$32 -> 0.1254098361 | E51: ='Transposed data'!AA39 -> 5654 | F51: =E51/E$32 -> 0.118316697 | G51: ='Transposed data'!AB39 -> 79310 | H51: =G51/G$32 -> 0.1309528134
B52: Other | C52: ='Transposed data'!Z40 -> 242 | D52: 0.1983606557 | E52: ='Transposed data'!AA40 -> 6588 | F52: 0.1378617616 | G52: ='Transposed data'!AB40 -> 95021 | H52: 0.1568940522
B53: One Family households | C53: ='Transposed data'!Z41 -> 748 | D53: 0.6131147541 | E53: ='Transposed data'!AA41 -> 32660 | F53: 0.6834494737 | G53: ='Transposed data'!AB41 -> 391641 | H53: 0.646658565
B54: All aged 65 and over | C54: ='Transposed data'!Z42 -> 68 | D54: 0.05573770492 | E54: ='Transposed data'!AA42 -> 4486 | F54: 0.09387490322 | G54: ='Transposed data'!AB42 -> 56575 | H54: 0.0934138875
B55: Married couple households (including same-sex civil partnership couple households) | C55: ='Transposed data'!Z43 -> 351 | D55: 0.287704918 | E55: ='Transposed data'!AA43 -> 18038 | F55: 0.377466675 | G55: ='Transposed data'!AB43 -> 211442 | H55: 0.3491227433
B56: Cohabiting couple households (including same-sex cohabiting couple households) | C56: ='Transposed data'!Z44 -> 118 | D56: 0.09672131148 | E56: ='Transposed data'!AA44 -> 6821 | F56: 0.1427375646 | G56: ='Transposed data'!AB44 -> 80185 | H56: 0.1323975708
B57: Lone parent households | C57: ='Transposed data'!Z51 -> 188 | D57: 0.1540983607 | E57: ='Transposed data'!AA51 -> 4869 | F57: 0.1018896353 | G57: ='Transposed data'!AB51 -> 60645 | H57: 0.1001340735
B58: with dependent children | C58: ='Transposed data'!Z52 -> 142 | D58: 0.1163934426 | E58: ='Transposed data'!AA52 -> 3408 | F58: 0.07131646682 | G58: ='Transposed data'!AB52 -> 41068 | H58: 0.06780948355
B59: with non-dependent children | C59: ='Transposed data'!Z53 -> 46 | D59: 0.03770491803 | E59: ='Transposed data'!AA53 -> 1461 | F59: 0.03057316843 | G59: ='Transposed data'!AB53 -> 19577 | H59: 0.03232458994
B60: Other household types | C60: ='Transposed data'!Z54 -> 77 | D60: 0.0631147541 | E60: ='Transposed data'!AA54 -> 2885 | F60: 0.06037206772 | G60: ='Transposed data'!AB54 -> 39666 | H60: 0.06549456936
B61: With dependent children | C61: ='Transposed data'!Z55 -> 36 | D61: 0.02950819672 | E61: ='Transposed data'!AA55 -> 1144 | F61: 0.02393956515 | G61: ='Transposed data'!AB55 -> 13880 | H61: 0.02291798071
B62: All Full Time Students | C62: ='Transposed data'!Z56 -> 1 | D62: 0.0008196721311 | E62: ='Transposed data'!AA56 -> 7 | F62: 0.0001464833532 | G62: ='Transposed data'!AB56 -> 2483 | H62: 0.004099808797
B63: All other households | C63: ='Transposed data'!Z57 -> 1 | D63: 0.0008196721311 | E63: ='Transposed data'!AA57 -> 167 | F63: 0.003494674284 | G63: ='Transposed data'!AB57 -> 1949 | H63: 0.003218093977
B64: Pensioner households (aged 65 and over) | C64: ='Transposed data'!Z58 -> 39 | D64: 0.03196721311 | E64: ='Transposed data'!AA58 -> 1567 | F64: 0.03279134493 | G64: ='Transposed data'!AB58 -> 21354 | H64: 0.03525868588
B69: Housing - amenities
B70: ='Transposed data'!X15&" , Table: "&'Transposed data'!Y15 -> Source: 2011 Census, The Office for National Statistics (ONS), © Crown Copyright , Table: KS403
B71: 2011 | C71: ='Transposed data'!$E$6 -> Aylesford Green | E71: ='Transposed data'!$F$6 -> Ashford | G71: KCC Area
C72: No. | D72: % of total | E72: No. | F72: % of total | G72: No. | H72: % of total
B73: Total household spaces with residents | C73: =C13 -> 1220 | E73: =E13 -> 47787 | G73: =G12 -> 634800
B74: Does not have central heating | C74: ='Transposed data'!Z16 -> 16 | D74: =C74/C$12 -> 0.01286173633 | E74: ='Transposed data'!AA16 -> 874 | F74: =E74/E$12 -> 0.01754808658 | G74: ='Transposed data'!AB16 -> 14759 | H74: =G74/G$12 -> 0.02324984247
B75: Does have central heating | C75: ='Transposed data'!Z17 -> 1204 | D75: =C75/C$12 -> 0.9678456592 | E75: ='Transposed data'!AA17 -> 46913 | F75: =E75/E$12 -> 0.9419146288 | G75: ='Transposed data'!AB17 -> 590879 | H75: =G75/G$12 -> 0.9308112791
B79: Household size & occupancy rating
B80: ='Transposed data'!X18&" , Table: "&'Transposed data'!Y18 -> Source: 2011 Census, The Office for National Statistics (ONS), © Crown Copyright , Table: KS403
B81: 2011 | C81: ='Transposed data'!$E$6 -> Aylesford Green | E81: ='Transposed data'!$F$6 -> Ashford | G81: KCC Area
C82: No. | D82: % of total | E82: No. | F82: % of total | G82: No. | H82: % of total
B83: Average household size | C83: ='Transposed data'!Z20 -> 2.4 | E83: ='Transposed data'!AA20 -> 2.4 | G83: ='Transposed data'!AB20 -> 2.4
B84: Average number of rooms per household | C84: ='Transposed data'!Z21 -> 4.7 | E84: ='Transposed data'!AA21 -> 5.8 | G84: ='Transposed data'!AB21 -> 5.5
B85: Average number of bedrooms per household | C85: ='Transposed data'!Z22 -> 2.4 | E85: ='Transposed data'!AA22 -> 2.9 | G85: ='Transposed data'!AB22 -> 2.8
B86: Occupancy rating (rooms) of -1 or less | C86: ='Transposed data'!Z18 -> 106 | D86: =C86/C$12 -> 0.08520900322 | E86: ='Transposed data'!AA18 -> 2466 | F86: =E86/E$12 -> 0.04951210698 | G86: ='Transposed data'!AB18 -> 41920 | H86: =G86/G$12 -> 0.06603654694
B87: Occupancy rating (bedrooms) of -1 or less | C87: ='Transposed data'!Z19 -> 66 | D87: =C87/C$12 -> 0.05305466238 | E87: ='Transposed data'!AA19 -> 1430 | F87: =E87/E$12 -> 0.02871140023 | G87: ='Transposed data'!AB19 -> 21926 | H87: =G87/G$12 -> 0.0345400126
B92: Households - car ownership
B93: ='Transposed data'!X63&", Table: "&'Transposed data'!Y63 -> Source: 2011 Census, The Office for National Statistics (ONS), © Crown Copyright, Table: QS416
B94: 2011 | C94: ='Transposed data'!$E$6 -> Aylesford Green | E94: ='Transposed data'!$F$6 -> Ashford | G94: KCC Area
C95: No. | D95: % of total | E95: No. | F95: % of total | G95: No. | H95: % of total
B96: Households with residents | C96: =C32 -> 1220 | E96: =E32 -> 47787 | G96: =G32 -> 605638
B97: Households without a car/van | C97: ='Transposed data'!Z63 -> 438 | D97: =C97/C$96 -> 0.3590163934 | E97: ='Transposed data'!AA63 -> 7548 | F97: =E97/E$96 -> 0.1579509072 | G97: ='Transposed data'!AB63 -> 121094 | H97: =G97/G$96 -> 0.1999445213
B98: Households with 1 car/van | C98: ='Transposed data'!Z64 -> 550 | D98: =C98/C$96 -> 0.4508196721 | E98: ='Transposed data'!AA64 -> 19979 | F98: =E98/E$96 -> 0.4180844163 | G98: ='Transposed data'!AB64 -> 258442 | H98: =G98/G$96 -> 0.4267268566
B99: Households with 2 cars/vans | C99: ='Transposed data'!Z65 -> 189 | D99: =C99/C$96 -> 0.1549180328 | E99: ='Transposed data'!AA65 -> 14971 | F99: =E99/E$96 -> 0.3132860401 | G99: ='Transposed data'!AB65 -> 169541 | H99: =G99/G$96 -> 0.2799378507
B100: Households with 3 cars/vans | C100: ='Transposed data'!Z66 -> 33 | D100: =C100/C$96 -> 0.02704918033 | E100: ='Transposed data'!AA66 -> 3789 | F100: =E100/E$96 -> 0.07928934647 | G100: ='Transposed data'!AB66 -> 40616 | H100: =G100/G$96 -> 0.06706316314
B101: Households with 4 or more cars/vans | C101: ='Transposed data'!Z67 -> 10 | D101: =C101/C$96 -> 0.008196721311 | E101: ='Transposed data'!AA67 -> 1500 | F101: =E101/E$96 -> 0.03138928997 | G101: ='Transposed data'!AB67 -> 15945 | H101: =G101/G$96 -> 0.02632760824
B102: Total cars/vans in the area | C102: ='Transposed data'!Z68 -> 1069 | E102: ='Transposed data'!AA68 -> 68054 | G102: ='Transposed data'!AB68 -> 790956
B109: ="Housing Stock - "&'Transposed data'!K207 -> Housing Stock - 2017
B110: Source:Dwelling Estimates, Research & Evaluation, Kent County Council
C111: ='Transposed data'!$E$6 -> Aylesford Green | E111: ='Transposed data'!$F$6 -> Ashford | G111: KCC Area
C112: No. | D112: % of district | E112: No. | F112: % of county | G112: No.
B113: Total Number of dwellings | C113: ='Transposed data'!L207 -> 1640 | D113: =IF(ISERROR((C113/E113)),"-",(C113/E113)) -> 0.0307288739 | E113: ='Transposed data'!M207 -> 53370 | F113: =E113/G113 -> 0.08090040928 | G113: ='Transposed data'!N207 -> 659700
B121: Housing Completions
B122: Source: Housing Information Audit, Research & Evaluation, Kent County Council
C123: ='Transposed data'!$E$6 -> Aylesford Green | E123: ='Transposed data'!$F$6 -> Ashford | G123: KCC Area
C124: No. | D124: % of district | E124: No. | F124: % of county | G124: No.
B125: 2001/2002 | C125: ='Transposed data'!L195 -> 0 | D125: =IF(ISERROR((C125/E125)),"-",(C125/E125)) -> 0 | E125: ='Transposed data'!M195 -> 897 | F125: =E125/G125 -> 0.25 | G125: ='Transposed data'!N195 -> 3588
B126: 2002/2003 | C126: ='Transposed data'!L196 -> 0 | D126: =IF(ISERROR((C126/E126)),"-",(C126/E126)) -> 0 | E126: ='Transposed data'!M196 -> 586 | F126: 0.133424408 | G126: ='Transposed data'!N196 -> 4392
B127: 2003/2004 | C127: ='Transposed data'!L197 -> 0 | D127: 0 | E127: ='Transposed data'!M197 -> 927 | F127: 0.184771776 | G127: ='Transposed data'!N197 -> 5017
B128: 2004/2005 | C128: ='Transposed data'!L198 -> 0 | D128: 0 | E128: ='Transposed data'!M198 -> 962 | F128: 0.1426876298 | G128: ='Transposed data'!N198 -> 6742
B129: 2005/2006 | C129: ='Transposed data'!L199 -> 0 | D129: 0 | E129: ='Transposed data'!M199 -> 590 | F129: 0.09508460919 | G129: ='Transposed data'!N199 -> 6205
B130: 2006/2007 | C130: ='Transposed data'!L200 -> 0 | D130: 0 | E130: ='Transposed data'!M200 -> 361 | F130: 0.05874694874 | G130: ='Transposed data'!N200 -> 6145
B131: 2007/2008 | C131: ='Transposed data'!L201 -> 2 | D131: 0.003533568905 | E131: ='Transposed data'!M201 -> 566 | F131: 0.07634205557 | G131: ='Transposed data'!N201 -> 7414
B132: 2008/2009 | C132: ='Transposed data'!L202 -> 0 | D132: 0 | E132: ='Transposed data'!M202 -> 536 | F132: 0.08085684115 | G132: ='Transposed data'!N202 -> 6629
B133: 2009/2010 | C133: ='Transposed data'!L203 -> 2 | D133: 0.003992015968 | E133: ='Transposed data'!M203 -> 501 | F133: 0.1207810993 | G133: ='Transposed data'!N203 -> 4148
B134: 2010/2011 | C134: ='Transposed data'!L204 -> 121 | D134: 0.218018018 | E134: ='Transposed data'!M204 -> 555 | F134: 0.1177344081 | G134: ='Transposed data'!N204 -> 4714
B135: 2011/2012 | C135: ='Transposed data'!L205 -> 193 | D135: 0.3048973144 | E135: ='Transposed data'!M205 -> 633 | F135: 0.1373996093 | G135: ='Transposed data'!N205 -> 4607
B136: 2012/2013 | C136: ='Transposed data'!L206 -> 66 | D136: 0.2323943662 | E136: ='Transposed data'!M206 -> 284 | F136: 0.07659115426 | G136: ='Transposed data'!N206 -> 3708
B140: ="Council Tax Bands - "&'Transposed data'!K208 -> Council Tax Bands - 2017
B141: Source: Valuation Office
C142: ='Transposed data'!$E$6 -> Aylesford Green | E142: ='Transposed data'!$F$6 -> Ashford | G142: KCC Area
B143: Council Tax Band | C143: No. | D143: % of total | E143: No. | F143: % of total | G143: No. | H143: % of total
B144: Band A | C144: ='Transposed data'!L208 -> 270 | D144: ='Transposed data'!L218 -> 0.1646341463 | E144: ='Transposed data'!M208 -> 4150 | F144: ='Transposed data'!M218 -> 0.07775904066 | G144: ='Transposed data'!N208 -> 67120 | H144: ='Transposed data'!N218 -> 0.1017432166
B145: Band B | C145: ='Transposed data'!L209 -> 910 | D145: ='Transposed data'!L219 -> 0.5548780488 | E145: ='Transposed data'!M209 -> 12650 | F145: ='Transposed data'!M219 -> 0.2370245456 | G145: ='Transposed data'!N209 -> 125160 | H145: ='Transposed data'!N219 -> 0.1897226012
B146: Band C | C146: ='Transposed data'!L210 -> 300 | D146: ='Transposed data'!L220 -> 0.1829268293 | E146: ='Transposed data'!M210 -> 12680 | F146: ='Transposed data'!M220 -> 0.2375866592 | G146: ='Transposed data'!N210 -> 182970 | H146: ='Transposed data'!N220 -> 0.2773533424
B147: Band D | C147: ='Transposed data'!L211 -> 160 | D147: ='Transposed data'!L221 -> 0.09756097561 | E147: ='Transposed data'!M211 -> 8970 | F147: ='Transposed data'!M221 -> 0.1680719505 | G147: ='Transposed data'!N211 -> 129760 | H147: ='Transposed data'!N221 -> 0.1966954676
B148: Band E | C148: ='Transposed data'!L212 -> 0 | D148: ='Transposed data'!L222 -> 0 | E148: ='Transposed data'!M212 -> 6520 | F148: ='Transposed data'!M222 -> 0.1221660109 | G148: ='Transposed data'!N212 -> 75280 | H148: ='Transposed data'!N222 -> 0.1141124754
B149: Band F | C149: ='Transposed data'!L213 -> 0 | D149: ='Transposed data'!L223 -> 0 | E149: ='Transposed data'!M213 -> 5340 | F149: ='Transposed data'!M223 -> 0.1000562114 | G149: ='Transposed data'!N213 -> 43730 | H149: ='Transposed data'!N223 -> 0.06628770653
B150: Band G | C150: ='Transposed data'!L214 -> 0 | D150: ='Transposed data'!L224 -> 0 | E150: ='Transposed data'!M214 -> 3140 | F150: ='Transposed data'!M224 -> 0.05883455125 | G150: ='Transposed data'!N214 -> 33900 | H150: ='Transposed data'!N224 -> 0.05138699409
B151: Band H | C151: ='Transposed data'!L215 -> 0 | D151: ='Transposed data'!L225 -> 0 | E151: ='Transposed data'!M215 -> 190 | F151: ='Transposed data'!M225 -> 0.003560052464 | G151: ='Transposed data'!N215 -> 3270 | H151: ='Transposed data'!N225 -> 0.004956798545
B152: Band I | C152: ='Transposed data'!L216 -> 0 | D152: ='Transposed data'!L226 -> 0 | E152: ='Transposed data'!M216 -> 0 | F152: ='Transposed data'!M226 -> 0 | G152: ='Transposed data'!N216 -> 0 | H152: ='Transposed data'!N226 -> 0
B153: Band X:Unallocated | C153: ='Transposed data'!L217 -> 0 | D153: ='Transposed data'!L227 -> 0 | E153: ='Transposed data'!M217 -> 0 | F153: ='Transposed data'!M227 -> 0 | G153: ='Transposed data'!N217 -> 0 | H153: ='Transposed data'!N227 -> 0
B159: Average House Prices
B160: ='Transposed data'!J234 -> Source: ONS House Price Statistics for Small Areas (HPSSAs)
B161: Note: Information is not available for urban and rural areas
C162: ='Transposed data'!$E$6 -> Aylesford Green | D162: ='Transposed data'!$F$6 -> Ashford | E162: KCC Area
C163: £ | D163: £ | E163: £
B164: ='Transposed data'!K234 -> Year ending Dec 2010 | C164: ='Transposed data'!L234 -> 137935.2941 | D164: ='Transposed data'!M234 -> 231381.8919 | E164: ='Transposed data'!N234 -> 242420.2844
B165: Year ending Dec 2011 | C165: ='Transposed data'!L235 -> 140073.6905 | D165: ='Transposed data'!M235 -> 219554.2149 | E165: ='Transposed data'!N235 -> 235059.7268
B166: Year ending Dec 2012 | C166: ='Transposed data'!L236 -> 148586.9231 | D166: ='Transposed data'!M236 -> 229514.4205 | E166: ='Transposed data'!N236 -> 238939.3299
B167: Year ending Dec 2013 | C167: ='Transposed data'!L237 -> 162223.7143 | D167: ='Transposed data'!M237 -> 244985.4504 | E167: ='Transposed data'!N237 -> 245867.5089
B168: Year ending Dec 2014 | C168: ='Transposed data'!L238 -> 149951.9792 | D168: ='Transposed data'!M238 -> 260412.6976 | E168: ='Transposed data'!N238 -> 261755.3953
B169: Year ending Dec 2015 | C169: ='Transposed data'!L239 -> 178113.1452 | D169: ='Transposed data'!M239 -> 275654.0382 | E169: ='Transposed data'!N239 -> 282585.9661
B170: Year ending Dec 2016 | C170: ='Transposed data'!L240 -> 198500.8111 | D170: ='Transposed data'!M240 -> 287766.3182 | E170: ='Transposed data'!N240 -> 304881.402
B171: Year ending Dec 2017 | C171: ='Transposed data'!L241 -> 192360 | D171: ='Transposed data'!M241 -> 307908.5055 | E171: ='Transposed data'!N241 -> 323782.6634
B172: Year ending Dec 2018 | C172: ='Transposed data'!L242 -> 203508.1967 | D172: ='Transposed data'!M242 -> 328141.3097 | E172: ='Transposed data'!N242 -> 339493.5172
B180: Number of residential property sales
B181: ='Transposed data'!J243 -> Source: ONS House Price Statistics for Small Areas (HPSSAs)
C182: ='Transposed data'!$E$6 -> Aylesford Green | D182: ='Transposed data'!$F$6 -> Ashford | E182: KCC Area
C183: Number | D183: Number | E183: Number
B184: ='Transposed data'!K243 -> Year ending Dec 2010 | C184: ='Transposed data'!L243 -> 51 | D184: ='Transposed data'!M243 -> 1794 | E184: ='Transposed data'!N243 -> 19713
B185: ='Transposed data'!K244 -> Year ending Dec 2011 | C185: ='Transposed data'!L244 -> 126 | D185: ='Transposed data'!M244 -> 1731 | E185: ='Transposed data'!N244 -> 19869
B186: ='Transposed data'!K245 -> Year ending Dec 2012 | C186: ='Transposed data'!L245 -> 91 | D186: ='Transposed data'!M245 -> 1603 | E186: ='Transposed data'!N245 -> 20190
B187: ='Transposed data'!K246 -> Year ending Dec 2013 | C187: ='Transposed data'!L246 -> 49 | D187: ='Transposed data'!M246 -> 1823 | E187: ='Transposed data'!N246 -> 23419
B188: ='Transposed data'!K247 -> Year ending Dec 2014 | C188: ='Transposed data'!L247 -> 48 | D188: ='Transposed data'!M247 -> 2209 | E188: ='Transposed data'!N247 -> 28028
B189: ='Transposed data'!K248 -> Year ending Dec 2015 | C189: ='Transposed data'!L248 -> 62 | D189: ='Transposed data'!M248 -> 2357 | E189: ='Transposed data'!N248 -> 28109
B190: ='Transposed data'!K249 -> Year ending Dec 2016 | C190: ='Transposed data'!L249 -> 90 | D190: ='Transposed data'!M249 -> 2442 | E190: ='Transposed data'!N249 -> 28187
B191: ='Transposed data'!K250 -> Year ending Dec 2017 | C191: ='Transposed data'!L250 -> 50 | D191: ='Transposed data'!M250 -> 2285 | E191: ='Transposed data'!N250 -> 27591
B192: ='Transposed data'!K251 -> Year ending Dec 2018 | C192: ='Transposed data'!L251 -> 61 | D192: ='Transposed data'!M251 -> 2057 | E192: ='Transposed data'!N251 -> 24735
B196: Number of residential property sales - new and existing dwellings
B197: ='Transposed data'!J259 -> Source: ONS House Price Statistics for Small Areas (HPSSAs)
C198: ='Transposed data'!$E$6 -> Aylesford Green
C199: All dwellings | D199: Newly built dwellings | E199: Existing dwellings | F199: % new dwellings | G199: % existing dwellings
B200: ='Transposed data'!K252 -> Year ending Dec 2010 | C200: ='Transposed data'!L243 -> 51 | D200: ='Transposed data'!L252 -> 34 | E200: ='Transposed data'!L261 -> 17 | F200: =D200/C200 -> 0.6666666667 | G200: =E200/C200 -> 0.3333333333
B201: ='Transposed data'!K253 -> Year ending Dec 2011 | C201: ='Transposed data'!L244 -> 126 | D201: ='Transposed data'!L253 -> 102 | E201: ='Transposed data'!L262 -> 24 | F201: =D201/C201 -> 0.8095238095 | G201: =E201/C201 -> 0.1904761905
B202: ='Transposed data'!K254 -> Year ending Dec 2012 | C202: ='Transposed data'!L245 -> 91 | D202: ='Transposed data'!L254 -> 73 | E202: ='Transposed data'!L263 -> 18 | F202: 0.8021978022 | G202: 0.1978021978
B203: ='Transposed data'!K255 -> Year ending Dec 2013 | C203: ='Transposed data'!L246 -> 49 | D203: ='Transposed data'!L255 -> 26 | E203: ='Transposed data'!L264 -> 23 | F203: 0.5306122449 | G203: 0.4693877551
B204: ='Transposed data'!K256 -> Year ending Dec 2014 | C204: ='Transposed data'!L247 -> 48 | D204: ='Transposed data'!L256 -> 0 | E204: ='Transposed data'!L265 -> 48 | F204: 0 | G204: 1
B205: ='Transposed data'!K257 -> Year ending Dec 2015 | C205: ='Transposed data'!L248 -> 62 | D205: ='Transposed data'!L257 -> 14 | E205: ='Transposed data'!L266 -> 48 | F205: 0.2258064516 | G205: 0.7741935484
B206: ='Transposed data'!K258 -> Year ending Dec 2016 | C206: ='Transposed data'!L249 -> 90 | D206: ='Transposed data'!L258 -> 32 | E206: ='Transposed data'!L267 -> 58 | F206: 0.3555555556 | G206: 0.6444444444
B207: ='Transposed data'!K259 -> Year ending Dec 2017 | C207: ='Transposed data'!L250 -> 50 | D207: ='Transposed data'!L259 -> 0 | E207: ='Transposed data'!L268 -> 50 | F207: 0 | G207: 1
B208: ='Transposed data'!K260 -> Year ending Dec 2018 | C208: ='Transposed data'!L251 -> 61 | D208: ='Transposed data'!L260 -> 1 | E208: ='Transposed data'!L269 -> 60 | F208: 0.01639344262 | G208: 0.9836065574
B214: Glossary
B216: Housholds
B217: A household is defined as one person living alone, or a group of people (not necessarily related) living at the same address who share cooking facilities
B218: and share a living room or sitting room or dining area
B219: A household must contain at least one person whose place of usual residence is at the address.
B220: A group of short-term residents living together is not classified as a household, and neither is a group of people at an address where only visitors are staying.
B221: Source: 2011 Census, The Office for National Statistics (ONS), © Crown Copyright
B223: Houshold spaces
B224: A household space is the accommodation occupied by an individual household or, if unoccupied, available for an individual household
B226: Households - Tenure
B227: Tenure provides information about whether a household rents or owns the accommodation that it occupies and, if rented,
B228: combines this with information about the type of landlord who owns or manages the accommodation.
B229: Source: 2011 Census, The Office for National Statistics (ONS), © Crown Copyright
B231: Household Composition
B232: This table shows the makeup of families in households at the time of the 2011 Census.
B233: Source: 2011 Census, The Office for National Statistics (ONS), © Crown Copyright
B235: Household size
B236: This shows the average number of rooms and the average number of bedrooms per houshold in the selected area
B237: Source: 2011 Census, The Office for National Statistics (ONS), © Crown Copyright
B239: Occupancy rating
B240: The occupancy rating provides a measure of under-occupancy and overcrowding. For example a value of -1 implies that there is one room too few and that
B241: there is overcrowding in the household.
B242: There are two measures of occupancy rating, one based on the number of rooms in a household's accommodation, and one based on the number of bedrooms.
B243: The occupancy rating assumes that every household, including one person households, requires a minimum of two common rooms (excluding bathrooms).
B244: Source: 2011 Census, The Office for National Statistics (ONS), © Crown Copyright
B246: Housing Stock
B247: Source: Research & Research & Evaluation, Kent County Council
B249: Housing Completions
B250: Source: Research & Research & Evaluation, Kent County Council
B252: Council Tax Bands
B253: Source: Office for National Statistics, Neighbourhood Statistics
B255: Average house prices
B256: This shows the average (mean) house prices for those dwellings sold within each year from January to December.
B257: Source: ONS House Price Statistics for Small Areas (HPSSAs)
B259: Number of residential property sales
B260: This shows the number of dwellings sold within each year from January to December.
B261: Source: ONS House Price Statistics for Small Areas (HPSSAs)

Sheet Young People, Ed & Skills
B1: Young People, Education & Skills
B2: Includes information about the population aged under 24, key age groups, child benefit, tax credit recipient families, children in poverty, children providing unpaid care, youth unemployment, young claimants of disability benefits. | O2: =Profile!F1 -> Version date: 4 November 2019
B6: =Data!A12&" , "&Data!A13 -> Aylesford Green , Ashford | E6: As of 7 May 2015 new ward boundaries came in to effect in the local authority districts of Canterbury, Folkestone & Hythe, Swale and Tonbridge & Malling. Some data sets are not yet available to the new wards so there will be some gaps in the profiles for these areas at ward level.
B8: Key age groups (under 20)
B9: ='Transposed data'!C72 -> Source: 2018 Mid Year Estimates, The Office for National Statistics (ONS), © Crown Copyright - 2018
B10: ='Transposed data'!D72 -> 2018 | C10: ='Transposed data'!E$6 -> Aylesford Green | E10: ='Transposed data'!$F$6 -> Ashford | G10: KCC area
B11: Age group | C11: No. | D11: % of total population | E11: No. | F11: % of total population | G11: No. | H11: % of total population
B12: Total Population (All ages) | C12: ='Transposed data'!E7 -> 4090 | E12: ='Transposed data'!F7 -> 129300 | G12: ='Transposed data'!G7 -> 1568600
B13: 0-3 - Early Years children | C13: ='Transposed data'!E72 -> 270 | D13: ='Transposed data'!E159 -> 0.03366131538 | E13: ='Transposed data'!F72 -> 6400 | F13: ='Transposed data'!F159 -> 0.06786538309 | G13: ='Transposed data'!G72 -> 72400 | H13: ='Transposed data'!G159 -> 0.05653506966
B14: 4-10 - Primary age children | C14: ='Transposed data'!E73 -> 440 | D14: ='Transposed data'!E160 -> 0.04194717763 | E14: ='Transposed data'!F73 -> 12200 | F14: ='Transposed data'!F160 -> 0.05336940091 | G14: ='Transposed data'!G73 -> 138700 | H14: ='Transposed data'!G160 -> 0.05327165792
B15: 11-18 - Secondary age children | C15: ='Transposed data'!E74 -> 440 | D15: ='Transposed data'!E161 -> 0.04919730709 | E15: ='Transposed data'!F74 -> 12700 | F15: ='Transposed data'!F161 -> 0.05266926565 | G15: ='Transposed data'!G74 -> 147400 | H15: ='Transposed data'!G161 -> 0.05420276267
B16: 10-17 - age group covered by youth offending service | C16: ='Transposed data'!E75 -> 480 | D16: ='Transposed data'!E162 -> 0.02019678923 | E16: ='Transposed data'!F75 -> 13100 | F16: ='Transposed data'!F162 -> 0.05354443472 | G16: ='Transposed data'!G75 -> 149100 | H16: ='Transposed data'!G162 -> 0.03455476441
B17: 14-19 - age group for Key Qualifications | C17: ='Transposed data'!E76 -> 320 | D17: ='Transposed data'!E163 -> 0.01242879337 | E17: ='Transposed data'!F76 -> 9000 | F17: ='Transposed data'!F163 -> 0.03389291113 | G17: ='Transposed data'!G76 -> 107200 | H17: ='Transposed data'!G163 -> 0.02419054273
B18: 0-19 - All children & young people | C18: ='Transposed data'!E77 -> 1200 | D18: ='Transposed data'!E164 -> 0.006214396686 | E18: ='Transposed data'!F77 -> 32500 | F18: ='Transposed data'!F164 -> 0.02275439574 | G18: ='Transposed data'!G77 -> 375600 | H18: ='Transposed data'!G164 -> 0.01363672371
B22: Children living in families receiving Child Benefit
B23: Source: HMRC
B24: ='Transposed data'!K97 -> 2017 | C24: ='Transposed data'!E$6 -> Aylesford Green | E24: ='Transposed data'!$F$6 -> Ashford | G24: KCC area
C25: No. | D25: % of children in recipient families | E25: No. | F25: % of children in recipient families | G25: No. | H25: % of children in recipient families
B26: All children living in families receiving Child Benefit | C26: ='Transposed data'!L97 -> 1080 | E26: ='Transposed data'!M97 -> 25970 | G26: ='Transposed data'!N97 -> 290435
B27: Boys | C27: ='Transposed data'!L98 -> 565 | D27: =IF(ISERROR((C27/C$26)),"-",(C27/C$26)) -> 0.5231481481 | E27: ='Transposed data'!M98 -> 13195 | F27: =E27/E$26 -> 0.5080862534 | G27: ='Transposed data'!N98 -> 148480 | H27: =G27/G$26 -> 0.5112331503
B28: Girls | C28: ='Transposed data'!L99 -> 515 | D28: =IF(ISERROR((C28/C$26)),"-",(C28/C$26)) -> 0.4768518519 | E28: ='Transposed data'!M99 -> 12745 | F28: =E28/E$26 -> 0.4907585676 | G28: ='Transposed data'!N99 -> 141750 | H28: =G28/G$26 -> 0.4880610119
B29: Age
B30: Under 5 | C30: ='Transposed data'!L100 -> 315 | D30: =IF(ISERROR((C30/C$26)),"-",(C30/C$26)) -> 0.2916666667 | E30: ='Transposed data'!M100 -> 6785 | F30: =E30/E$26 -> 0.2612629958 | G30: ='Transposed data'!N100 -> 76410 | H30: =G30/G$26 -> 0.2630881264
B31: 5 - 10 | C31: ='Transposed data'!L101 -> 380 | D31: =IF(ISERROR((C31/C$26)),"-",(C31/C$26)) -> 0.3518518519 | E31: ='Transposed data'!M101 -> 8855 | F31: =E31/E$26 -> 0.3409703504 | G31: ='Transposed data'!N101 -> 99805 | H31: =G31/G$26 -> 0.3436397128
B32: 11 - 15 | C32: ='Transposed data'!L102 -> 270 | D32: =IF(ISERROR((C32/C$26)),"-",(C32/C$26)) -> 0.25 | E32: ='Transposed data'!M102 -> 6815 | F32: =E32/E$26 -> 0.2624181748 | G32: ='Transposed data'!N102 -> 75200 | H32: =G32/G$26 -> 0.2589219619
B33: 16 - 19 | C33: ='Transposed data'!L103 -> 115 | D33: =IF(ISERROR((C33/C$26)),"-",(C33/C$26)) -> 0.1064814815 | E33: ='Transposed data'!M103 -> 3520 | F33: =E33/E$26 -> 0.1355410089 | G33: ='Transposed data'!N103 -> 39010 | H33: =G33/G$26 -> 0.1343157677
B41: Families receiving Child Benefit - family size
B42: Source: HMRC
B43: ='Transposed data'!K104 -> 2017 | C43: ='Transposed data'!E$6 -> Aylesford Green | E43: ='Transposed data'!$F$6 -> Ashford | G43: KCC area
C44: No. | D44: % of recipient families | E44: No. | F44: % of recipient families | G44: No. | H44: % of recipient families
B45: Total families receiving Child Benefit | C45: ='Transposed data'!L104 -> 625 | E45: ='Transposed data'!M104 -> 14955 | G45: ='Transposed data'!N104 -> 167710
B46: One child | C46: ='Transposed data'!L105 -> 295 | D46: =IF(ISERROR((C46/C$45)),"-",(C46/C$45)) -> 0.472 | E46: ='Transposed data'!M105 -> 6935 | F46: =E46/E$45 -> 0.4637245069 | G46: ='Transposed data'!N105 -> 78780 | H46: =G46/G$45 -> 0.4697394312
B47: Two children | C47: ='Transposed data'!L106 -> 240 | D47: =IF(ISERROR((C47/C$45)),"-",(C47/C$45)) -> 0.384 | E47: ='Transposed data'!M106 -> 5775 | F47: =E47/E$45 -> 0.3861584754 | G47: ='Transposed data'!N106 -> 63800 | H47: =G47/G$45 -> 0.3804185797
B48: Three or more children | C48: ='Transposed data'!L107 -> 90 | D48: =IF(ISERROR((C48/C$45)),"-",(C48/C$45)) -> 0.144 | E48: ='Transposed data'!M107 -> 2225 | F48: =E48/E$45 -> 0.1487796724 | G48: ='Transposed data'!N107 -> 25160 | H48: =G48/G$45 -> 0.1500208694
B56: Number of Children in Tax Credit Recipient Families (Working Tax Credit and/or Child Tax Credit)
B57: ='Transposed data'!J81 -> Source: HMRC
B58: ='Transposed data'!K87 -> August 2016 | C58: ='Transposed data'!E$6 -> Aylesford Green | E58: ='Transposed data'!$F$6 -> Ashford | G58: KCC area
C59: No. | D59: % of children in recipient families | E59: No. | F59: % of children in recipient families | G59: No. | H59: % of children in recipient families
B60: All Tax Credit recipients | C60: ='Transposed data'!L87 -> 705 | E60: ='Transposed data'!M87 -> 13160 | G60: ='Transposed data'!N87 -> 151190
B61: Total in in work families | C61: ='Transposed data'!L88 -> 475 | D61: =IF(ISERROR((C61/C$60)),"-",(C61/C$60)) -> 0.6737588652 | E61: ='Transposed data'!M88 -> 8795 | F61: =E61/E$60 -> 0.6683130699 | G61: ='Transposed data'!N88 -> 98380 | H61: =G61/G$60 -> 0.6507044117
B62: Lone Parents in work | C62: ='Transposed data'!L89 -> 180 | D62: =IF(ISERROR((C62/C$60)),"-",(C62/C$60)) -> 0.2553191489 | E62: ='Transposed data'!M89 -> 3250 | F62: =E62/E$60 -> 0.2469604863 | G62: ='Transposed data'!N89 -> 38810 | H62: =G62/G$60 -> 0.2566968715
B63: All families out of work | C63: ='Transposed data'!L90 -> 235 | D63: =IF(ISERROR((C63/C$60)),"-",(C63/C$60)) -> 0.3333333333 | E63: ='Transposed data'!M90 -> 4385 | F63: =E63/E$60 -> 0.3332066869 | G63: ='Transposed data'!N90 -> 52840 | H63: =G63/G$60 -> 0.3494940142
B64: Lone parents out of work | C64: ='Transposed data'!L91 -> 155 | D64: =IF(ISERROR((C64/C$60)),"-",(C64/C$60)) -> 0.219858156 | E64: ='Transposed data'!M91 -> 2930 | F64: =E64/E$60 -> 0.2226443769 | G64: ='Transposed data'!N91 -> 35805 | H64: =G64/G$60 -> 0.2368212183
B65: Couples out of work | C65: ='Transposed data'!L92 -> 80 | D65: =IF(ISERROR((C65/C$60)),"-",(C65/C$60)) -> 0.1134751773 | E65: ='Transposed data'!M92 -> 1495 | F65: =E65/E$60 -> 0.1136018237 | G65: ='Transposed data'!N92 -> 17125 | H65: =G65/G$60 -> 0.1132680733
B72: =Sheet1!L54 -> Children in poverty, August 2016 - Aylesford Green, Ashford
B73: Source: HMRC
B74: Under 16 | C74: ='Transposed data'!E$6 -> Aylesford Green | D74: ='Transposed data'!$F$6 -> Ashford | E74: KCC Area
B75: Children under 16 in families in receipt of CTC (<60% median income) or IS/JSA | C75: ='Transposed data'!L93 -> 200 | D75: ='Transposed data'!M93 -> 3755 | E75: ='Transposed data'!N93 -> 45200
B76: % of Children - under 16 in "Poverty" | C76: ='Transposed data'!L94 -> 0.21 | D76: ='Transposed data'!M94 -> 0.155 | E76: ='Transposed data'!N94 -> 0.165
B78: All children | C78: ='Transposed data'!E$6 -> Aylesford Green | D78: ='Transposed data'!$F$6 -> Ashford | E78: KCC Area
B79: Children in families in receipt of CTC (<60% median income) or IS/JSA | C79: ='Transposed data'!L95 -> 225 | D79: ='Transposed data'!M95 -> 4235 | E79: ='Transposed data'!N95 -> 51365
B80: % of Children in "Poverty" | C80: ='Transposed data'!L96 -> 0.209 | D80: ='Transposed data'!M96 -> 0.15 | E80: ='Transposed data'!N96 -> 0.161
B86: Children providing unpaid care
B87: ='Transposed data'!Q144 -> Source: 2011 Census, The Office for National Statistics (ONS), © Crown Copyright
B88: ='Transposed data'!R144 -> 2011 Census | C88: ='Transposed data'!E$6 -> Aylesford Green | E88: ='Transposed data'!$F$6 -> Ashford | G88: KCC area
C89: Number | D89: % of total carers | E89: Number | F89: % of total carers | G89: Number | H89: % of total carers
B90: Total number of carers (All ages) | C90: ='Transposed data'!S143 -> 303 | E90: ='Transposed data'!T143 -> 11819 | G90: ='Transposed data'!U143 -> 151777
B91: Unpaid carers aged 0-15 | C91: ='Transposed data'!S144 -> 11 | D91: =C91/C$90 -> 0.03630363036 | E91: ='Transposed data'!T144 -> 262 | F91: =E91/E$90 -> 0.02216769608 | G91: ='Transposed data'!U144 -> 3436 | H91: =G91/G$90 -> 0.02263847619
B100: =Sheet1!L56 -> Annual Average Youth Unemployment, 2018 - Aylesford Green, Ashford
B101: Source: Claimant Count
C102: ='Transposed data'!E$6 -> Aylesford Green | E102: ='Transposed data'!$F$6 -> Ashford | G102: KCC area
C103: No. | D103: % of age group | E103: No. | F103: % of age group | G103: No. | H103: % of age group
B104: All unemployed (16-64) | C104: ='Transposed data'!L124 -> 70 | D104: =IF(ISERROR(('Transposed data'!L125/100)),"-",('Transposed data'!L125/100)) -> 0.02913025385 | E104: ='Transposed data'!M124 -> 1255 | F104: ='Transposed data'!M125/100 -> 0.017 | G104: ='Transposed data'!N124 -> 15770 | H104: ='Transposed data'!N125/100 -> 0.017
B105: Aged 16-24 | C105: ='Transposed data'!L143 -> 0 | D105: ='Transposed data'!L156 -> 0.04338394794 | E105: ='Transposed data'!M143 -> 0 | F105: ='Transposed data'!M156 -> 0.02819470935 | G105: ='Transposed data'!N143 -> 0 | H105: ='Transposed data'!N156 -> 0.0238765426
B106: Aged 18-24 | C106: ='Transposed data'!L144 -> 0 | D106: ='Transposed data'!L159 -> 0 | E106: ='Transposed data'!M144 -> 0 | F106: ='Transposed data'!M159 -> 0 | G106: ='Transposed data'!N144 -> 0 | H106: ='Transposed data'!N159 -> 0
B108: Note: All data rounded to nearest 5 at source
B115: =Sheet1!L57 -> Youth unemployment (16-24) by gender, 2018 - Aylesford Green, Ashford
B116: Source: DWP
C117: ='Transposed data'!E$6 -> Aylesford Green | E117: ='Transposed data'!$F$6 -> Ashford | G117: KCC area
B118: Aged 16 to 24 | C118: No. | D118: % | E118: No. | F118: % | G118: No. | H118: %
B119: Total | C119: ='Transposed data'!L140 -> 20 | D119: ='Transposed data'!L156 -> 0.04338394794 | E119: ='Transposed data'!M140 -> 340 | F119: ='Transposed data'!M156 -> 0.02819470935 | G119: ='Transposed data'!N140 -> 3885 | H119: ='Transposed data'!N156 -> 0.0238765426
B120: Males | C120: ='Transposed data'!L149 -> 15 | D120: ='Transposed data'!L163 -> 0.07352941176 | E120: ='Transposed data'!M149 -> 215 | F120: ='Transposed data'!M163 -> 0.005484274163 | G120: ='Transposed data'!N149 -> 2400 | H120: ='Transposed data'!N163 -> 0.005033873776
B121: Females | C121: ='Transposed data'!L153 -> 5 | D121: ='Transposed data'!L167 -> 0.01945525292 | E121: ='Transposed data'!M153 -> 125 | F121: ='Transposed data'!M167 -> 0.001708420463 | G121: ='Transposed data'!N153 -> 1490 | H121: ='Transposed data'!N167 -> 0.00165499102
B123: Note: Percentages are shown as a proportion of the population aged 16 to 24 for each gender
B139: Young people claiming Disability Living Allowance
B140: Source: DWP
B141: ='Transposed data'!K51 -> Nov 2018 | C141: ='Transposed data'!E$6 -> Aylesford Green | E141: ='Transposed data'!$F$6 -> Ashford | G141: KCC area
C142: No. | D142: % of age group | E142: No. | F142: % of age group | G142: No. | H142: % of age group
B143: total claimants (All ages) | C143: ='Transposed data'!L17 -> 189 | D143: ='Transposed data'!L51 -> 0.04663212435 | E143: ='Transposed data'!M17 -> 3540 | F143: ='Transposed data'!M51 -> 0.02775882754 | G143: ='Transposed data'!N17 -> 45220 | H143: ='Transposed data'!N51 -> 0.02908719469
B144: age - under 16 | C144: ='Transposed data'!L21 -> 59 | D144: ='Transposed data'!L55 -> 0.05894105894 | E144: ='Transposed data'!M21 -> 1175 | F144: ='Transposed data'!M55 -> 0.04465643053 | G144: ='Transposed data'!N21 -> 14653 | H144: ='Transposed data'!N55 -> 0.0488573391
B145: age - 16 to 24 | C145: ='Transposed data'!L22 -> 17 | D145: ='Transposed data'!L56 -> 0.03687635575 | E145: ='Transposed data'!M22 -> 130 | F145: ='Transposed data'!M56 -> 0.01078033004 | G145: ='Transposed data'!N22 -> 1940 | H145: ='Transposed data'!N56 -> 0.01192290673
B153: Glossary
B155: Key age groups (under 20)
B156: =B9 -> Source: 2018 Mid Year Estimates, The Office for National Statistics (ONS), © Crown Copyright - 2018
B158: Child Benefit
B159: This information shows the number of families receiving Child Benefit and the number of children living in recipient families.
B160: Child Benefit is a tax-free payment that can be claimied by people with children. It can be claimed by anyone whose children fall within the qualifying age group, whatever their income or savings.
B161: Source: HMRC
B163: Tax Credit Recipient
B164: Tax credits are a system of financial support designed to help families. They are part of wider government policy to provide support to parents returning to work, reduce child poverty
B165: and increase financial support for all families.
B166: Tax credits are based on household circumstances and can be claimed jointly by members of a couple, or by singles.
B167: Source: HMRC
B169: Children in Poverty
B170: Child poverty figures show the proportion of children living in families in receipt of out of work benefits or tax credits where their reported income is less than 60% median income.
B171: Source: HMRC
B173: Carers
B174: The 2011 Census gives us data looking at the number of people who provide unpaid care. This section looks particularly at young carers (those aged 15 and under).
B175: Source: 2011 Census, Office for National Statistics
B177: Youth Unemployment
B178: This looks at people aged 16-24 who are claiming Jobseekers Allowance or Universal Credit
B179: This includes a breakdown by age and gender but does not currently include duration of unemployment
B180: Source: NOMIS; Claimant Count
B182: Young people claiming Disability Living Allowance
B183: This data gives a count of the number of young people for whom the disability related benefit Disability Living Allowance (DLA) is claimed.
B184: Disability Living Allowance (DLA) is a tax-free benefit for disabled children and adults to help with extra costs they may have because of a disability or health condition.
B185: Source: DWP

Sheet Older People
B1: Older People
B2: Includes information about the age of the population aged 60+, age groups, State Pension claimants, Pension Credit claimants, Disability Benefits claimants, Limiting long term illness and provision of unpaid care. | O2: =Profile!F1 -> Version date: 4 November 2019
B6: =Data!A12&" , "&Data!A13 -> Aylesford Green , Ashford | E6: As of 7 May 2015 new ward boundaries came in to effect in the local authority districts of Canterbury, Folkestone & Hythe, Swale and Tonbridge & Malling. Some data sets are not yet available to the new wards so there will be some gaps in the profiles for these areas at ward level.
B8: =Sheet1!L62 -> Population aged 60+, 2018 - Aylesford Green, Ashford
B9: ='Transposed data'!C92 -> Source: 2018 Mid Year Estimates, The Office for National Statistics (ONS), © Crown Copyright - 2018
C10: Total Persons | E10: Males | G10: Females
B11: Age group | C11: No. | D11: % of total population | E11: No. | F11: % of total males | G11: No. | H11: % of total females
B12: Total Population | C12: ='Transposed data'!E7 -> 4090 | E12: ='Transposed data'!E8 -> 1930 | G12: ='Transposed data'!E9 -> 2160
B13: Population aged 60+ | C13: ='Transposed data'!E119 -> 700 | D13: ='Transposed data'!E206 -> 0.1708272149 | E13: ='Transposed data'!E120 -> 320 | F13: ='Transposed data'!E207 -> 0.1672708441 | G13: ='Transposed data'!E121 -> 380 | H13: ='Transposed data'!E208 -> 0.1740139211
B14: 60-64 | C14: ='Transposed data'!E22 -> 150 | D14: ='Transposed data'!E140 -> 0.03768967205 | E14: ='Transposed data'!E41 -> 70 | F14: ='Transposed data'!E159 -> 0.03366131538 | G14: ='Transposed data'!E60 -> 90 | H14: ='Transposed data'!E178 -> 0.04129930394
B15: 65-69 | C15: ='Transposed data'!E23 -> 180 | D15: ='Transposed data'!E141 -> 0.04405286344 | E15: ='Transposed data'!E42 -> 80 | F15: ='Transposed data'!E160 -> 0.04194717763 | G15: ='Transposed data'!E61 -> 100 | H15: ='Transposed data'!E179 -> 0.04593967517
B16: 70-74 | C16: ='Transposed data'!E24 -> 170 | D16: ='Transposed data'!E142 -> 0.04185022026 | E16: ='Transposed data'!E43 -> 100 | F16: ='Transposed data'!E161 -> 0.04919730709 | G16: ='Transposed data'!E62 -> 80 | H16: ='Transposed data'!E180 -> 0.03526682135
B17: 75-79 | C17: ='Transposed data'!E25 -> 80 | D17: ='Transposed data'!E143 -> 0.0186000979 | E17: ='Transposed data'!E44 -> 40 | F17: ='Transposed data'!E162 -> 0.02019678923 | G17: ='Transposed data'!E63 -> 40 | H17: ='Transposed data'!E181 -> 0.01716937355
B18: 80-84 | C18: ='Transposed data'!E26 -> 70 | D18: ='Transposed data'!E144 -> 0.0178658835 | E18: ='Transposed data'!E45 -> 20 | F18: ='Transposed data'!E163 -> 0.01242879337 | G18: ='Transposed data'!E64 -> 50 | H18: ='Transposed data'!E182 -> 0.02273781903
B19: 85-89 | C19: ='Transposed data'!E27 -> 30 | D19: ='Transposed data'!E145 -> 0.007342143906 | E19: ='Transposed data'!E46 -> 10 | F19: ='Transposed data'!E164 -> 0.006214396686 | G19: ='Transposed data'!E65 -> 20 | H19: ='Transposed data'!E183 -> 0.008352668213
B20: 90+ | C20: ='Transposed data'!E28 -> 10 | D20: ='Transposed data'!E146 -> 0.003426333823 | E20: ='Transposed data'!E47 -> 10 | F20: ='Transposed data'!E165 -> 0.003625064733 | G20: ='Transposed data'!E66 -> 10 | H20: ='Transposed data'!E184 -> 0.003248259861
B26: State Pension Claimants
B27: Source: DWP - Note: percentages are based on rounded figures so may exceed 100% in some cases
B28: ='Transposed data'!K63 -> Nov 2018 | C28: ='Transposed data'!$E$6 -> Aylesford Green | E28: ='Transposed data'!$F$6 -> Ashford | G28: KCC Area
C29: No. | D29: % of State Pension aged people | E29: No. | F29: % of State Pension aged males | G29: No. | H29: % of State Pension aged females
B30: Total claimants | C30: ='Transposed data'!L29 -> 470 | D30: ='Transposed data'!L63 -> 0.7413249211 | E30: ='Transposed data'!M29 -> 24270 | F30: ='Transposed data'!M63 -> 0.8653023388 | G30: ='Transposed data'!N29 -> 305220 | H30: ='Transposed data'!N63 -> 0.8611937982
B31: Males | C31: ='Transposed data'!L30 -> 225 | D31: ='Transposed data'!L64 -> 0.8426966292 | E31: ='Transposed data'!M30 -> 11160 | F31: ='Transposed data'!M64 -> 0.9981218138 | G31: ='Transposed data'!N30 -> 139080 | H31: ='Transposed data'!N64 -> 0.9853766366
B32: Females | C32: ='Transposed data'!L31 -> 245 | D32: ='Transposed data'!L65 -> 0.6675749319 | E32: ='Transposed data'!M31 -> 13110 | F32: ='Transposed data'!M65 -> 0.7772573665 | G32: ='Transposed data'!N31 -> 166150 | H32: ='Transposed data'!N65 -> 0.7790557554
B41: Pension Credit Claimants
B42: Source: DWP
B43: ='Transposed data'!K59 -> Nov 2018 | C43: ='Transposed data'!$E$6 -> Aylesford Green | E43: ='Transposed data'!$F$6 -> Ashford | G43: KCC Area
C44: No. | D44: % of age group | E44: No. | F44: % of age group | G44: No. | H44: % of age group
B45: Total claimants (60+) | C45: ='Transposed data'!L25 -> 144 | D45: ='Transposed data'!L59 -> 0.2093023256 | E45: ='Transposed data'!M25 -> 2800 | F45: ='Transposed data'!M59 -> 0.0892885615 | G45: ='Transposed data'!N25 -> 35400 | H45: ='Transposed data'!N59 -> 0.08913822972
B46: Aged 60-69 | C46: ='Transposed data'!L26 -> 29 | D46: ='Transposed data'!L60 -> 0.08529411765 | E46: ='Transposed data'!M26 -> 500 | F46: ='Transposed data'!M60 -> 0.03573470555 | G46: ='Transposed data'!N26 -> 6400 | H46: ='Transposed data'!N60 -> 0.03647367911
B47: Aged 70-79 | C47: ='Transposed data'!L27 -> 69 | D47: ='Transposed data'!L61 -> 0.2948717949 | E47: ='Transposed data'!M27 -> 1280 | F47: ='Transposed data'!M61 -> 0.1153672826 | G47: ='Transposed data'!N27 -> 15470 | H47: ='Transposed data'!N61 -> 0.1121550887
B48: Aged 80+ | C48: ='Transposed data'!L28 -> 36 | D48: ='Transposed data'!L62 -> 0.3157894737 | E48: ='Transposed data'!M28 -> 1020 | F48: ='Transposed data'!M62 -> 0.162627551 | G48: ='Transposed data'!N28 -> 13530 | H48: ='Transposed data'!N62 -> 0.1615850382
B55: Disability Benefit Claimants aged 60+
B56: Source: DWP
B57: ='Transposed data'!K72 -> Nov 2018 | C57: ='Transposed data'!$E$6 -> Aylesford Green | E57: ='Transposed data'!$F$6 -> Ashford | G57: KCC Area
C58: No. | D58: % of age group | E58: No. | F58: % of age group | G58: No. | H58: % of age group
B59: Total Disability Benefits Claimants (AA or DLA) aged 60+ | C59: ='Transposed data'!L39 -> 104 | D59: ='Transposed data'!L73 -> 0.1511627907 | E59: ='Transposed data'!M39 -> 4194 | F59: ='Transposed data'!M73 -> 0.1337415096 | G59: ='Transposed data'!N39 -> 56246 | H59: ='Transposed data'!N73 -> 0.1416290641
B60: Disability Living Allowance (60+) | C60: ='Transposed data'!L20 -> 66 | D60: ='Transposed data'!L54 -> 0.09593023256 | E60: ='Transposed data'!M20 -> 1290 | F60: ='Transposed data'!M54 -> 0.04113651583 | G60: ='Transposed data'!N20 -> 16990 | H60: ='Transposed data'!N54 -> 0.04278131421
B61: Aged 60-69 | C61: ='Transposed data'!L23 -> 14 | D61: ='Transposed data'!L57 -> 0.04117647059 | E61: ='Transposed data'!M23 -> 430 | F61: ='Transposed data'!M57 -> 0.03073184677 | G61: ='Transposed data'!N23 -> 5380 | H61: ='Transposed data'!N57 -> 0.0306606865
B62: Aged 70+ | C62: ='Transposed data'!L24 -> 42 | D62: ='Transposed data'!L58 -> 0.1206896552 | E62: ='Transposed data'!M24 -> 860 | F62: ='Transposed data'!M58 -> 0.04951920309 | G62: ='Transposed data'!N24 -> 11620 | H62: ='Transposed data'!N58 -> 0.0524209738
B63: Attendance Allowance Claimants (65+) | C63: ='Transposed data'!L32 -> 48 | D63: ='Transposed data'!L66 -> 0.08759124088 | E63: ='Transposed data'!M32 -> 2904 | F63: ='Transposed data'!M66 -> 0.1181640625 | G63: ='Transposed data'!N32 -> 39256 | H63: ='Transposed data'!N66 -> 0.1266334835
B64: Aged 65-69 | C64: ='Transposed data'!L35 -> 5 | D64: ='Transposed data'!L69 -> 0.025 | E64: ='Transposed data'!M35 -> 87 | F64: ='Transposed data'!M69 -> 0.01206824802 | G64: ='Transposed data'!N35 -> 1310 | H64: ='Transposed data'!N69 -> 0.001655380175
B65: Aged 70-79 | C65: ='Transposed data'!L36 -> 18 | D65: ='Transposed data'!L70 -> 0.07692307692 | E65: ='Transposed data'!M36 -> 823 | F65: ='Transposed data'!M70 -> 0.07417755746 | G65: ='Transposed data'!N36 -> 10740 | H65: ='Transposed data'!N70 -> 0.07786332594
B66: Aged 80+ | C66: ='Transposed data'!L37 -> 32 | D66: ='Transposed data'!L71 -> 0.2807017544 | E66: ='Transposed data'!M37 -> 1997 | F66: ='Transposed data'!M71 -> 0.3183992347 | G66: ='Transposed data'!N37 -> 27213 | H66: ='Transposed data'!N71 -> 0.3249973129
B72: Long term health problem or disability | C72: Population aged 50+ is presented instead of 60+ as this age group is not available by long-term health problem or disability
B73: ='Transposed data'!Q130 -> Source: 2011 Census, The Office for National Statistics (ONS), © Crown Copyright
B74: ='Transposed data'!R130 -> 2011 Census | C74: ='Transposed data'!$E$6 -> Aylesford Green | E74: ='Transposed data'!$F$6 -> Ashford | G74: KCC Area
C75: No. | D75: % of people with LTHP or disability | E75: No. | F75: % of people with LTHP or disability | G75: No. | H75: % of people with LTHP or disability
B76: Long term health problem or disability - All people | C76: ='Transposed data'!S127 -> 624 | E76: ='Transposed data'!T127 -> 18381 | G76: ='Transposed data'!U127 -> 243206
B77: Aged 50+ | C77: =SUM('Older People'!C78:C80) -> 395 | D77: =C77/C$76 -> 0.6330128205 | E77: =SUM('Older People'!E78:E80) -> 13383 | F77: =E77/E$76 -> 0.7280887873 | G77: =SUM('Older People'!G78:G80) -> 126657 | H77: =G77/G$76 -> 0.5207807373
B78: Aged 50-64 | C78: ='Transposed data'!S130 -> 135 | D78: =C78/C$76 -> 0.2163461538 | E78: ='Transposed data'!T130 -> 4262 | F78: 0.2318698656 | G78: ='Transposed data'!U130 -> 4274 | H78: =G78/G$76 -> 0.0175735796
B79: Aged 65-84 | C79: ='Transposed data'!S131 -> 205 | D79: 0.328525641 | E79: ='Transposed data'!T131 -> 7177 | F79: 0.3904575377 | G79: ='Transposed data'!U131 -> 97226 | H79: =G79/G$76 -> 0.3997680978
B80: Aged 85+ | C80: ='Transposed data'!S132 -> 55 | D80: 0.08814102564 | E80: ='Transposed data'!T132 -> 1944 | F80: 0.105761384 | G80: ='Transposed data'!U132 -> 25157 | H80: =G80/G$76 -> 0.1034390599
B81: Long term health problem or disability - Males | C81: ='Transposed data'!S128 -> 281 | E81: ='Transposed data'!T128 -> 8347 | G81: ='Transposed data'!U128 -> 112083
B82: Aged 50+ | C82: =SUM('Older People'!C83:C85) -> 172 | D82: =C82/C$81 -> 0.6120996441 | E82: =SUM('Older People'!E83:E85) -> 5861 | F82: =E82/E$81 -> 0.7021684438 | G82: =SUM('Older People'!G83:G85) -> 79430 | H82: =G82/G$81 -> 0.7086712526
B83: Aged 50-64 | C83: ='Transposed data'!S133 -> 69 | D83: =C83/C$81 -> 0.2455516014 | E83: ='Transposed data'!T133 -> 2010 | F83: 0.2408050797 | G83: ='Transposed data'!U133 -> 27120 | H83: =G83/G$81 -> 0.2419635449
B84: Aged 65-84 | C84: ='Transposed data'!S134 -> 89 | D84: 0.3167259786 | E84: ='Transposed data'!T134 -> 3202 | F84: 0.3836108782 | G84: ='Transposed data'!U134 -> 43902 | H84: =G84/G$81 -> 0.3916918712
B85: Aged 85+ | C85: ='Transposed data'!S135 -> 14 | D85: 0.04982206406 | E85: ='Transposed data'!T135 -> 649 | F85: 0.07775248592 | G85: ='Transposed data'!U135 -> 8408 | H85: =G85/G$81 -> 0.07501583648
B86: Long term health problem or disability - Females | C86: ='Transposed data'!S129 -> 343 | E86: ='Transposed data'!T129 -> 10034 | G86: ='Transposed data'!U129 -> 131123
B87: Aged 50+ | C87: =SUM('Older People'!C88:C90) -> 223 | D87: =C87/C$86 -> 0.6501457726 | E87: =SUM('Older People'!E88:E90) -> 7522 | F87: =E87/E$86 -> 0.749651186 | G87: =SUM('Older People'!G88:G90) -> 99605 | H87: =G87/G$86 -> 0.7596302708
B88: Aged 50-64 | C88: ='Transposed data'!S136 -> 66 | D88: =C88/C$86 -> 0.1924198251 | E88: ='Transposed data'!T136 -> 2252 | F88: 0.2244369145 | G88: ='Transposed data'!U136 -> 29532 | H88: =G88/G$86 -> 0.225223645
B89: Aged 65-84 | C89: ='Transposed data'!S137 -> 116 | D89: 0.3381924198 | E89: ='Transposed data'!T137 -> 3975 | F89: 0.3961530795 | G89: ='Transposed data'!U137 -> 53324 | H89: =G89/G$86 -> 0.4066715984
B90: Aged 85+ | C90: ='Transposed data'!S138 -> 41 | D90: 0.1195335277 | E90: ='Transposed data'!T138 -> 1295 | F90: 0.1290611919 | G90: ='Transposed data'!U138 -> 16749 | H90: =G90/G$86 -> 0.1277350274
B96: Providing unpaid care aged 50+ | C96: Population aged 50+ is presented instead of 60+ as this age group is not available by provision of unpaid care
B97: ='Transposed data'!Q143 -> Source: 2011 Census, The Office for National Statistics (ONS), © Crown Copyright
B98: ='Transposed data'!R143 -> 2011 Census | C98: ='Transposed data'!$E$6 -> Aylesford Green | E98: ='Transposed data'!$F$6 -> Ashford | G98: KCC Area
C99: No. | D99: % of unpaid carers | E99: No. | F99: % of unpaid carers | G99: No. | H99: % of unpaid carers
B100: All people providing unpaid care | C100: ='Transposed data'!S143 -> 303 | E100: ='Transposed data'!T143 -> 11819 | G100: ='Transposed data'!U143 -> 151777
B101: All people providing unpaid care aged 50+ | C101: =SUM('Older People'!C102:C103) -> 143 | D101: =C101/C$100 -> 0.4719471947 | E101: =SUM('Older People'!E102:E103) -> 7044 | F101: =E101/E$100 -> 0.5959895084 | G101: =SUM('Older People'!G102:G103) -> 90901 | H101: =G101/G$100 -> 0.598911561
B102: Aged 50-64 | C102: ='Transposed data'!S147 -> 91 | D102: =C102/C$100 -> 0.300330033 | E102: ='Transposed data'!T147 -> 4294 | F102: 0.3633133091 | G102: ='Transposed data'!U147 -> 55706 | H102: =G102/G$100 -> 0.3670253069
B103: Aged 65+ | C103: ='Transposed data'!S148 -> 52 | D103: 0.1716171617 | E103: ='Transposed data'!T148 -> 2750 | F103: 0.2326761993 | G103: ='Transposed data'!U148 -> 35195 | H103: =G103/G$100 -> 0.2318862542
B108: Glossary
B111: Population by age and gender
B112: All numbers are separately rounded to the nearest 100. Percentages are calculated using unrounded data
B113: Source: 2010 Population Estimates for England and Wales
B115: State Pension Claimants
B116: The State Pension is a regular payment you can receive when you reach State Pension age. It is based on your National Insurance contributions.
B117: The State Pension age (formerly aged 60 for females and 65 for males) will rise in the future. From December 2018 the State Pension age for both men and women will start to increase
B118: to reach 66 by October 2020. This will mean women's State Pension age will increase more quickly to 65 between April 2016 and November 2018.
B119: Source: DWP - Note: percentages are based on rounded figures so may exceed 100% in some cases
B121: Pension Credit Claimants
B122: Pension Credit is an income related benefit for pensioners living in Great Britain and is available in two parts:
B123: Guarantee Credit - this tops up weekly income to a guaranteed weekly level
B124: Savings Credit - thi is extra money for people who have an income higher than the Basic State Pension or who have a small amount of savings.
B125: Source: DWP
B127: Disability Benefits Claimants
B128: This data gives a count of the number of people claiming the disability related benefits Disability Living Allowance (DLA) and Attendance Allowance (AA).
B129: Source: Department for Work & Pensions longitudinal Study
B131: Long term health problem or disability
B132: This data shows the number of people who consider themselves to have a long term health problem or disability
B133: Source: 2011 Census, Office for National Statistics
B135: Carers
B136: The 2011 Census gives us data looking at the number of people who provide unpaid care. This section looks particularly at older people (aged 50 and above) who provide unpaid care.
B137: Source: 2011 Census, Office for National Statistics

Sheet Economy
B1: Economy | C1: Includes information about the working age population, employees, economic activity, People in employment, employment by industry and occupation, method of travel to work and distance travelled, unemployment and worklessness and qualifications.
N2: =Profile!F1 -> Version date: 4 November 2019
F5: As of 7 May 2015 new ward boundaries came in to effect in the local authority districts of Canterbury, Folkestone & Hythe, Swale and Tonbridge & Malling. Some data sets are not yet available to the new wards so there will be some gaps in the profiles for these areas at ward level.
B6: =Data!A12&", "&Data!A13 -> Aylesford Green, Ashford
B8: Population aged 16-64
B9: ='Transposed data'!C67 -> Source: 2018 Mid Year Estimates, The Office for National Statistics (ONS), © Crown Copyright - 2018
B10: ='Transposed data'!D67 -> 2018 | C10: Total Persons | E10: Males | G10: Females
C11: No. | D11: % of all people | E11: No. | F11: % of people 16-64 | G11: No. | H11: % of people 16-64
B12: Population aged 16-64 | C12: ='Transposed data'!E67 -> 2550 | D12: ='Transposed data'!E214 -> 0.6238374939 | E12: ='Transposed data'!E68 -> 1170 | F12: ='Transposed data'!E215 -> 0.4586112201 | G12: ='Transposed data'!E69 -> 1380 | H12: ='Transposed data'!E216 -> 0.5413887799
B20: Employees (all employee jobs)
B21: Source: BRES
B22: ='Transposed data'!K7 -> 2017 | C22: ='Transposed data'!L6 -> Aylesford Green | E22: ='Transposed data'!M6 -> Ashford | G22: KCC Area
C23: No. | D23: % of total | E23: No. | F23: % of total | G23: No. | H23: % of total
B24: Total | C24: ='Transposed data'!L7 -> 600 | D24: ='Transposed data'!L10 -> 1 | E24: ='Transposed data'!M7 -> 56500 | F24: ='Transposed data'!M10 -> 1 | G24: ='Transposed data'!N7 -> 612000 | H24: ='Transposed data'!N10 -> 1
B25: Full time | C25: ='Transposed data'!L8 -> 500 | D25: ='Transposed data'!L11 -> 0.8636363636 | E25: ='Transposed data'!M8 -> 37000 | F25: ='Transposed data'!M11 -> 0.6548672566 | G25: ='Transposed data'!N8 -> 396000 | H25: ='Transposed data'!N11 -> 0.6470588235
B26: Part time | C26: ='Transposed data'!L9 -> 100 | D26: ='Transposed data'!L12 -> 0.1636363636 | E26: ='Transposed data'!M9 -> 19500 | F26: ='Transposed data'!M12 -> 0.3451327434 | G26: ='Transposed data'!N9 -> 216000 | H26: ='Transposed data'!N12 -> 0.3529411765
B28: Note: These figures exclude farm agriculture (SIC subclass 01000).
B29: Figures are rounded to nearest 100.
B30: Percentages based on unrounded figures
B36: Economic Activity - aged 16-74
B37: ='Transposed data'!Q151&", Table: "&'Transposed data'!R151 -> Source: 2011 Census, The Office for National Statistics (ONS), © Crown Copyright, Table: KS603
B38: 2011 | C38: ='Transposed data'!L6 -> Aylesford Green | E38: ='Transposed data'!M6 -> Ashford | G38: KCC Area
C39: No. | D39: % of 16-74 | E39: No. | F39: % of 16-74 | G39: No. | H39: % of 16-74
B40: Population aged 16-74 | C40: ='Transposed data'!S151 -> 2027 | D40: =C40/C$40 -> 1 | E40: ='Transposed data'!T151 -> 84252 | F40: =E40/E$40 -> 1 | G40: ='Transposed data'!U151 -> 1055397 | H40: =G40/G$40 -> 1
B41: Total Economically Active | C41: ='Transposed data'!S152 -> 1393 | D41: =C41/C$40 -> 0.6872224963 | E41: ='Transposed data'!T152 -> 61189 | F41: =E41/E$40 -> 0.7262616911 | G41: ='Transposed data'!U152 -> 737908 | H41: =G41/G$40 -> 0.6991757604
B42: Part-time | C42: ='Transposed data'!S153 -> 288 | D42: 0.1420818944 | E42: ='Transposed data'!T153 -> 12334 | F42: 0.1463941509 | G42: ='Transposed data'!U153 -> 149177 | H42: 0.1413468107
B43: Full-time | C43: ='Transposed data'!S154 -> 778 | D43: 0.3838184509 | E43: ='Transposed data'!T154 -> 33223 | F43: 0.394328918 | G43: ='Transposed data'!U154 -> 399625 | H43: 0.3786489823
B44: Self-Employed | C44: ='Transposed data'!S155 -> 132 | D44: 0.06512086828 | E44: ='Transposed data'!T155 -> 10002 | F44: 0.1187152827 | G44: ='Transposed data'!U155 -> 114681 | H44: 0.10866148
B45: Full-time Student | C45: ='Transposed data'!S156 -> 68 | D45: 0.03354711396 | E45: ='Transposed data'!T156 -> 2572 | F45: 0.03052746522 | G45: ='Transposed data'!U156 -> 32884 | H45: 0.03115794341
B46: Unemployed | C46: ='Transposed data'!S157 -> 127 | D46: 0.06265416872 | E46: ='Transposed data'!T157 -> 3058 | F46: 0.03629587428 | G46: ='Transposed data'!U157 -> 41541 | H46: 0.03936054395
B47: Total Economically Inactive | C47: ='Transposed data'!S158 -> 634 | D47: 0.3127775037 | E47: ='Transposed data'!T158 -> 23063 | F47: 0.2737383089 | G47: ='Transposed data'!U158 -> 317489 | H47: 0.3008242396
B48: Retired | C48: ='Transposed data'!S159 -> 237 | D48: 0.116921559 | E48: ='Transposed data'!T159 -> 12141 | F48: 0.1441034041 | G48: ='Transposed data'!U159 -> 159127 | H48: 0.1507745427
B49: Student | C49: ='Transposed data'!S160 -> 68 | D49: 0.03354711396 | E49: ='Transposed data'!T160 -> 2771 | F49: 0.03288942696 | G49: ='Transposed data'!U160 -> 50767 | H49: 0.0481022781
B50: Looking after home/ family | C50: ='Transposed data'!S161 -> 130 | D50: 0.06413418846 | E50: ='Transposed data'!T161 -> 4114 | F50: 0.04882970137 | G50: ='Transposed data'!U161 -> 49761 | H50: 0.04714908229
B51: Permanently sick/disabled | C51: ='Transposed data'!S162 -> 138 | D51: 0.06808090775 | E51: ='Transposed data'!T162 -> 2626 | F51: 0.03116839956 | G51: ='Transposed data'!U162 -> 37471 | H51: 0.03550417521
B52: Other | C52: ='Transposed data'!S163 -> 61 | D52: 0.03009373458 | E52: ='Transposed data'!T163 -> 1411 | F52: 0.01674737692 | G52: ='Transposed data'!U163 -> 20363 | H52: 0.01929416134
B57: People in Employment - aged 16-74
B58: =B37 -> Source: 2011 Census, The Office for National Statistics (ONS), © Crown Copyright, Table: KS603
B59: 2011 | C59: ='Transposed data'!L6 -> Aylesford Green | E59: ='Transposed data'!M6 -> Ashford | G59: KCC Area
C60: No. | D60: % of 16-74 in employment | E60: No. | F60: % of 16-74 in employment | G60: No. | H60: % of 16-74 in employment
B61: Total in Employment | C61: ='Transposed data'!S221 -> 1198 | D61: =C61/C$61 -> 1 | E61: ='Transposed data'!T221 -> 55559 | F61: =E61/E$61 -> 1 | G61: ='Transposed data'!U221 -> 663483 | H61: =G61/G$61 -> 1
B62: Employees | C62: =SUM(C42:C43) -> 1066 | D62: =C62/C$61 -> 0.8898163606 | E62: =SUM(E42:E43) -> 45557 | F62: 0.8199751615 | G62: =SUM(G42:G43) -> 548802 | H62: =G62/G$61 -> 0.8271530695
B63: Part time | C63: =C42 -> 288 | D63: 0.2404006678 | E63: =E42 -> 12334 | F63: 0.2219982361 | G63: =G42 -> 149177 | H63: =G63/G$61 -> 0.2248392197
B64: Full time | C64: =C43 -> 778 | D64: 0.6494156928 | E64: =E43 -> 33223 | F64: 0.5979769254 | G64: =G43 -> 399625 | H64: =G64/G$61 -> 0.6023138498
B65: Self employed | C65: =C44 -> 132 | D65: 0.1101836394 | E65: =E44 -> 10002 | F65: 0.1800248385 | G65: =G44 -> 114681 | H65: =G65/G$61 -> 0.1728469305
B77: Employment by Industry - aged 16-74
B78: ='Transposed data'!Q164&", Table: "&'Transposed data'!R164 -> Source: 2011 Census, The Office for National Statistics (ONS), © Crown Copyright, Table: QS605
B79: 2011 | C79: ='Transposed data'!S6 -> Aylesford Green | E79: ='Transposed data'!T6 -> Ashford | G79: KCC Area
C80: No. | D80: % of total | E80: No. | F80: % of total | G80: No. | H80: % of total
B81: All Industries | C81: ='Transposed data'!S164 -> 1250 | D81: =C81/C$81 -> 1 | E81: ='Transposed data'!T164 -> 57546 | F81: =E81/E$81 -> 1 | G81: ='Transposed data'!U164 -> 688434 | H81: =G81/G$81 -> 1
B82: A Agriculture, forestry and fishing | C82: ='Transposed data'!S165 -> 2 | D82: =C82/C$81 -> 0.0016 | E82: ='Transposed data'!T165 -> 951 | F82: 0.01652590971 | G82: ='Transposed data'!U165 -> 7151 | H82: 0.01038734287
B83: B Mining and quarrying | C83: ='Transposed data'!S166 -> 1 | D83: 0.0008 | E83: ='Transposed data'!T166 -> 47 | F83: 0.000816737914 | G83: ='Transposed data'!U166 -> 610 | H83: 0.0008860689623
B84: C Manufacturing | C84: ='Transposed data'!S167 -> 132 | D84: 0.1056 | E84: ='Transposed data'!T167 -> 4986 | F84: 0.0866437285 | G84: ='Transposed data'!U167 -> 46349 | H84: 0.06732526284
B85: D Electricity, gas, steam and air conditioning supply | C85: ='Transposed data'!S168 -> 7 | D85: 0.0056 | E85: ='Transposed data'!T168 -> 382 | F85: 0.006638167727 | G85: ='Transposed data'!U168 -> 3966 | H85: 0.005760900827
B86: E Water supply, sewerage, waste management and remediation activities | C86: ='Transposed data'!S169 -> 10 | D86: 0.008 | E86: ='Transposed data'!T169 -> 432 | F86: 0.007507037848 | G86: ='Transposed data'!U169 -> 5357 | H86: 0.007781428576
B87: F Construction | C87: ='Transposed data'!S170 -> 122 | D87: 0.0976 | E87: ='Transposed data'!T170 -> 5930 | F87: 0.1030479964 | G87: ='Transposed data'!U170 -> 66876 | H87: 0.09714220971
B88: G Wholesale and retail trade; repair of motor vehicles and motor cycles | C88: ='Transposed data'!S171 -> 229 | D88: 0.1832 | E88: ='Transposed data'!T171 -> 9845 | F88: 0.1710805269 | G88: ='Transposed data'!U171 -> 111960 | H88: 0.1626299689
B89: H Transport and storage | C89: ='Transposed data'!S172 -> 90 | D89: 0.072 | E89: ='Transposed data'!T172 -> 3070 | F89: 0.05334862545 | G89: ='Transposed data'!U172 -> 37834 | H89: 0.05495661167
B90: I Accommodation and food service activities | C90: ='Transposed data'!S173 -> 74 | D90: 0.0592 | E90: ='Transposed data'!T173 -> 2955 | F90: 0.05135022417 | G90: ='Transposed data'!U173 -> 33912 | H90: 0.04925962402
B91: J Information and communication | C91: ='Transposed data'!S174 -> 29 | D91: 0.0232 | E91: ='Transposed data'!T174 -> 1710 | F91: 0.02971535815 | G91: ='Transposed data'!U174 -> 21272 | H91: 0.03089911306
B92: K Financial and insurance activities | C92: ='Transposed data'!S175 -> 17 | D92: 0.0136 | E92: ='Transposed data'!T175 -> 1935 | F92: 0.03362527369 | G92: ='Transposed data'!U175 -> 34447 | H92: 0.05003675007
B93: L Real estate activities | C93: ='Transposed data'!S176 -> 7 | D93: 0.0056 | E93: ='Transposed data'!T176 -> 650 | F93: 0.01129531158 | G93: ='Transposed data'!U176 -> 9455 | H93: 0.01373406892
B94: M Professional, scientific and technical activities | C94: ='Transposed data'!S177 -> 54 | D94: 0.0432 | E94: ='Transposed data'!T177 -> 3519 | F94: 0.06115107914 | G94: ='Transposed data'!U177 -> 44006 | H94: 0.06392188648
B95: N Administrative and support service activities | C95: ='Transposed data'!S178 -> 96 | D95: 0.0768 | E95: ='Transposed data'!T178 -> 3155 | F95: 0.05482570465 | G95: ='Transposed data'!U178 -> 34981 | H95: 0.05081242356
B96: O Public administration and defence; compulsory social security | C96: ='Transposed data'!S179 -> 39 | D96: 0.0312 | E96: ='Transposed data'!T179 -> 2891 | F96: 0.05023807041 | G96: ='Transposed data'!U179 -> 42383 | H96: 0.06156436202
B97: P Education | C97: ='Transposed data'!S180 -> 86 | D97: 0.0688 | E97: ='Transposed data'!T180 -> 5002 | F97: 0.08692176693 | G97: ='Transposed data'!U180 -> 70363 | H97: 0.1022073285
B98: Q Human health and social work activities | C98: ='Transposed data'!S181 -> 194 | D98: =C98/C$81 -> 0.1552 | E98: ='Transposed data'!T181 -> 7255 | F98: =E98/E$81 -> 0.1260730546 | G98: ='Transposed data'!U181 -> 84796 | H98: 0.1231723012
B99: R,S Arts, entertainment and recreation; other service activities | C99: ='Transposed data'!S182 -> 60 | D99: =C99/C$81 -> 0.048 | E99: ='Transposed data'!T182 -> 2725 | F99: =E99/E$81 -> 0.04735342161 | G99: ='Transposed data'!U182 -> 31620 | H99: 0.04593032883
B100: T Activities of households as employers; undifferentiated goods - and services - producing activities of households for own use | C100: ='Transposed data'!S183 -> 0 | D100: =C100/C$81 -> 0 | E100: ='Transposed data'!T183 -> 95 | F100: =E100/E$81 -> 0.00165085323 | G100: ='Transposed data'!U183 -> 883 | H100: 0.001282621137
B101: U Activities of extraterritorial organisations and bodies | C101: ='Transposed data'!S184 -> 1 | D101: =C101/C$81 -> 0.0008 | E101: ='Transposed data'!T184 -> 11 | F101: =E101/E$81 -> 0.0001911514267 | G101: ='Transposed data'!U184 -> 213 | H101: 0.0003093978508
B109: Employment by Occupation - aged 16-74
B110: ='Transposed data'!Q185&", Table: "&'Transposed data'!R185 -> Source: 2011 Census, The Office for National Statistics (ONS), © Crown Copyright, Table: QS606
B111: 2011 | C111: ='Transposed data'!S6 -> Aylesford Green | E111: ='Transposed data'!T6 -> Ashford | G111: KCC Area
C112: No. | D112: % of total | E112: No. | F112: % of total | G112: No. | H112: % of total
B113: Total in Employment | C113: =C81 -> 1250 | D113: =C113/C$113 -> 1 | E113: =E81 -> 57546 | F113: =E113/E$113 -> 1 | G113: =G81 -> 688434 | H113: =G113/G$113 -> 1
B114: Managers and Senior Officials | C114: ='Transposed data'!S185 -> 87 | D114: =C114/C$113 -> 0.0696 | E114: ='Transposed data'!T185 -> 7025 | F114: =E114/E$113 -> 0.122076252 | G114: ='Transposed data'!U185 -> 79504 | H114: =G114/G$113 -> 0.1154852898
B115: Professional Occupations | C115: ='Transposed data'!S186 -> 132 | D115: =C115/C$113 -> 0.1056 | E115: ='Transposed data'!T186 -> 9056 | F115: =E115/E$113 -> 0.1573697564 | G115: ='Transposed data'!U186 -> 110988 | H115: =G115/G$113 -> 0.1612180688
B116: Associate Professional and Technical Occupations | C116: ='Transposed data'!S187 -> 106 | D116: 0.0848 | E116: ='Transposed data'!T187 -> 6704 | F116: 0.1164981059 | G116: ='Transposed data'!U187 -> 87041 | H116: 0.1264333255
B117: Administrative and Secretarial Occupations | C117: ='Transposed data'!S188 -> 106 | D117: 0.0848 | E117: ='Transposed data'!T188 -> 6261 | F117: 0.1087999166 | G117: ='Transposed data'!U188 -> 80621 | H117: 0.1171078128
B118: Skilled Trades Occupations | C118: ='Transposed data'!S189 -> 170 | D118: 0.136 | E118: ='Transposed data'!T189 -> 7600 | F118: 0.1320682584 | G118: ='Transposed data'!U189 -> 84252 | H118: 0.122382102
B119: Personal Service Occupations | C119: ='Transposed data'!S190 -> 167 | D119: 0.1336 | E119: ='Transposed data'!T190 -> 5283 | F119: 0.09180481702 | G119: ='Transposed data'!U190 -> 67451 | H119: 0.09797743865
B120: Sales and Customer Service Occupations | C120: ='Transposed data'!S191 -> 137 | D120: 0.1096 | E120: ='Transposed data'!T191 -> 5185 | F120: 0.09010183158 | G120: ='Transposed data'!U191 -> 58242 | H120: 0.08460070246
B121: Process; Plant and Machine Operatives | C121: ='Transposed data'!S192 -> 122 | D121: 0.0976 | E121: ='Transposed data'!T192 -> 4179 | F121: 0.07262016474 | G121: ='Transposed data'!U192 -> 46284 | H121: 0.06723084566
B122: Elementary Occupations | C122: ='Transposed data'!S193 -> 223 | D122: 0.1784 | E122: ='Transposed data'!T193 -> 6253 | F122: 0.1086608974 | G122: ='Transposed data'!U193 -> 74051 | H122: 0.1075644143
B130: Method of Travel to Work
B131: ='Transposed data'!Q194&", Table: "&'Transposed data'!R194 -> Source: 2011 Census, The Office for National Statistics (ONS), © Crown Copyright, Table: QS701
B132: 2011 | C132: ='Transposed data'!S6 -> Aylesford Green | E132: ='Transposed data'!T6 -> Ashford | G132: KCC Area
C133: No. | D133: % of total | E133: No. | F133: % of total | G133: No. | H133: % of total
B134: Total in Employment | C134: =C113 -> 1250 | D134: =C134/C$134 -> 1 | E134: =E113 -> 57546 | F134: =E134/E$134 -> 1 | G134: =G113 -> 688434 | H134: =G134/G$134 -> 1
B135: Work mainly at or from home | C135: ='Transposed data'!S194 -> 43 | D135: =C135/C$134 -> 0.0344 | E135: ='Transposed data'!T194 -> 3995 | F135: 0.06942272269 | G135: ='Transposed data'!U194 -> 41072 | H135: 0.05966004003
B136: Underground, metro, light rail, tram | C136: ='Transposed data'!S195 -> 0 | D136: 0 | E136: ='Transposed data'!T195 -> 95 | F136: 0.00165085323 | G136: ='Transposed data'!U195 -> 1884 | H136: 0.002736645779
B137: Train | C137: ='Transposed data'!S196 -> 50 | D137: 0.04 | E137: ='Transposed data'!T196 -> 3755 | F137: 0.06525214611 | G137: ='Transposed data'!U196 -> 63247 | H137: 0.09187082567
B138: Bus, minibus or coach | C138: ='Transposed data'!S197 -> 77 | D138: 0.0616 | E138: ='Transposed data'!T197 -> 1507 | F138: 0.02618774546 | G138: ='Transposed data'!U197 -> 25917 | H138: 0.03764631032
B139: Taxi | C139: ='Transposed data'!S198 -> 3 | D139: 0.0024 | E139: ='Transposed data'!T198 -> 151 | F139: 0.002623987766 | G139: ='Transposed data'!U198 -> 2756 | H139: 0.004003288623
B140: Motorcycle, scooter or moped | C140: ='Transposed data'!S199 -> 10 | D140: 0.008 | E140: ='Transposed data'!T199 -> 377 | F140: 0.006551280715 | G140: ='Transposed data'!U199 -> 5991 | H140: 0.008702359268
B141: Driving a car or van | C141: ='Transposed data'!S200 -> 655 | D141: 0.524 | E141: ='Transposed data'!T200 -> 36833 | F141: 0.6400618636 | G141: ='Transposed data'!U200 -> 419206 | H141: 0.6089269269
B142: Passenger in a car or van | C142: ='Transposed data'!S201 -> 103 | D142: 0.0824 | E142: ='Transposed data'!T201 -> 3134 | F142: 0.0544607792 | G142: ='Transposed data'!U201 -> 35285 | H142: 0.05125400547
B143: Bicycle | C143: ='Transposed data'!S202 -> 73 | D143: 0.0584 | E143: ='Transposed data'!T202 -> 1465 | F143: 0.02545789455 | G143: ='Transposed data'!U202 -> 11948 | H143: 0.01735533108
B144: On foot | C144: ='Transposed data'!S203 -> 231 | D144: 0.1848 | E144: ='Transposed data'!T203 -> 5920 | F144: 0.1028742224 | G144: ='Transposed data'!U203 -> 77057 | H144: 0.1119308459
B145: Other method of travel to work | C145: ='Transposed data'!S204 -> 5 | D145: 0.004 | E145: ='Transposed data'!T204 -> 314 | F145: 0.005456504362 | G145: ='Transposed data'!U204 -> 4071 | H145: 0.005913420894
B148: Distance Travelled to Work
B149: ='Transposed data'!Q205 -> Source: 2011 Census, The Office for National Statistics (ONS), © Crown Copyright
B150: ='Transposed data'!R205 -> 2011 | C150: ='Transposed data'!S6 -> Aylesford Green | E150: ='Transposed data'!T6 -> Ashford | G150: KCC Area
C151: No. | D151: % of total | E151: No. | F151: % of total | G151: No. | H151: % of total
B152: Total in Employment | C152: ='Transposed data'!S221 -> 1198 | D152: =C152/C$152 -> 1 | E152: ='Transposed data'!T221 -> 55559 | F152: =E152/E$152 -> 1 | G152: ='Transposed data'!U221 -> 663483 | H152: =G152/G$152 -> 1
B153: Less than 2km | C153: ='Transposed data'!S205 -> 480 | D153: =C153/C$152 -> 0.4006677796 | E153: ='Transposed data'!T205 -> 9451 | F153: =E153/E$152 -> 0.1701074533 | G153: ='Transposed data'!U205 -> 114309 | H153: =G153/G$152 -> 0.172286253
B154: 2km to less than 5km | C154: ='Transposed data'!S206 -> 206 | D154: =C154/C$152 -> 0.1719532554 | E154: ='Transposed data'!T206 -> 10813 | F154: =E154/E$152 -> 0.1946219334 | G154: ='Transposed data'!U206 -> 99394 | H154: =G154/G$152 -> 0.1498064005
B155: 5km to less than 10km | C155: ='Transposed data'!S207 -> 42 | D155: 0.03505843072 | E155: ='Transposed data'!T207 -> 5025 | F155: 0.09044439245 | G155: ='Transposed data'!U207 -> 84633 | H155: 0.1275586564
B156: 10km to less than 20 km | C156: ='Transposed data'!S208 -> 101 | D156: 0.08430717863 | E156: ='Transposed data'!T208 -> 5994 | F156: 0.1078853111 | G156: ='Transposed data'!U208 -> 92759 | H156: 0.1398061442
B157: 20km to less than 40km | C157: ='Transposed data'!S209 -> 133 | D157: 0.1110183639 | E157: ='Transposed data'!T209 -> 7339 | F157: 0.1320938102 | G157: ='Transposed data'!U209 -> 90348 | H157: 0.1361722908
B158: 40km to less than 60km | C158: ='Transposed data'!S210 -> 24 | D158: 0.02003338898 | E158: ='Transposed data'!T210 -> 1310 | F158: 0.02357853813 | G158: ='Transposed data'!U210 -> 33558 | H158: 0.05057853781
B159: 60km and over | C159: ='Transposed data'!S211 -> 72 | D159: 0.06010016694 | E159: ='Transposed data'!T211 -> 4917 | F159: 0.08850051297 | G159: ='Transposed data'!U211 -> 31595 | H159: 0.04761990887
B160: Working at or from home | C160: ='Transposed data'!S212 -> 88 | D160: 0.0734557596 | E160: ='Transposed data'!T212 -> 7206 | F160: 0.1296999586 | G160: ='Transposed data'!U212 -> 76873 | H160: 0.1158628028
B161: Other | C161: ='Transposed data'!S213 -> 104 | D161: 0.08681135225 | E161: ='Transposed data'!T213 -> 5491 | F161: 0.09883187242 | G161: ='Transposed data'!U213 -> 64965 | H161: 0.09791509353
B171: Annual Average Unemployment - Aged 16-64
B172: Source: Claimant Count
C173: ='Transposed data'!L6 -> Aylesford Green | E173: ='Transposed data'!M6 -> Ashford | G173: KCC Area
C174: No. | D174: % of 16-64 | E174: No. | F174: % of 16-64 | G174: No. | H174: % of 16-64
B175: ='Transposed data'!K128 -> 2014 | C175: ='Transposed data'!L128 -> 80 | D175: =IF(ISERROR(('Transposed data'!L135/100)),"-",('Transposed data'!L135/100)) -> 0.035 | E175: ='Transposed data'!M128 -> 1245 | F175: ='Transposed data'!M135/100 -> 0.017 | G175: ='Transposed data'!N128 -> 18540 | H175: ='Transposed data'!N135/100 -> 0.02
B176: ='Transposed data'!K129 -> 2015 | C176: ='Transposed data'!L129 -> 65 | D176: =IF(ISERROR(('Transposed data'!L136/100)),"-",('Transposed data'!L136/100)) -> 0.03 | E176: ='Transposed data'!M129 -> 995 | F176: ='Transposed data'!M136/100 -> 0.013 | G176: ='Transposed data'!N129 -> 13940 | H176: ='Transposed data'!N136/100 -> 0.015
B177: ='Transposed data'!K130 -> 2016 | C177: ='Transposed data'!L130 -> 70 | D177: =IF(ISERROR(('Transposed data'!L137/100)),"-",('Transposed data'!L137/100)) -> 0.03 | E177: ='Transposed data'!M130 -> 1100 | F177: ='Transposed data'!M137/100 -> 0.015 | G177: ='Transposed data'!N130 -> 14765 | H177: ='Transposed data'!N137/100 -> 0.016
B178: ='Transposed data'!K131 -> 2017 | C178: ='Transposed data'!L131 -> 70 | D178: =IF(ISERROR(('Transposed data'!L138/100)),"-",('Transposed data'!L138/100)) -> 0.02913025385 | E178: ='Transposed data'!M131 -> 1255 | F178: ='Transposed data'!M138/100 -> 0.017 | G178: ='Transposed data'!N131 -> 15770 | H178: ='Transposed data'!N138/100 -> 0.017
B179: ='Transposed data'!K132 -> 2018 | C179: ='Transposed data'!L132 -> 75 | D179: =IF(ISERROR(('Transposed data'!L139/100)),"-",('Transposed data'!L139/100)) -> 0.02995207668 | E179: ='Transposed data'!M132 -> 1425 | F179: ='Transposed data'!M139/100 -> 0.01859366641 | G179: ='Transposed data'!N132 -> 18385 | H179: ='Transposed data'!N139/100 -> 0.01946068962
B189: Annual average unemployment rate by age group
B190: Source: Claimant Count
B191: ='Transposed data'!K140 -> 2018 | C191: ='Transposed data'!L6 -> Aylesford Green | E191: ='Transposed data'!M6 -> Ashford | G191: KCC Area
C192: No. | D192: % of age group | E192: No. | F192: % of age group | G192: No. | H192: % of age group
B193: 16-64 | C193: ='Transposed data'!L124 -> 70 | D193: =IF(ISERROR(('Transposed data'!L125/100)),"-",('Transposed data'!L125/100)) -> 0.02913025385 | E193: ='Transposed data'!M124 -> 1255 | F193: ='Transposed data'!M125/100 -> 0.017 | G193: ='Transposed data'!N124 -> 15770 | H193: ='Transposed data'!N125/100 -> 0.017
B194: 24 and under | C194: ='Transposed data'!L140 -> 20 | D194: ='Transposed data'!L156 -> 0.04338394794 | E194: ='Transposed data'!M140 -> 340 | F194: ='Transposed data'!M156 -> 0.02819470935 | G194: ='Transposed data'!N140 -> 3885 | H194: ='Transposed data'!N156 -> 0.0238765426
B195: 25-49 | C195: ='Transposed data'!L141 -> 40 | D195: ='Transposed data'!L157 -> 0.0272479564 | E195: ='Transposed data'!M141 -> 690 | F195: ='Transposed data'!M157 -> 0.01723147616 | G195: ='Transposed data'!N141 -> 9230 | H195: ='Transposed data'!N157 -> 0.01918340625
B196: 50-64 | C196: ='Transposed data'!L142 -> 15 | D196: ='Transposed data'!L158 -> 0.02608695652 | E196: ='Transposed data'!M142 -> 400 | F196: ='Transposed data'!M158 -> 0.0163019114 | G196: ='Transposed data'!N142 -> 5265 | H196: ='Transposed data'!N158 -> 0.01749936849
B205: Annual average unemployment rate by gender and age group
B206: Source: Claimant Count
B207: ='Transposed data'!K162 -> 2018 | C207: Total | E207: Male | G207: Female
C208: No. | D208: % of age group | E208: No. | F208: % of males in age group | G208: No. | H208: % of females in age group
B209: 16-64 | C209: ='Transposed data'!L124 -> 70 | D209: =IF(ISERROR(('Transposed data'!L125/100)),"-",('Transposed data'!L125/100)) -> 0.02913025385 | E209: ='Transposed data'!L148 -> 45 | F209: ='Transposed data'!L162 -> 0.03947368421 | G209: ='Transposed data'!L152 -> 30 | H209: ='Transposed data'!L166 -> 0.0219941349
B210: 24 and under | C210: ='Transposed data'!L140 -> 20 | D210: ='Transposed data'!L156 -> 0.04338394794 | E210: ='Transposed data'!L149 -> 15 | F210: ='Transposed data'!L163 -> 0.07352941176 | G210: ='Transposed data'!L153 -> 5 | H210: ='Transposed data'!L167 -> 0.01945525292
B211: 25-49 | C211: ='Transposed data'!L141 -> 40 | D211: ='Transposed data'!L157 -> 0.0272479564 | E211: ='Transposed data'!L150 -> 25 | F211: ='Transposed data'!L164 -> 0.03714710253 | G211: ='Transposed data'!L154 -> 15 | H211: ='Transposed data'!L168 -> 0.01886792453
B212: 50-64 | C212: ='Transposed data'!L142 -> 15 | D212: ='Transposed data'!L158 -> 0.02608695652 | E212: ='Transposed data'!L151 -> 10 | F212: ='Transposed data'!L165 -> 0.03802281369 | G212: ='Transposed data'!L155 -> 5 | H212: ='Transposed data'!L169 -> 0.01602564103
B220: Worklessness - 16-64 claiming out of work benefits
B221: Source: DWP
B222: ='Transposed data'!K76 -> Nov 2016 | C222: ='Transposed data'!L6 -> Aylesford Green | E222: ='Transposed data'!M6 -> Ashford | G222: KCC Area
C223: No. | D223: % of total out of work claimants | E223: No. | F223: % of total out of work claimants | G223: No. | H223: % of total out of work claimants
B224: Total out of work benefits | C224: ='Transposed data'!L42 -> 300 | D224: =IF(ISERROR((C224/C$224)),"-",(C224/C$224)) -> 1 | E224: ='Transposed data'!M42 -> 5090 | F224: =E224/E$224 -> 1 | G224: ='Transposed data'!N42 -> 69130 | H224: =G224/G$224 -> 1
B225: Jobseekers | C225: ='Transposed data'!L43 -> 45 | D225: ='Transposed data'!L77 -> 0.15 | E225: ='Transposed data'!M43 -> 780 | F225: ='Transposed data'!M77 -> 0.1532416503 | G225: ='Transposed data'!N43 -> 10380 | H225: ='Transposed data'!N77 -> 0.1501518877
B226: Incapacity benefits | C226: ='Transposed data'!L44 -> 205 | D226: ='Transposed data'!L78 -> 0.6833333333 | E226: ='Transposed data'!M44 -> 3420 | F226: ='Transposed data'!M78 -> 0.6719056974 | G226: ='Transposed data'!N44 -> 47250 | H226: ='Transposed data'!N78 -> 0.6834948647
B227: Lone parents claiming Income Support | C227: ='Transposed data'!L45 -> 45 | D227: ='Transposed data'!L79 -> 0.15 | E227: ='Transposed data'!M45 -> 770 | F227: ='Transposed data'!M79 -> 0.1512770138 | G227: ='Transposed data'!N45 -> 9920 | H227: ='Transposed data'!N79 -> 0.1434977578
B228: Others on income related benefits | C228: ='Transposed data'!L46 -> 5 | D228: ='Transposed data'!L80 -> 0.01666666667 | E228: ='Transposed data'!M46 -> 110 | F228: ='Transposed data'!M80 -> 0.02161100196 | G228: ='Transposed data'!N46 -> 1550 | H228: ='Transposed data'!N80 -> 0.02242152466
B236: Qualifications - People aged 16 and over
B237: ='Transposed data'!Q214&", Table: "&'Transposed data'!R214 -> Source: 2011 Census, The Office for National Statistics (ONS), © Crown Copyright, Table: QS501
B238: 2011 | C238: ='Transposed data'!S6 -> Aylesford Green | E238: ='Transposed data'!T6 -> Ashford | G238: KCC Area
C239: No. | D239: % of 16+ | E239: No. | F239: % of 16+ | G239: No. | H239: % of 16+
B240: ALL PEOPLE aged 16+ | C240: ='Transposed data'!S8 -> 2224 | D240: =C240/C$240 -> 1 | E240: ='Transposed data'!T8 -> 92512 | F240: =E240/E$240 -> 1 | G240: ='Transposed data'!U8 -> 1154344 | H240: =G240/G$240 -> 1
B241: No qualifications | C241: ='Transposed data'!S214 -> 706 | D241: =C241/C$240 -> 0.3174460432 | E241: ='Transposed data'!T214 -> 19777 | F241: 0.2137776721 | G241: ='Transposed data'!U214 -> 265326 | H241: 0.2298500274
B242: Level 1 qualifications | C242: ='Transposed data'!S215 -> 424 | D242: 0.190647482 | E242: ='Transposed data'!T215 -> 14578 | F242: 0.1575795572 | G242: ='Transposed data'!U215 -> 173165 | H242: 0.1500116083
B243: Level 2 qualifications | C243: ='Transposed data'!S216 -> 374 | D243: 0.1681654676 | E243: ='Transposed data'!T216 -> 16639 | F243: 0.1798577482 | G243: ='Transposed data'!U216 -> 199627 | H243: 0.1729354508
B244: Apprenticeship | C244: ='Transposed data'!S217 -> 69 | D244: 0.03102517986 | E244: ='Transposed data'!T217 -> 3602 | F244: 0.03893548945 | G244: ='Transposed data'!U217 -> 44992 | H244: 0.03897624971
B245: Level 3 qualifications | C245: ='Transposed data'!S218 -> 252 | D245: 0.1133093525 | E245: ='Transposed data'!T218 -> 11229 | F245: 0.1213788481 | G245: ='Transposed data'!U218 -> 145519 | H245: 0.1260620751
B246: Level 4 qualifications and above | C246: ='Transposed data'!S219 -> 280 | D246: 0.1258992806 | E246: ='Transposed data'!T219 -> 23007 | F246: 0.2486920616 | G246: ='Transposed data'!U219 -> 291211 | H246: 0.2522740188
B247: Other qualifications | C247: ='Transposed data'!S220 -> 119 | D247: 0.05350719424 | E247: ='Transposed data'!T220 -> 4579 | F247: 0.04949628156 | G247: ='Transposed data'!U220 -> 60346 | H247: 0.05227731075
B257: Glossary
B259: Population by age and gender
B260: All numbers are separately rounded to the nearest 100. Percentages are calculated using unrounded data
B261: Source: 2010 Population Estimates for England and Wales
B263: Employees
B264: The Business Register and Employment Survey (BRES) was introduced in 2008, replacing the Annual Business Inquiry as the source of employee data from the Office for National Statistics (ONS).
B265: It counts the number of employee jobs as opposed to the number of actual emloyees in a workplace.
B266: All data is rounded to the nearest hundred. Ward level statistics for part time employees may be suppressed due to the small numbers.
B267: Source: BRES
B269: Economic Activity - aged 16-74
B270: This shows the number of people aged 16-74 who were economically active (working or unemployed and available for work) and those who were economically inactive (not working or available for work)
B271: as at the time of the 2001 Census.
B272: Source: 2011 Census
B274: People in Employment
B275: This shows the number of people aged 16-74 who were in employment at the time of the 2001 Census.
B276: The industry of employment, occupations of those in employment are shown. As well as distance travelled to place of work and method of travel.
B277: Source: 2011 Census
B279: Annual Average Unemployment
B280: This looks at people aged 16-64 who are claiming Jobseekers Allowance or Universal Credit
B281: This includes a breakdown by age and gender.
B282: Figures are released on a monthly basis. Monthly figures for Kent at ward and district level are available from | H282: www.kent.gov.uk/research
B283: Source: NOMIS; Claimant Count
B285: Worklessness
B286: For statistical purposes benefits claimants can be grouped into Staistical Groups to indicate the main reasons why people are claiming benefits.
B287: One of these groups shows those claiming out of work benefits, this is grouping may be used as an indication of worklessness.
B288: Worklessness is defined as those who are jobseekers, those on incapacity benefits, lone parents who are claiming income Support and others on income related benefits.
B289: Source: DWP
B291: Qualifications
B292: This looks at people aged 16-74 and the qualifications that they hold.
B293: Level 1: equivalent to 3-4 GCSEs at grades D-E
B294: Level 2: equivalent to 4-5 GCSEs at grade A*-C
B295: Level 3: equivalent to 2 or more A levels
B296: Level 4/5 - equivalent to Degree and above
B297: Source: 2011 Census

Sheet IMDDatasheet (hidden)
A1: DataSheet3 - IMD | N1: DataSheet3 - IMD | P1: within top 10% most deprived? (1 to 3284)
C2: var1 | D2: var2 | E2: var3 | F2: var4 | G2: var5 | H2: var6 | I2: var7 | J2: var8 | P2: var9 | Q2: var10 | R2: var11 | S2: var12 | T2: var13 | U2: var14 | V2: var15 | W2: var16
A3: Ward Index | B3: LSOACode | C3: IMD 2019 Rank | D3: Income Rank | E3: Employment Rank | F3: Health Deprivation & Disability Rank | G3: Education, Skills & Training Rank | H3: Barriers to Housing & Services Rank | I3: Crime Rank | J3: Living Environment Rank | K3: Income Deprivation Affecting Children Index (IDACI) | L3: Income Deprivation Affecting Older People (IDAOPI) | N3: Ward Index | O3: LSOACode | P3: IMD 2019 Rank | Q3: Income Rank | R3: Employment Rank | S3: Health Deprivation & Disability Rank | T3: Education, Skills & Training Rank | U3: Barriers to Housing & Services Rank | V3: Crime Rank | W3: Living Environment Rank | X3: Income Deprivation Affecting Children Index (IDACI) | Y3: Income Deprivation Affecting Older People (IDAOPI)
A4: 1 | B4: Ashford 005A | C4: 5590 | D4: 5330 | E4: 5474 | F4: 12107 | G4: 4946 | H4: 4959 | I4: 2900 | J4: 28269 | K4: 7292 | L4: 4609 | N4: 1 | O4: Ashford 005A | P4: No | Q4: No | R4: No | S4: No | T4: No | U4: No | V4: Yes | W4: No | X4: No | Y4: No
A5: 1 | B5: Ashford 006A | C5: 9263 | D5: 8318 | E5: 8811 | F5: 11868 | G5: 4173 | H5: 15399 | I5: 7751 | J5: 29977 | K5: 9848 | L5: 7707 | N5: 1 | O5: Ashford 006A | P5: No | Q5: No | R5: No | S5: No | T5: No | U5: No | V5: No | W5: No | X5: No | Y5: No
A7: 2 | B7: Ashford 008A | C7: 4412 | D7: 5534 | E7: 5080 | F7: 12391 | G7: 1885 | H7: 12451 | I7: 668 | J7: 22967 | K7: 8011 | L7: 4248 | N7: 2 | O7: Ashford 008A | P7: No | Q7: No | R7: No | S7: No | T7: Yes | U7: No | V7: Yes | W7: No | X7: No | Y7: No
A8: 2 | B8: Ashford 007B | C8: 4761 | D8: 4300 | E8: 5395 | F8: 8990 | G8: 2136 | H8: 16979 | I8: 1691 | J8: 30605 | K8: 1499 | L8: 6898 | N8: 2 | O8: Ashford 007B | P8: No | Q8: No | R8: No | S8: No | T8: Yes | U8: No | V8: Yes | W8: No | X8: Yes | Y8: No
A9: 2 | B9: Ashford 007A | C9: 5422 | D9: 5834 | E9: 5468 | F9: 12440 | G9: 1367 | H9: 18822 | I9: 2252 | J9: 30444 | K9: 5069 | L9: 8618 | N9: 2 | O9: Ashford 007A | P9: No | Q9: No | R9: No | S9: No | T9: Yes | U9: No | V9: Yes | W9: No | X9: No | Y9: No
A10: 2 | B10: Ashford 007C | C10: 18411 | D10: 18156 | E10: 19853 | F10: 20181 | G10: 10186 | H10: 14521 | I10: 7583 | J10: 30385 | K10: 13925 | L10: 25587 | N10: 2 | O10: Ashford 007C | P10: No | Q10: No | R10: No | S10: No | T10: No | U10: No | V10: No | W10: No | X10: No | Y10: No
A12: 3 | B12: Ashford 011A | C12: 13841 | D12: 21802 | E12: 25326 | F12: 26402 | G12: 18979 | H12: 897 | I12: 21366 | J12: 797 | K12: 18441 | L12: 25360 | N12: 3 | O12: Ashford 011A | P12: No | Q12: No | R12: No | S12: No | T12: No | U12: Yes | V12: No | W12: Yes | X12: No | Y12: No
A13: 3 | B13: Ashford 011B | C13: 19579 | D13: 18604 | E13: 16937 | F13: 25043 | G13: 8646 | H13: 13842 | I13: 21417 | J13: 25470 | K13: 18777 | L13: 19328 | N13: 3 | O13: Ashford 011B | P13: No | Q13: No | R13: No | S13: No | T13: No | U13: No | V13: No | W13: No | X13: No | Y13: No
A15: 4 | B15: Ashford 004A | C15: 15304 | D15: 13704 | E15: 13080 | F15: 16325 | G15: 8823 | H15: 20015 | I15: 9581 | J15: 31163 | K15: 8412 | L15: 26710 | N15: 4 | O15: Ashford 004A | P15: No | Q15: No | R15: No | S15: No | T15: No | U15: No | V15: No | W15: No | X15: No | Y15: No
A16: 4 | B16: Ashford 004B | C16: 7567 | D16: 8782 | E16: 9960 | F16: 15570 | G16: 10240 | H16: 30 | I16: 7467 | J16: 29051 | K16: 7027 | L16: 11621 | N16: 4 | O16: Ashford 004B | P16: No | Q16: No | R16: No | S16: No | T16: No | U16: Yes | V16: No | W16: No | X16: No | Y16: No
A18: 5 | B18: Ashford 001G | C18: 28481 | D18: 29981 | E18: 29920 | F18: 32116 | G18: 27156 | H18: 6327 | I18: 20697 | J18: 21516 | K18: 28130 | L18: 29321 | N18: 5 | O18: Ashford 001G | P18: No | Q18: No | R18: No | S18: No | T18: No | U18: No | V18: No | W18: No | X18: No | Y18: No
A19: 5 | B19: Ashford 001F | C19: 9569 | D19: 5175 | E19: 7175 | F19: 10106 | G19: 10463 | H19: 11401 | I19: 22015 | J19: 31547 | K19: 4035 | L19: 7938 | N19: 5 | O19: Ashford 001F | P19: No | Q19: No | R19: No | S19: No | T19: No | U19: No | V19: No | W19: No | X19: No | Y19: No
A21: 6 | B21: Ashford 003A | C21: 26424 | D21: 24813 | E21: 27438 | F21: 24871 | G21: 18992 | H21: 27177 | I21: 11354 | J21: 20390 | K21: 21180 | L21: 25351 | N21: 6 | O21: Ashford 003A | P21: No | Q21: No | R21: No | S21: No | T21: No | U21: No | V21: No | W21: No | X21: No | Y21: No
A22: 6 | B22: Ashford 004C | C22: 5798 | D22: 4061 | E22: 4848 | F22: 8517 | G22: 5142 | H22: 17156 | I22: 4714 | J22: 27276 | K22: 4225 | L22: 9829 | N22: 6 | O22: Ashford 004C | P22: No | Q22: No | R22: No | S22: No | T22: No | U22: No | V22: No | W22: No | X22: No | Y22: No
A24: 7 | B24: Ashford 002B | C24: 12622 | D24: 9804 | E24: 9452 | F24: 18237 | G24: 8722 | H24: 28066 | I24: 11036 | J24: 16894 | K24: 6209 | L24: 16077 | N24: 7 | O24: Ashford 002B | P24: No | Q24: No | R24: No | S24: No | T24: No | U24: No | V24: No | W24: No | X24: No | Y24: No
A25: 7 | B25: Ashford 002A | C25: 15373 | D25: 18840 | E25: 14843 | F25: 22529 | G25: 18413 | H25: 3574 | I25: 11416 | J25: 10761 | K25: 20995 | L25: 20124 | N25: 7 | O25: Ashford 002A | P25: No | Q25: No | R25: No | S25: No | T25: No | U25: No | V25: No | W25: No | X25: No | Y25: No
A27: 8 | B27: Ashford 001C | C27: 16586 | D27: 20263 | E27: 22782 | F27: 27083 | G27: 24924 | H27: 500 | I27: 15098 | J27: 10288 | K27: 14100 | L27: 27300 | N27: 8 | O27: Ashford 001C | P27: No | Q27: No | R27: No | S27: No | T27: No | U27: Yes | V27: No | W27: No | X27: No | Y27: No
A28: 8 | B28: Ashford 001B | C28: 17291 | D28: 17428 | E28: 18768 | F28: 21668 | G28: 14678 | H28: 2859 | I28: 19753 | J28: 21702 | K28: 16742 | L28: 19131 | N28: 8 | O28: Ashford 001B | P28: No | Q28: No | R28: No | S28: No | T28: No | U28: Yes | V28: No | W28: No | X28: No | Y28: No
A30: 9 | B30: Ashford 002D | C30: 5951 | D30: 10782 | E30: 6698 | F30: 10969 | G30: 8512 | H30: 238 | I30: 8831 | J30: 8867 | K30: 15053 | L30: 13916 | N30: 9 | O30: Ashford 002D | P30: No | Q30: No | R30: No | S30: No | T30: No | U30: Yes | V30: No | W30: No | X30: No | Y30: No
A31: 9 | B31: Ashford 002C | C31: 18048 | D31: 27391 | E31: 27525 | F31: 25285 | G31: 26316 | H31: 120 | I31: 18107 | J31: 9639 | K31: 27499 | L31: 28900 | N31: 9 | O31: Ashford 002C | P31: No | Q31: No | R31: No | S31: No | T31: No | U31: Yes | V31: No | W31: No | X31: No | Y31: No
A33: 10 | B33: Ashford 004E | C33: 13465 | D33: 12320 | E33: 14942 | F33: 15253 | G33: 16193 | H33: 9353 | I33: 13332 | J33: 7143 | K33: 11741 | L33: 11690 | N33: 10 | O33: Ashford 004E | P33: No | Q33: No | R33: No | S33: No | T33: No | U33: No | V33: No | W33: No | X33: No | Y33: No
A34: 10 | B34: Ashford 004J | C34: 26786 | D34: 22985 | E34: 28807 | F34: 30690 | G34: 22309 | H34: 9361 | I34: 16881 | J34: 27989 | K34: 21472 | L34: 19702 | N34: 10 | O34: Ashford 004J | P34: No | Q34: No | R34: No | S34: No | T34: No | U34: No | V34: No | W34: No | X34: No | Y34: No
A35: 10 | B35: Ashford 004F | C35: 26131 | D35: 22295 | E35: 27769 | F35: 30298 | G35: 20129 | H35: 8907 | I35: 23369 | J35: 23293 | K35: 27435 | L35: 12128 | N35: 10 | O35: Ashford 004F | P35: No | Q35: No | R35: No | S35: No | T35: No | U35: No | V35: No | W35: No | X35: No | Y35: No
A36: 10 | B36: Ashford 004I | C36: 21636 | D36: 18371 | E36: 26555 | F36: 26790 | G36: 21181 | H36: 2551 | I36: 19374 | J36: 29797 | K36: 14810 | L36: 17263 | N36: 10 | O36: Ashford 004I | P36: No | Q36: No | R36: No | S36: No | T36: No | U36: Yes | V36: No | W36: No | X36: No | Y36: No
A38: 11 | B38: Ashford 012F | C38: 20820 | D38: 17176 | E38: 22317 | F38: 29496 | G38: 20548 | H38: 8249 | I38: 11916 | J38: 18552 | K38: 16417 | L38: 19451 | N38: 11 | O38: Ashford 012F | P38: No | Q38: No | R38: No | S38: No | T38: No | U38: No | V38: No | W38: No | X38: No | Y38: No
A39: 11 | B39: Ashford 012E | C39: 26358 | D39: 20816 | E39: 27689 | F39: 28770 | G39: 15598 | H39: 19107 | I39: 16182 | J39: 31958 | K39: 16954 | L39: 25338 | N39: 11 | O39: Ashford 012E | P39: No | Q39: No | R39: No | S39: No | T39: No | U39: No | V39: No | W39: No | X39: No | Y39: No
A41: 12 | B41: Ashford 006B | C41: 28263 | D41: 28297 | E41: 25828 | F41: 21945 | G41: 18191 | H41: 25577 | I41: 27062 | J41: 19589 | K41: 28538 | L41: 24938 | N41: 12 | O41: Ashford 006B | P41: No | Q41: No | R41: No | S41: No | T41: No | U41: No | V41: No | W41: No | X41: No | Y41: No
A42: 12 | B42: Ashford 006C | C42: 29803 | D42: 30129 | E42: 28236 | F42: 30045 | G42: 22870 | H42: 10880 | I42: 26809 | J42: 27490 | K42: 26929 | L42: 29976 | N42: 12 | O42: Ashford 006C | P42: No | Q42: No | R42: No | S42: No | T42: No | U42: No | V42: No | W42: No | X42: No | Y42: No
A44: 13 | B44: Ashford 014B | C44: 12096 | D44: 16045 | E44: 16487 | F44: 22789 | G44: 16364 | H44: 1605 | I44: 19779 | J44: 2099 | K44: 13660 | L44: 20800 | N44: 13 | O44: Ashford 014B | P44: No | Q44: No | R44: No | S44: No | T44: No | U44: Yes | V44: No | W44: Yes | X44: No | Y44: No
A45: 13 | B45: Ashford 014A | C45: 10890 | D45: 14773 | E45: 14583 | F45: 29015 | G45: 12951 | H45: 85 | I45: 28334 | J45: 4288 | K45: 12959 | L45: 16977 | N45: 13 | O45: Ashford 014A | P45: No | Q45: No | R45: No | S45: No | T45: No | U45: Yes | V45: No | W45: No | X45: No | Y45: No
A47: 14 | B47: Ashford 003B | C47: 28888 | D47: 24421 | E47: 22773 | F47: 28973 | G47: 23508 | H47: 26963 | I47: 19151 | J47: 30521 | K47: 21575 | L47: 29875 | N47: 14 | O47: Ashford 003B | P47: No | Q47: No | R47: No | S47: No | T47: No | U47: No | V47: No | W47: No | X47: No | Y47: No
A49: 15 | B49: Ashford 003D | C49: 21854 | D49: 16809 | E49: 19383 | F49: 25208 | G49: 18052 | H49: 9449 | I49: 21384 | J49: 31967 | K49: 15514 | L49: 22185 | N49: 15 | O49: Ashford 003D | P49: No | Q49: No | R49: No | S49: No | T49: No | U49: No | V49: No | W49: No | X49: No | Y49: No
A50: 15 | B50: Ashford 003E | C50: 21106 | D50: 17313 | E50: 20578 | F50: 19100 | G50: 18789 | H50: 13795 | I50: 14440 | J50: 27043 | K50: 15028 | L50: 20116 | N50: 15 | O50: Ashford 003E | P50: No | Q50: No | R50: No | S50: No | T50: No | U50: No | V50: No | W50: No | X50: No | Y50: No
A52: 16 | B52: Ashford 009A | C52: 7994 | D52: 6913 | E52: 6439 | F52: 12222 | G52: 4728 | H52: 14293 | I52: 8584 | J52: 22878 | K52: 9833 | L52: 5235 | N52: 16 | O52: Ashford 009A | P52: No | Q52: No | R52: No | S52: No | T52: No | U52: No | V52: No | W52: No | X52: No | Y52: No
A53: 16 | B53: Ashford 005B | C53: 12513 | D53: 12530 | E53: 15588 | F53: 17719 | G53: 8539 | H53: 14847 | I53: 5498 | J53: 10590 | K53: 13208 | L53: 5357 | N53: 16 | O53: Ashford 005B | P53: No | Q53: No | R53: No | S53: No | T53: No | U53: No | V53: No | W53: No | X53: No | Y53: No
A55: 17 | B55: Ashford 006F | C55: 15479 | D55: 13184 | E55: 12243 | F55: 16013 | G55: 13443 | H55: 20955 | I55: 14826 | J55: 15488 | K55: 14362 | L55: 16046 | N55: 17 | O55: Ashford 006F | P55: No | Q55: No | R55: No | S55: No | T55: No | U55: No | V55: No | W55: No | X55: No | Y55: No
A56: 17 | B56: Ashford 006D | C56: 22183 | D56: 20610 | E56: 15235 | F56: 27347 | G56: 12970 | H56: 19102 | I56: 26197 | J56: 23320 | K56: 18875 | L56: 26853 | N56: 17 | O56: Ashford 006D | P56: No | Q56: No | R56: No | S56: No | T56: No | U56: No | V56: No | W56: No | X56: No | Y56: No
A57: 17 | B57: Ashford 006E | C57: 23738 | D57: 28429 | E57: 30434 | F57: 27484 | G57: 25156 | H57: 852 | I57: 22701 | J57: 27193 | K57: 24612 | L57: 26162 | N57: 17 | O57: Ashford 006E | P57: No | Q57: No | R57: No | S57: No | T57: No | U57: Yes | V57: No | W57: No | X57: No | Y57: No
A59: 18 | B59: Ashford 009D | C59: 28278 | D59: 29745 | E59: 30943 | F59: 30328 | G59: 20206 | H59: 6415 | I59: 19720 | J59: 32249 | K59: 28209 | L59: 27598 | N59: 18 | O59: Ashford 009D | P59: No | Q59: No | R59: No | S59: No | T59: No | U59: No | V59: No | W59: No | X59: No | Y59: No
A60: 18 | B60: Ashford 009B | C60: 27012 | D60: 21817 | E60: 26771 | F60: 19838 | G60: 24449 | H60: 14328 | I60: 24292 | J60: 31190 | K60: 20087 | L60: 16989 | N60: 18 | O60: Ashford 009B | P60: No | Q60: No | R60: No | S60: No | T60: No | U60: No | V60: No | W60: No | X60: No | Y60: No
A61: 18 | B61: Ashford 009H | C61: 26408 | D61: 23923 | E61: 29149 | F61: 19320 | G61: 21953 | H61: 8418 | I61: 26062 | J61: 31170 | K61: 21807 | L61: 21122 | N61: 18 | O61: Ashford 009H | P61: No | Q61: No | R61: No | S61: No | T61: No | U61: No | V61: No | W61: No | X61: No | Y61: No
A63: 19 | B63: Ashford 009I | C63: 24800 | D63: 19516 | E63: 25085 | F63: 28528 | G63: 19071 | H63: 10024 | I63: 19007 | J63: 32338 | K63: 17612 | L63: 18692 | N63: 19 | O63: Ashford 009I | P63: No | Q63: No | R63: No | S63: No | T63: No | U63: No | V63: No | W63: No | X63: No | Y63: No
A65: 20 | B65: Ashford 013A | C65: 20855 | D65: 22277 | E65: 27666 | F65: 25685 | G65: 19513 | H65: 3312 | I65: 18484 | J65: 11954 | K65: 19912 | L65: 24846 | N65: 20 | O65: Ashford 013A | P65: No | Q65: No | R65: No | S65: No | T65: No | U65: No | V65: No | W65: No | X65: No | Y65: No
A66: 20 | B66: Ashford 013B | C66: 15041 | D66: 16074 | E66: 16843 | F66: 23554 | G66: 11109 | H66: 4673 | I66: 21249 | J66: 7750 | K66: 11796 | L66: 20792 | N66: 20 | O66: Ashford 013B | P66: No | Q66: No | R66: No | S66: No | T66: No | U66: No | V66: No | W66: No | X66: No | Y66: No
A68: 21 | B68: Ashford 013C | C68: 24602 | D68: 21973 | E68: 21332 | F68: 22681 | G68: 14095 | H68: 17783 | I68: 27580 | J68: 28020 | K68: 23978 | L68: 23612 | N68: 21 | O68: Ashford 013C | P68: No | Q68: No | R68: No | S68: No | T68: No | U68: No | V68: No | W68: No | X68: No | Y68: No
A69: 21 | B69: Ashford 013D | C69: 26043 | D69: 23198 | E69: 24650 | F69: 26808 | G69: 13586 | H69: 17880 | I69: 24996 | J69: 26956 | K69: 20075 | L69: 23998 | N69: 21 | O69: Ashford 013D | P69: No | Q69: No | R69: No | S69: No | T69: No | U69: No | V69: No | W69: No | X69: No | Y69: No
A71: 22 | B71: Ashford 010C | C71: 23430 | D71: 29176 | E71: 29274 | F71: 30420 | G71: 24945 | H71: 3221 | I71: 20494 | J71: 8009 | K71: 27632 | L71: 30052 | N71: 22 | O71: Ashford 010C | P71: No | Q71: No | R71: No | S71: No | T71: No | U71: Yes | V71: No | W71: No | X71: No | Y71: No
A72: 22 | B72: Ashford 010A | C72: 18686 | D72: 17853 | E72: 17323 | F72: 24343 | G72: 13231 | H72: 19239 | I72: 16502 | J72: 9239 | K72: 19383 | L72: 19178 | N72: 22 | O72: Ashford 010A | P72: No | Q72: No | R72: No | S72: No | T72: No | U72: No | V72: No | W72: No | X72: No | Y72: No
A73: 22 | B73: Ashford 010B | C73: 15995 | D73: 21981 | E73: 21004 | F73: 26732 | G73: 21213 | H73: 834 | I73: 24811 | J73: 4043 | K73: 21021 | L73: 26773 | N73: 22 | O73: Ashford 010B | P73: No | Q73: No | R73: No | S73: No | T73: No | U73: Yes | V73: No | W73: No | X73: No | Y73: No
A75: 23 | B75: Ashford 007D | C75: 18759 | D75: 18682 | E75: 20363 | F75: 23064 | G75: 10632 | H75: 10300 | I75: 11684 | J75: 22777 | K75: 16327 | L75: 16338 | N75: 23 | O75: Ashford 007D | P75: No | Q75: No | R75: No | S75: No | T75: No | U75: No | V75: No | W75: No | X75: No | Y75: No
A76: 23 | B76: Ashford 007E | C76: 24992 | D76: 19533 | E76: 25442 | F76: 24937 | G76: 20951 | H76: 14027 | I76: 15339 | J76: 31724 | K76: 21230 | L76: 12832 | N76: 23 | O76: Ashford 007E | P76: No | Q76: No | R76: No | S76: No | T76: No | U76: No | V76: No | W76: No | X76: No | Y76: No
A78: 24 | B78: Ashford 009F | C78: 6544 | D78: 7258 | E78: 5122 | F78: 13669 | G78: 6277 | H78: 6493 | I78: 2517 | J78: 28901 | K78: 11903 | L78: 7240 | N78: 24 | O78: Ashford 009F | P78: No | Q78: No | R78: No | S78: No | T78: No | U78: No | V78: Yes | W78: No | X78: No | Y78: No
A79: 24 | B79: Ashford 009J | C79: 17929 | D79: 17975 | E79: 17334 | F79: 20837 | G79: 11449 | H79: 19267 | I79: 14930 | J79: 10713 | K79: 18514 | L79: 17460 | N79: 24 | O79: Ashford 009J | P79: No | Q79: No | R79: No | S79: No | T79: No | U79: No | V79: No | W79: No | X79: No | Y79: No
A80: 24 | B80: Ashford 009G | C80: 21393 | D80: 15594 | E80: 20872 | F80: 22383 | G80: 16730 | H80: 21003 | I80: 17118 | J80: 19837 | K80: 13181 | L80: 13809 | N80: 24 | O80: Ashford 009G | P80: No | Q80: No | R80: No | S80: No | T80: No | U80: No | V80: No | W80: No | X80: No | Y80: No
A82: 25 | B82: Ashford 008B | C82: 3686 | D82: 3088 | E82: 5879 | F82: 14254 | G82: 1668 | H82: 6623 | I82: 741 | J82: 28788 | K82: 2296 | L82: 7623 | N82: 25 | O82: Ashford 008B | P82: No | Q82: Yes | R82: No | S82: No | T82: Yes | U82: No | V82: Yes | W82: No | X82: Yes | Y82: No
A83: 25 | B83: Ashford 008C | C83: 2474 | D83: 1696 | E83: 3342 | F83: 9024 | G83: 491 | H83: 5940 | I83: 4968 | J83: 31392 | K83: 1799 | L83: 2518 | N83: 25 | O83: Ashford 008C | P83: Yes | Q83: Yes | R83: No | S83: No | T83: Yes | U83: No | V83: No | W83: No | X83: Yes | Y83: Yes
A85: 26 | B85: Ashford 004G | C85: 13799 | D85: 12249 | E85: 11879 | F85: 18680 | G85: 15877 | H85: 11487 | I85: 6577 | J85: 19904 | K85: 15445 | L85: 13869 | N85: 26 | O85: Ashford 004G | P85: No | Q85: No | R85: No | S85: No | T85: No | U85: No | V85: No | W85: No | X85: No | Y85: No
A86: 26 | B86: Ashford 004H | C86: 18215 | D86: 15881 | E86: 15295 | F86: 24964 | G86: 13256 | H86: 9597 | I86: 13912 | J86: 29943 | K86: 14622 | L86: 18100 | N86: 26 | O86: Ashford 004H | P86: No | Q86: No | R86: No | S86: No | T86: No | U86: No | V86: No | W86: No | X86: No | Y86: No
A87: 26 | B87: Ashford 005C | C87: 16275 | D87: 14340 | E87: 13705 | F87: 22396 | G87: 11123 | H87: 12973 | I87: 13807 | J87: 20477 | K87: 13784 | L87: 15637 | N87: 26 | O87: Ashford 005C | P87: No | Q87: No | R87: No | S87: No | T87: No | U87: No | V87: No | W87: No | X87: No | Y87: No
A89: 27 | B89: Ashford 013E | C89: 23521 | D89: 19271 | E89: 19966 | F89: 26829 | G89: 18674 | H89: 12230 | I89: 20937 | J89: 29552 | K89: 19088 | L89: 21223 | N89: 27 | O89: Ashford 013E | P89: No | Q89: No | R89: No | S89: No | T89: No | U89: No | V89: No | W89: No | X89: No | Y89: No
A91: 28 | B91: Ashford 014C | C91: 22102 | D91: 19122 | E91: 21605 | F91: 22211 | G91: 14416 | H91: 9706 | I91: 22940 | J91: 30226 | K91: 13871 | L91: 23779 | N91: 28 | O91: Ashford 014C | P91: No | Q91: No | R91: No | S91: No | T91: No | U91: No | V91: No | W91: No | X91: No | Y91: No
A92: 28 | B92: Ashford 013F | C92: 14505 | D92: 13019 | E92: 13265 | F92: 21147 | G92: 7680 | H92: 11092 | I92: 12543 | J92: 25528 | K92: 7950 | L92: 21459 | N92: 28 | O92: Ashford 013F | P92: No | Q92: No | R92: No | S92: No | T92: No | U92: No | V92: No | W92: No | X92: No | Y92: No
A94: 29 | B94: Ashford 005D | C94: 10281 | D94: 11146 | E94: 10835 | F94: 22760 | G94: 13825 | H94: 5969 | I94: 2851 | J94: 9703 | K94: 14050 | L94: 7313 | N94: 29 | O94: Ashford 005D | P94: No | Q94: No | R94: No | S94: No | T94: No | U94: No | V94: Yes | W94: No | X94: No | Y94: No
A95: 29 | B95: Ashford 005E | C95: 10429 | D95: 12344 | E95: 10555 | F95: 16764 | G95: 7823 | H95: 16712 | I95: 1233 | J95: 23669 | K95: 12346 | L95: 13535 | N95: 29 | O95: Ashford 005E | P95: No | Q95: No | R95: No | S95: No | T95: No | U95: No | V95: Yes | W95: No | X95: No | Y95: No
A96: 29 | B96: Ashford 007F | C96: 3697 | D96: 2723 | E96: 3690 | F96: 11404 | G96: 2007 | H96: 9479 | I96: 2720 | J96: 31308 | K96: 1800 | L96: 7533 | N96: 29 | O96: Ashford 007F | P96: No | Q96: Yes | R96: No | S96: No | T96: Yes | U96: No | V96: Yes | W96: No | X96: Yes | Y96: No
A98: 30 | B98: Ashford 008F | C98: 14121 | D98: 14453 | E98: 17167 | F98: 22956 | G98: 3096 | H98: 6206 | I98: 18304 | J98: 32057 | K98: 12333 | L98: 12285 | N98: 30 | O98: Ashford 008F | P98: No | Q98: No | R98: No | S98: No | T98: Yes | U98: No | V98: No | W98: No | X98: No | Y98: No
A99: 30 | B99: Ashford 008E | C99: 25668 | D99: 25397 | E99: 28270 | F99: 27011 | G99: 16989 | H99: 6610 | I99: 19873 | J99: 32451 | K99: 20737 | L99: 29221 | N99: 30 | O99: Ashford 008E | P99: No | Q99: No | R99: No | S99: No | T99: No | U99: No | V99: No | W99: No | X99: No | Y99: No
A101: 31 | B101: Ashford 012B | C101: 13028 | D101: 16784 | E101: 16358 | F101: 23085 | G101: 9895 | H101: 3881 | I101: 15006 | J101: 4722 | K101: 18462 | L101: 18402 | N101: 31 | O101: Ashford 012B | P101: No | Q101: No | R101: No | S101: No | T101: No | U101: No | V101: No | W101: No | X101: No | Y101: No
A102: 31 | B102: Ashford 002E | C102: 14932 | D102: 18641 | E102: 19940 | F102: 28800 | G102: 18627 | H102: 2278 | I102: 9124 | J102: 5216 | K102: 17792 | L102: 21932 | N102: 31 | O102: Ashford 002E | P102: No | Q102: No | R102: No | S102: No | T102: No | U102: Yes | V102: No | W102: No | X102: No | Y102: No
A103: 31 | B103: Ashford 011C | C103: 13102 | D103: 16301 | E103: 15761 | F103: 20261 | G103: 9919 | H103: 1506 | I103: 18591 | J103: 13133 | K103: 14375 | L103: 19334 | N103: 31 | O103: Ashford 011C | P103: No | Q103: No | R103: No | S103: No | T103: No | U103: Yes | V103: No | W103: No | X103: No | Y103: No
A105: 32 | B105: Ashford 010D | C105: 18728 | D105: 20314 | E105: 19421 | F105: 29645 | G105: 17489 | H105: 6481 | I105: 14370 | J105: 8807 | K105: 20015 | L105: 24835 | N105: 32 | O105: Ashford 010D | P105: No | Q105: No | R105: No | S105: No | T105: No | U105: No | V105: No | W105: No | X105: No | Y105: No
A107: 33 | B107: Ashford 002F | C107: 21020 | D107: 24579 | E107: 26119 | F107: 24921 | G107: 23960 | H107: 4958 | I107: 17858 | J107: 6353 | K107: 22133 | L107: 26815 | N107: 33 | O107: Ashford 002F | P107: No | Q107: No | R107: No | S107: No | T107: No | U107: No | V107: No | W107: No | X107: No | Y107: No
A108: 33 | B108: Ashford 011D | C108: 18078 | D108: 23201 | E108: 20279 | F108: 26568 | G108: 17668 | H108: 1529 | I108: 22984 | J108: 11065 | K108: 23328 | L108: 26663 | N108: 33 | O108: Ashford 011D | P108: No | Q108: No | R108: No | S108: No | T108: No | U108: Yes | V108: No | W108: No | X108: No | Y108: No
A110: 34 | B110: Ashford 012D | C110: 13926 | D110: 18152 | E110: 21068 | F110: 26192 | G110: 11618 | H110: 573 | I110: 19413 | J110: 8613 | K110: 14494 | L110: 21407 | N110: 34 | O110: Ashford 012D | P110: No | Q110: No | R110: No | S110: No | T110: No | U110: Yes | V110: No | W110: No | X110: No | Y110: No
A111: 34 | B111: Ashford 014D | C111: 22855 | D111: 21292 | E111: 21562 | F111: 24059 | G111: 19111 | H111: 25731 | I111: 24629 | J111: 6597 | K111: 20288 | L111: 22445 | N111: 34 | O111: Ashford 014D | P111: No | Q111: No | R111: No | S111: No | T111: No | U111: No | V111: No | W111: No | X111: No | Y111: No
A112: 34 | B112: Ashford 012C | C112: 14617 | D112: 17599 | E112: 11652 | F112: 21486 | G112: 13778 | H112: 4375 | I112: 20212 | J112: 11507 | K112: 21041 | L112: 21611 | N112: 34 | O112: Ashford 012C | P112: No | Q112: No | R112: No | S112: No | T112: No | U112: No | V112: No | W112: No | X112: No | Y112: No
A114: 35 | B114: Ashford 001E | C114: 28495 | D114: 31178 | E114: 31086 | F114: 28614 | G114: 31701 | H114: 10071 | I114: 18478 | J114: 12008 | K114: 28196 | L114: 31321 | N114: 35 | O114: Ashford 001E | P114: No | Q114: No | R114: No | S114: No | T114: No | U114: No | V114: No | W114: No | X114: No | Y114: No
A115: 35 | B115: Ashford 001D | C115: 16710 | D115: 12795 | E115: 11721 | F115: 14195 | G115: 16271 | H115: 20102 | I115: 19837 | J115: 25190 | K115: 12477 | L115: 14491 | N115: 35 | O115: Ashford 001D | P115: No | Q115: No | R115: No | S115: No | T115: No | U115: No | V115: No | W115: No | X115: No | Y115: No
A117: 36 | B117: Data is unavailable for Canterbury wards | N117: 36 | O117: Data is unavailable for Canterbury wards
A119: 37 | B119: Data is unavailable for Canterbury wards | N119: 37 | O119: Data is unavailable for Canterbury wards
A121: 38 | B121: Data is unavailable for Canterbury wards | N121: 38 | O121: Data is unavailable for Canterbury wards
A123: 39 | B123: Data is unavailable for Canterbury wards | N123: 39 | O123: Data is unavailable for Canterbury wards
A125: 40 | B125: Data is unavailable for Canterbury wards | N125: 40 | O125: Data is unavailable for Canterbury wards
A127: 41 | B127: Data is unavailable for Canterbury wards | N127: 41 | O127: Data is unavailable for Canterbury wards
A129: 42 | B129: Data is unavailable for Canterbury wards | N129: 42 | O129: Data is unavailable for Canterbury wards
A131: 43 | B131: Data is unavailable for Canterbury wards | N131: 43 | O131: Data is unavailable for Canterbury wards
A133: 44 | B133: Data is unavailable for Canterbury wards | N133: 44 | O133: Data is unavailable for Canterbury wards
A135: 45 | B135: Data is unavailable for Canterbury wards | N135: 45 | O135: Data is unavailable for Canterbury wards
A137: 46 | B137: Data is unavailable for Canterbury wards | N137: 46 | O137: Data is unavailable for Canterbury wards
A139: 47 | B139: Data is unavailable for Canterbury wards | N139: 47 | O139: Data is unavailable for Canterbury wards
A141: 48 | B141: Data is unavailable for Canterbury wards | N141: 48 | O141: Data is unavailable for Canterbury wards
A143: 49 | B143: Data is unavailable for Canterbury wards | N143: 49 | O143: Data is unavailable for Canterbury wards
A145: 50 | B145: Data is unavailable for Canterbury wards | N145: 50 | O145: Data is unavailable for Canterbury wards
A147: 51 | B147: Data is unavailable for Canterbury wards | N147: 51 | O147: Data is unavailable for Canterbury wards
A149: 52 | B149: Data is unavailable for Canterbury wards | N149: 52 | O149: Data is unavailable for Canterbury wards
A151: 53 | B151: Data is unavailable for Canterbury wards | N151: 53 | O151: Data is unavailable for Canterbury wards
A153: 54 | B153: Data is unavailable for Canterbury wards | N153: 54 | O153: Data is unavailable for Canterbury wards
A155: 55 | B155: Data is unavailable for Canterbury wards | N155: 55 | O155: Data is unavailable for Canterbury wards
A157: 56 | B157: Data is unavailable for Canterbury wards | N157: 56 | O157: Data is unavailable for Canterbury wards
A159: 57 | B159: Dartford 012B | C159: 11632 | D159: 16137 | E159: 18457 | F159: 18378 | G159: 7175 | H159: 5988 | I159: 2689 | J159: 11961 | K159: 12200 | L159: 19809 | N159: 57 | O159: Dartford 012B | P159: No | Q159: No | R159: No | S159: No | T159: No | U159: No | V159: Yes | W159: No | X159: No | Y159: No
A160: 57 | B160: Dartford 012C | C160: 5404 | D160: 9131 | E160: 10074 | F160: 4213 | G160: 4063 | H160: 4465 | I160: 3883 | J160: 7178 | K160: 7168 | L160: 12544 | N160: 57 | O160: Dartford 012C | P160: No | Q160: No | R160: No | S160: No | T160: No | U160: No | V160: No | W160: No | X160: No | Y160: No
A161: 57 | B161: Dartford 012A | C161: 11769 | D161: 11983 | E161: 13526 | F161: 21078 | G161: 7789 | H161: 4817 | I161: 12425 | J161: 12047 | K161: 14139 | L161: 12404 | N161: 57 | O161: Dartford 012A | P161: No | Q161: No | R161: No | S161: No | T161: No | U161: No | V161: No | W161: No | X161: No | Y161: No
A162: 57 | B162: Dartford 008A | C162: 19893 | D162: 18705 | E162: 25211 | F162: 17733 | G162: 22970 | H162: 6586 | I162: 11879 | J162: 16697 | K162: 13291 | L162: 15860 | N162: 57 | O162: Dartford 008A | P162: No | Q162: No | R162: No | S162: No | T162: No | U162: No | V162: No | W162: No | X162: No | Y162: No
A164: 58 | B164: Dartford 008C | C164: 21415 | D164: 27846 | E164: 28344 | F164: 22386 | G164: 17942 | H164: 23047 | I164: 5689 | J164: 5500 | K164: 23946 | L164: 30076 | N164: 58 | O164: Dartford 008C | P164: No | Q164: No | R164: No | S164: No | T164: No | U164: No | V164: No | W164: No | X164: No | Y164: No
A165: 58 | B165: Dartford 008B | C165: 18108 | D165: 25741 | E165: 23585 | F165: 19160 | G165: 18360 | H165: 16020 | I165: 15567 | J165: 1237 | K165: 27663 | L165: 20326 | N165: 58 | O165: Dartford 008B | P165: No | Q165: No | R165: No | S165: No | T165: No | U165: No | V165: No | W165: Yes | X165: No | Y165: No
A166: 58 | B166: Dartford 008D | C166: 13029 | D166: 13908 | E166: 17059 | F166: 14071 | G166: 14313 | H166: 19611 | I166: 6646 | J166: 3672 | K166: 12017 | L166: 15211 | N166: 58 | O166: Dartford 008D | P166: No | Q166: No | R166: No | S166: No | T166: No | U166: No | V166: No | W166: No | X166: No | Y166: No
A167: 58 | B167: Dartford 008E | C167: 28380 | D167: 31225 | E167: 29808 | F167: 24842 | G167: 19682 | H167: 27380 | I167: 13645 | J167: 15569 | K167: 32430 | L167: 30635 | N167: 58 | O167: Dartford 008E | P167: No | Q167: No | R167: No | S167: No | T167: No | U167: No | V167: No | W167: No | X167: No | Y167: No
A169: 59 | B169: Dartford 002A | C169: 21994 | D169: 24303 | E169: 26200 | F169: 25400 | G169: 23332 | H169: 3627 | I169: 12265 | J169: 19796 | K169: 19285 | L169: 24098 | N169: 59 | O169: Dartford 002A | P169: No | Q169: No | R169: No | S169: No | T169: No | U169: No | V169: No | W169: No | X169: No | Y169: No
A171: 60 | B171: Dartford 002C | C171: 27662 | D171: 27567 | E171: 30894 | F171: 30504 | G171: 27831 | H171: 20524 | I171: 4964 | J171: 23543 | K171: 19863 | L171: 30017 | N171: 60 | O171: Dartford 002C | P171: No | Q171: No | R171: No | S171: No | T171: No | U171: No | V171: No | W171: No | X171: No | Y171: No
A172: 60 | B172: Dartford 004A | C172: 15000 | D172: 16843 | E172: 23358 | F172: 22608 | G172: 7400 | H172: 5567 | I172: 6822 | J172: 15156 | K172: 12186 | L172: 17893 | N172: 60 | O172: Dartford 004A | P172: No | Q172: No | R172: No | S172: No | T172: No | U172: No | V172: No | W172: No | X172: No | Y172: No
A173: 60 | B173: Dartford 002B | C173: 19091 | D173: 17566 | E173: 25109 | F173: 22090 | G173: 18024 | H173: 16082 | I173: 4756 | J173: 14185 | K173: 13760 | L173: 18611 | N173: 60 | O173: Dartford 002B | P173: No | Q173: No | R173: No | S173: No | T173: No | U173: No | V173: No | W173: No | X173: No | Y173: No
A175: 61 | B175: Dartford 007B | C175: 24724 | D175: 29230 | E175: 26822 | F175: 26359 | G175: 22486 | H175: 10624 | I175: 11637 | J175: 13618 | K175: 28457 | L175: 25796 | N175: 61 | O175: Dartford 007B | P175: No | Q175: No | R175: No | S175: No | T175: No | U175: No | V175: No | W175: No | X175: No | Y175: No
A176: 61 | B176: Dartford 007C | C176: 27282 | D176: 30481 | E176: 30145 | F176: 26229 | G176: 25420 | H176: 16415 | I176: 13095 | J176: 11727 | K176: 25046 | L176: 31933 | N176: 61 | O176: Dartford 007C | P176: No | Q176: No | R176: No | S176: No | T176: No | U176: No | V176: No | W176: No | X176: No | Y176: No
A177: 61 | B177: Dartford 007D | C177: 27401 | D177: 31057 | E177: 29252 | F177: 25858 | G177: 22959 | H177: 21423 | I177: 13019 | J177: 11570 | K177: 31940 | L177: 29085 | N177: 61 | O177: Dartford 007D | P177: No | Q177: No | R177: No | S177: No | T177: No | U177: No | V177: No | W177: No | X177: No | Y177: No
A178: 61 | B178: Dartford 007A | C178: 29601 | D178: 32293 | E178: 31430 | F178: 24231 | G178: 24715 | H178: 19020 | I178: 22119 | J178: 14034 | K178: 31123 | L178: 31851 | N178: 61 | O178: Dartford 007A | P178: No | Q178: No | R178: No | S178: No | T178: No | U178: No | V178: No | W178: No | X178: No | Y178: No
A180: 62 | B180: Dartford 001A | C180: 2133 | D180: 2209 | E180: 1939 | F180: 3515 | G180: 5182 | H180: 9870 | I180: 645 | J180: 15923 | K180: 1735 | L180: 6057 | N180: 62 | O180: Dartford 001A | P180: Yes | Q180: Yes | R180: Yes | S180: No | T180: No | U180: No | V180: Yes | W180: No | X180: Yes | Y180: No
A181: 62 | B181: Dartford 001B | C181: 13281 | D181: 15027 | E181: 18037 | F181: 19361 | G181: 12703 | H181: 2167 | I181: 5311 | J181: 24635 | K181: 15170 | L181: 10617 | N181: 62 | O181: Dartford 001B | P181: No | Q181: No | R181: No | S181: No | T181: No | U181: Yes | V181: No | W181: No | X181: No | Y181: No
A183: 63 | B183: Dartford 010C | C183: 18022 | D183: 19958 | E183: 18141 | F183: 21112 | G183: 20208 | H183: 13925 | I183: 5092 | J183: 13304 | K183: 20102 | L183: 22887 | N183: 63 | O183: Dartford 010C | P183: No | Q183: No | R183: No | S183: No | T183: No | U183: No | V183: No | W183: No | X183: No | Y183: No
A184: 63 | B184: Dartford 010D | C184: 30514 | D184: 28933 | E184: 29357 | F184: 26610 | G184: 22159 | H184: 27964 | I184: 26466 | J184: 19228 | K184: 27028 | L184: 29720 | N184: 63 | O184: Dartford 010D | P184: No | Q184: No | R184: No | S184: No | T184: No | U184: No | V184: No | W184: No | X184: No | Y184: No
A185: 63 | B185: Dartford 010A | C185: 29913 | D185: 30439 | E185: 28097 | F185: 29996 | G185: 21761 | H185: 27262 | I185: 16013 | J185: 20704 | K185: 25156 | L185: 31601 | N185: 63 | O185: Dartford 010A | P185: No | Q185: No | R185: No | S185: No | T185: No | U185: No | V185: No | W185: No | X185: No | Y185: No
A186: 63 | B186: Dartford 010B | C186: 30861 | D186: 30472 | E186: 27654 | F186: 29112 | G186: 24359 | H186: 24592 | I186: 26455 | J186: 20089 | K186: 32222 | L186: 29851 | N186: 63 | O186: Dartford 010B | P186: No | Q186: No | R186: No | S186: No | T186: No | U186: No | V186: No | W186: No | X186: No | Y186: No
A188: 64 | B188: Dartford 001C | C188: 5938 | D188: 8175 | E188: 6405 | F188: 8108 | G188: 8859 | H188: 15757 | I188: 864 | J188: 7721 | K188: 9624 | L188: 10475 | N188: 64 | O188: Dartford 001C | P188: No | Q188: No | R188: No | S188: No | T188: No | U188: No | V188: Yes | W188: No | X188: No | Y188: No
A189: 64 | B189: Dartford 005A | C189: 15536 | D189: 16864 | E189: 20698 | F189: 22880 | G189: 17195 | H189: 7508 | I189: 3585 | J189: 11233 | K189: 13760 | L189: 14725 | N189: 64 | O189: Dartford 005A | P189: No | Q189: No | R189: No | S189: No | T189: No | U189: No | V189: No | W189: No | X189: No | Y189: No
A190: 64 | B190: Dartford 001D | C190: 4208 | D190: 4739 | E190: 5014 | F190: 9705 | G190: 3507 | H190: 10504 | I190: 994 | J190: 14142 | K190: 4615 | L190: 6709 | N190: 64 | O190: Dartford 001D | P190: No | Q190: No | R190: No | S190: No | T190: No | U190: No | V190: Yes | W190: No | X190: No | Y190: No
A192: 65 | B192: Dartford 013A | C192: 19852 | D192: 23692 | E192: 25482 | F192: 21578 | G192: 21058 | H192: 2942 | I192: 11834 | J192: 16346 | K192: 26199 | L192: 20809 | N192: 65 | O192: Dartford 013A | P192: No | Q192: No | R192: No | S192: No | T192: No | U192: Yes | V192: No | W192: No | X192: No | Y192: No
A193: 65 | B193: Dartford 013B | C193: 21842 | D193: 20659 | E193: 18889 | F193: 22922 | G193: 20703 | H193: 24903 | I193: 11273 | J193: 13995 | K193: 19961 | L193: 24698 | N193: 65 | O193: Dartford 013B | P193: No | Q193: No | R193: No | S193: No | T193: No | U193: No | V193: No | W193: No | X193: No | Y193: No
A194: 65 | B194: Dartford 013D | C194: 26840 | D194: 31199 | E194: 31107 | F194: 28188 | G194: 25562 | H194: 3766 | I194: 19454 | J194: 21578 | K194: 29103 | L194: 31149 | N194: 65 | O194: Dartford 013D | P194: No | Q194: No | R194: No | S194: No | T194: No | U194: No | V194: No | W194: No | X194: No | Y194: No
A195: 65 | B195: Dartford 013C | C195: 27556 | D195: 30704 | E195: 29151 | F195: 30018 | G195: 25471 | H195: 3915 | I195: 26530 | J195: 22562 | K195: 28803 | L195: 31288 | N195: 65 | O195: Dartford 013C | P195: No | Q195: No | R195: No | S195: No | T195: No | U195: No | V195: No | W195: No | X195: No | Y195: No
A197: 66 | B197: Dartford 005D | C197: 13568 | D197: 21513 | E197: 17196 | F197: 18908 | G197: 16375 | H197: 18508 | I197: 1965 | J197: 2945 | K197: 18998 | L197: 25091 | N197: 66 | O197: Dartford 005D | P197: No | Q197: No | R197: No | S197: No | T197: No | U197: No | V197: Yes | W197: Yes | X197: No | Y197: No
A198: 66 | B198: Dartford 005E | C198: 13485 | D198: 17887 | E198: 19255 | F198: 23260 | G198: 16045 | H198: 12292 | I198: 5294 | J198: 1376 | K198: 16948 | L198: 22333 | N198: 66 | O198: Dartford 005E | P198: No | Q198: No | R198: No | S198: No | T198: No | U198: No | V198: No | W198: Yes | X198: No | Y198: No
A199: 66 | B199: Dartford 005B | C199: 15427 | D199: 17620 | E199: 19960 | F199: 19956 | G199: 12226 | H199: 17885 | I199: 11318 | J199: 2699 | K199: 13757 | L199: 14340 | N199: 66 | O199: Dartford 005B | P199: No | Q199: No | R199: No | S199: No | T199: No | U199: No | V199: No | W199: Yes | X199: No | Y199: No
A200: 66 | B200: Dartford 005C | C200: 10553 | D200: 18259 | E200: 18363 | F200: 19907 | G200: 11733 | H200: 2425 | I200: 4238 | J200: 2384 | K200: 16414 | L200: 18957 | N200: 66 | O200: Dartford 005C | P200: No | Q200: No | R200: No | S200: No | T200: No | U200: Yes | V200: No | W200: Yes | X200: No | Y200: No
A202: 67 | B202: Dartford 009A | C202: 3657 | D202: 3701 | E202: 4177 | F202: 6746 | G202: 3280 | H202: 6735 | I202: 3527 | J202: 13837 | K202: 3732 | L202: 5556 | N202: 67 | O202: Dartford 009A | P202: No | Q202: No | R202: No | S202: No | T202: Yes | U202: No | V202: No | W202: No | X202: No | Y202: No
A203: 67 | B203: Dartford 009C | C203: 10630 | D203: 13031 | E203: 13839 | F203: 14009 | G203: 11022 | H203: 8464 | I203: 4979 | J203: 5913 | K203: 13521 | L203: 15929 | N203: 67 | O203: Dartford 009C | P203: No | Q203: No | R203: No | S203: No | T203: No | U203: No | V203: No | W203: No | X203: No | Y203: No
A204: 67 | B204: Dartford 009D | C204: 12795 | D204: 15479 | E204: 14815 | F204: 10710 | G204: 12140 | H204: 12478 | I204: 9764 | J204: 7241 | K204: 17597 | L204: 14234 | N204: 67 | O204: Dartford 009D | P204: No | Q204: No | R204: No | S204: No | T204: No | U204: No | V204: No | W204: No | X204: No | Y204: No
A205: 67 | B205: Dartford 009B | C205: 7859 | D205: 8649 | E205: 10171 | F205: 11103 | G205: 6745 | H205: 4263 | I205: 8164 | J205: 9523 | K205: 9999 | L205: 9994 | N205: 67 | O205: Dartford 009B | P205: No | Q205: No | R205: No | S205: No | T205: No | U205: No | V205: No | W205: No | X205: No | Y205: No
A207: 68 | B207: Dartford 006B | C207: 4961 | D207: 5969 | E207: 6252 | F207: 7436 | G207: 5961 | H207: 9334 | I207: 1748 | J207: 8369 | K207: 4986 | L207: 9526 | N207: 68 | O207: Dartford 006B | P207: No | Q207: No | R207: No | S207: No | T207: No | U207: No | V207: Yes | W207: No | X207: No | Y207: No
A208: 68 | B208: Dartford 006A | C208: 9821 | D208: 11383 | E208: 11735 | F208: 13572 | G208: 9224 | H208: 12389 | I208: 1952 | J208: 13648 | K208: 10482 | L208: 12750 | N208: 68 | O208: Dartford 006A | P208: No | Q208: No | R208: No | S208: No | T208: No | U208: No | V208: Yes | W208: No | X208: No | Y208: No
A209: 68 | B209: Dartford 006C | C209: 14762 | D209: 17215 | E209: 17325 | F209: 17930 | G209: 10570 | H209: 17045 | I209: 3481 | J209: 14063 | K209: 14736 | L209: 18490 | N209: 68 | O209: Dartford 006C | P209: No | Q209: No | R209: No | S209: No | T209: No | U209: No | V209: No | W209: No | X209: No | Y209: No
A210: 68 | B210: Dartford 006D | C210: 16705 | D210: 19968 | E210: 25722 | F210: 15422 | G210: 17240 | H210: 8173 | I210: 21427 | J210: 2117 | K210: 14659 | L210: 13168 | N210: 68 | O210: Dartford 006D | P210: No | Q210: No | R210: No | S210: No | T210: No | U210: No | V210: No | W210: Yes | X210: No | Y210: No
A212: 69 | B212: Dartford 012D | C212: 16136 | D212: 17141 | E212: 16896 | F212: 15153 | G212: 15325 | H212: 14044 | I212: 12516 | J212: 8477 | K212: 16043 | L212: 16330 | N212: 69 | O212: Dartford 012D | P212: No | Q212: No | R212: No | S212: No | T212: No | U212: No | V212: No | W212: No | X212: No | Y212: No
A213: 69 | B213: Dartford 011A | C213: 17101 | D213: 25074 | E213: 26612 | F213: 25105 | G213: 17497 | H213: 1124 | I213: 10039 | J213: 9162 | K213: 28291 | L213: 24114 | N213: 69 | O213: Dartford 011A | P213: No | Q213: No | R213: No | S213: No | T213: No | U213: Yes | V213: No | W213: No | X213: No | Y213: No
A214: 69 | B214: Dartford 012E | C214: 24332 | D214: 26261 | E214: 29037 | F214: 22006 | G214: 18887 | H214: 18717 | I214: 14823 | J214: 9425 | K214: 25057 | L214: 25413 | N214: 69 | O214: Dartford 012E | P214: No | Q214: No | R214: No | S214: No | T214: No | U214: No | V214: No | W214: No | X214: No | Y214: No
A216: 70 | B216: Dartford 002D | C216: 14105 | D216: 14257 | E216: 19042 | F216: 16978 | G216: 10330 | H216: 10819 | I216: 5306 | J216: 14828 | K216: 12922 | L216: 12826 | N216: 70 | O216: Dartford 002D | P216: No | Q216: No | R216: No | S216: No | T216: No | U216: No | V216: No | W216: No | X216: No | Y216: No
A217: 70 | B217: Dartford 004C | C217: 3996 | D217: 3555 | E217: 3939 | F217: 10155 | G217: 4753 | H217: 8702 | I217: 1665 | J217: 16654 | K217: 1978 | L217: 9128 | N217: 70 | O217: Dartford 004C | P217: No | Q217: No | R217: No | S217: No | T217: No | U217: No | V217: Yes | W217: No | X217: Yes | Y217: No
A218: 70 | B218: Dartford 004B | C218: 9421 | D218: 10775 | E218: 12767 | F218: 10685 | G218: 8369 | H218: 20736 | I218: 4243 | J218: 4324 | K218: 10277 | L218: 10599 | N218: 70 | O218: Dartford 004B | P218: No | Q218: No | R218: No | S218: No | T218: No | U218: No | V218: No | W218: No | X218: No | Y218: No
A219: 70 | B219: Dartford 004D | C219: 10532 | D219: 10081 | E219: 10454 | F219: 18299 | G219: 6880 | H219: 20323 | I219: 5890 | J219: 9583 | K219: 8294 | L219: 16514 | N219: 70 | O219: Dartford 004D | P219: No | Q219: No | R219: No | S219: No | T219: No | U219: No | V219: No | W219: No | X219: No | Y219: No
A221: 71 | B221: Dartford 003C | C221: 9952 | D221: 13342 | E221: 13911 | F221: 10418 | G221: 14349 | H221: 6854 | I221: 2231 | J221: 8563 | K221: 12317 | L221: 9101 | N221: 71 | O221: Dartford 003C | P221: No | Q221: No | R221: No | S221: No | T221: No | U221: No | V221: Yes | W221: No | X221: No | Y221: No
A222: 71 | B222: Dartford 003B | C222: 14288 | D222: 21457 | E222: 22194 | F222: 20939 | G222: 16522 | H222: 14756 | I222: 1169 | J222: 4108 | K222: 21727 | L222: 19835 | N222: 71 | O222: Dartford 003B | P222: No | Q222: No | R222: No | S222: No | T222: No | U222: No | V222: Yes | W222: No | X222: No | Y222: No
A223: 71 | B223: Dartford 003A | C223: 17899 | D223: 22612 | E223: 24938 | F223: 14606 | G223: 11435 | H223: 10225 | I223: 7623 | J223: 15301 | K223: 19778 | L223: 17583 | N223: 71 | O223: Dartford 003A | P223: No | Q223: No | R223: No | S223: No | T223: No | U223: No | V223: No | W223: No | X223: No | Y223: No
A225: 72 | B225: Dartford 003D | C225: 24604 | D225: 27954 | E225: 29123 | F225: 28913 | G225: 22188 | H225: 28079 | I225: 5394 | J225: 8317 | K225: 29694 | L225: 23085 | N225: 72 | O225: Dartford 003D | P225: No | Q225: No | R225: No | S225: No | T225: No | U225: No | V225: No | W225: No | X225: No | Y225: No
A226: 72 | B226: Dartford 003F | C226: 22488 | D226: 21889 | E226: 22425 | F226: 20826 | G226: 22820 | H226: 20054 | I226: 11986 | J226: 12227 | K226: 22298 | L226: 19295 | N226: 72 | O226: Dartford 003F | P226: No | Q226: No | R226: No | S226: No | T226: No | U226: No | V226: No | W226: No | X226: No | Y226: No
A227: 72 | B227: Dartford 007E | C227: 27678 | D227: 26725 | E227: 30822 | F227: 27158 | G227: 19585 | H227: 22757 | I227: 23154 | J227: 10090 | K227: 20726 | L227: 31174 | N227: 72 | O227: Dartford 007E | P227: No | Q227: No | R227: No | S227: No | T227: No | U227: No | V227: No | W227: No | X227: No | Y227: No
A228: 72 | B228: Dartford 003E | C228: 24059 | D228: 25313 | E228: 27093 | F228: 24246 | G228: 23841 | H228: 15664 | I228: 13744 | J228: 8681 | K228: 24536 | L228: 26999 | N228: 72 | O228: Dartford 003E | P228: No | Q228: No | R228: No | S228: No | T228: No | U228: No | V228: No | W228: No | X228: No | Y228: No
A230: 73 | B230: Dartford 011C | C230: 19754 | D230: 25611 | E230: 22233 | F230: 20407 | G230: 21237 | H230: 5319 | I230: 8612 | J230: 15292 | K230: 21919 | L230: 28706 | N230: 73 | O230: Dartford 011C | P230: No | Q230: No | R230: No | S230: No | T230: No | U230: No | V230: No | W230: No | X230: No | Y230: No
A231: 73 | B231: Dartford 011B | C231: 18395 | D231: 26746 | E231: 25271 | F231: 22524 | G231: 19551 | H231: 1564 | I231: 14441 | J231: 9071 | K231: 27803 | L231: 22774 | N231: 73 | O231: Dartford 011B | P231: No | Q231: No | R231: No | S231: No | T231: No | U231: Yes | V231: No | W231: No | X231: No | Y231: No
A232: 73 | B232: Dartford 011D | C232: 17629 | D232: 18069 | E232: 18382 | F232: 18121 | G232: 17363 | H232: 6257 | I232: 15165 | J232: 15925 | K232: 19360 | L232: 17343 | N232: 73 | O232: Dartford 011D | P232: No | Q232: No | R232: No | S232: No | T232: No | U232: No | V232: No | W232: No | X232: No | Y232: No
A234: 74 | B234: Dover 006A | C234: 11427 | D234: 14535 | E234: 13813 | F234: 17599 | G234: 9022 | H234: 1317 | I234: 14557 | J234: 15654 | K234: 13339 | L234: 23282 | N234: 74 | O234: Dover 006A | P234: No | Q234: No | R234: No | S234: No | T234: No | U234: Yes | V234: No | W234: No | X234: No | Y234: No
A235: 74 | B235: Dover 006C | C235: 4622 | D235: 6175 | E235: 3649 | F235: 5484 | G235: 779 | H235: 17869 | I235: 13783 | J235: 21776 | K235: 6159 | L235: 8886 | N235: 74 | O235: Dover 006C | P235: No | Q235: No | R235: No | S235: No | T235: Yes | U235: No | V235: No | W235: No | X235: No | Y235: No
A236: 74 | B236: Dover 006B | C236: 12268 | D236: 10995 | E236: 11092 | F236: 13923 | G236: 5031 | H236: 23725 | I236: 10379 | J236: 27973 | K236: 9964 | L236: 12060 | N236: 74 | O236: Dover 006B | P236: No | Q236: No | R236: No | S236: No | T236: No | U236: No | V236: No | W236: No | X236: No | Y236: No
A238: 75 | B238: Dover 011A | C238: 2450 | D238: 2685 | E238: 1802 | F238: 3555 | G238: 2347 | H238: 9776 | I238: 2881 | J238: 29425 | K238: 3151 | L238: 7714 | N238: 75 | O238: Dover 011A | P238: Yes | Q238: Yes | R238: Yes | S238: No | T238: Yes | U238: No | V238: Yes | W238: No | X238: Yes | Y238: No
A239: 75 | B239: Dover 011B | C239: 12512 | D239: 9955 | E239: 10679 | F239: 17662 | G239: 10151 | H239: 26059 | I239: 10844 | J239: 10497 | K239: 4938 | L239: 18984 | N239: 75 | O239: Dover 011B | P239: No | Q239: No | R239: No | S239: No | T239: No | U239: No | V239: No | W239: No | X239: No | Y239: No
A240: 75 | B240: Dover 011E | C240: 10406 | D240: 10824 | E240: 7749 | F240: 14373 | G240: 5318 | H240: 20610 | I240: 6663 | J240: 25908 | K240: 9039 | L240: 17169 | N240: 75 | O240: Dover 011E | P240: No | Q240: No | R240: No | S240: No | T240: No | U240: No | V240: No | W240: No | X240: No | Y240: No
A241: 75 | B241: Dover 011C | C241: 8230 | D241: 9042 | E241: 8977 | F241: 15777 | G241: 5601 | H241: 5264 | I241: 3418 | J241: 24861 | K241: 7495 | L241: 15821 | N241: 75 | O241: Dover 011C | P241: No | Q241: No | R241: No | S241: No | T241: No | U241: No | V241: No | W241: No | X241: No | Y241: No
A242: 75 | B242: Dover 011D | C242: 2545 | D242: 2913 | E242: 2814 | F242: 8121 | G242: 1985 | H242: 5941 | I242: 555 | J242: 28735 | K242: 1273 | L242: 9781 | N242: 75 | O242: Dover 011D | P242: Yes | Q242: Yes | R242: Yes | S242: No | T242: Yes | U242: No | V242: Yes | W242: No | X242: Yes | Y242: No
A244: 76 | B244: Dover 014A | C244: 14833 | D244: 17747 | E244: 15171 | F244: 19724 | G244: 16303 | H244: 1889 | I244: 18520 | J244: 13606 | K244: 21014 | L244: 17419 | N244: 76 | O244: Dover 014A | P244: No | Q244: No | R244: No | S244: No | T244: No | U244: Yes | V244: No | W244: No | X244: No | Y244: No
A246: 77 | B246: Dover 012F | C246: 2473 | D246: 4445 | E246: 1603 | F246: 4918 | G246: 3947 | H246: 7107 | I246: 800 | J246: 16349 | K246: 1180 | L246: 12198 | N246: 77 | O246: Dover 012F | P246: Yes | Q246: No | R246: Yes | S246: No | T246: No | U246: No | V246: Yes | W246: No | X246: Yes | Y246: No
A247: 77 | B247: Dover 012E | C247: 9778 | D247: 10832 | E247: 7774 | F247: 13629 | G247: 14500 | H247: 4877 | I247: 14407 | J247: 7757 | K247: 9361 | L247: 16773 | N247: 77 | O247: Dover 012E | P247: No | Q247: No | R247: No | S247: No | T247: No | U247: No | V247: No | W247: No | X247: No | Y247: No
A249: 78 | B249: Dover 008A | C249: 12376 | D249: 21197 | E249: 16693 | F249: 20659 | G249: 19434 | H249: 780 | I249: 20614 | J249: 1822 | K249: 22101 | L249: 22642 | N249: 78 | O249: Dover 008A | P249: No | Q249: No | R249: No | S249: No | T249: No | U249: Yes | V249: No | W249: Yes | X249: No | Y249: No
A250: 78 | B250: Dover 005A | C250: 13792 | D250: 18648 | E250: 15982 | F250: 22813 | G250: 17932 | H250: 2145 | I250: 21468 | J250: 3085 | K250: 19109 | L250: 19514 | N250: 78 | O250: Dover 005A | P250: No | Q250: No | R250: No | S250: No | T250: No | U250: Yes | V250: No | W250: Yes | X250: No | Y250: No
A251: 78 | B251: Dover 002A | C251: 16323 | D251: 11668 | E251: 9051 | F251: 19641 | G251: 15507 | H251: 20968 | I251: 23819 | J251: 24986 | K251: 15674 | L251: 13288 | N251: 78 | O251: Dover 002A | P251: No | Q251: No | R251: No | S251: No | T251: No | U251: No | V251: No | W251: No | X251: No | Y251: No
A253: 79 | B253: Dover 008B | C253: 23306 | D253: 25859 | E253: 25833 | F253: 24819 | G253: 27381 | H253: 7112 | I253: 19962 | J253: 7948 | K253: 29397 | L253: 26750 | N253: 79 | O253: Dover 008B | P253: No | Q253: No | R253: No | S253: No | T253: No | U253: No | V253: No | W253: No | X253: No | Y253: No
A254: 79 | B254: Dover 006D | C254: 12933 | D254: 10237 | E254: 6721 | F254: 14807 | G254: 11578 | H254: 25013 | I254: 16326 | J254: 28507 | K254: 8210 | L254: 23802 | N254: 79 | O254: Dover 006D | P254: No | Q254: No | R254: No | S254: No | T254: No | U254: No | V254: No | W254: No | X254: No | Y254: No
A255: 79 | B255: Dover 008C | C255: 18444 | D255: 13432 | E255: 12261 | F255: 18718 | G255: 15961 | H255: 20885 | I255: 23788 | J255: 26717 | K255: 13603 | L255: 20669 | N255: 79 | O255: Dover 008C | P255: No | Q255: No | R255: No | S255: No | T255: No | U255: No | V255: No | W255: No | X255: No | Y255: No
A257: 80 | B257: Dover 001A | C257: 13444 | D257: 18246 | E257: 16951 | F257: 22510 | G257: 14402 | H257: 942 | I257: 24447 | J257: 5506 | K257: 17325 | L257: 22325 | N257: 80 | O257: Dover 001A | P257: No | Q257: No | R257: No | S257: No | T257: No | U257: Yes | V257: No | W257: No | X257: No | Y257: No
A258: 80 | B258: Dover 001D | C258: 24593 | D258: 19277 | E258: 22324 | F258: 25401 | G258: 27003 | H258: 19129 | I258: 24970 | J258: 11636 | K258: 18924 | L258: 20750 | N258: 80 | O258: Dover 001D | P258: No | Q258: No | R258: No | S258: No | T258: No | U258: No | V258: No | W258: No | X258: No | Y258: No
A259: 80 | B259: Dover 001B | C259: 16186 | D259: 19981 | E259: 21727 | F259: 22209 | G259: 25332 | H259: 2174 | I259: 24914 | J259: 2406 | K259: 21006 | L259: 20573 | N259: 80 | O259: Dover 001B | P259: No | Q259: No | R259: No | S259: No | T259: No | U259: Yes | V259: No | W259: Yes | X259: No | Y259: No
A260: 80 | B260: Dover 001C | C260: 11716 | D260: 12621 | E260: 12304 | F260: 16352 | G260: 17563 | H260: 1623 | I260: 18720 | J260: 10017 | K260: 12168 | L260: 14804 | N260: 80 | O260: Dover 001C | P260: No | Q260: No | R260: No | S260: No | T260: No | U260: Yes | V260: No | W260: No | X260: No | Y260: No
A262: 81 | B262: Dover 010G | C262: 25461 | D262: 25418 | E262: 22509 | F262: 19601 | G262: 24895 | H262: 15433 | I262: 20584 | J262: 20143 | K262: 23079 | L262: 28358 | N262: 81 | O262: Dover 010G | P262: No | Q262: No | R262: No | S262: No | T262: No | U262: No | V262: No | W262: No | X262: No | Y262: No
A264: 82 | B264: Dover 013B | C264: 2105 | D264: 2650 | E264: 2530 | F264: 5721 | G264: 2000 | H264: 12361 | I264: 597 | J264: 8641 | K264: 2109 | L264: 5828 | N264: 82 | O264: Dover 013B | P264: Yes | Q264: Yes | R264: Yes | S264: No | T264: Yes | U264: No | V264: Yes | W264: No | X264: Yes | Y264: No
A265: 82 | B265: Dover 013C | C265: 15047 | D265: 14958 | E265: 16663 | F265: 17090 | G265: 9883 | H265: 25741 | I265: 6196 | J265: 11393 | K265: 10107 | L265: 18204 | N265: 82 | O265: Dover 013C | P265: No | Q265: No | R265: No | S265: No | T265: No | U265: No | V265: No | W265: No | X265: No | Y265: No
A266: 82 | B266: Dover 014B | C266: 16529 | D266: 19069 | E266: 17903 | F266: 19252 | G266: 15935 | H266: 8223 | I266: 11213 | J266: 8897 | K266: 19147 | L266: 20633 | N266: 82 | O266: Dover 014B | P266: No | Q266: No | R266: No | S266: No | T266: No | U266: No | V266: No | W266: No | X266: No | Y266: No
A267: 82 | B267: Dover 014C | C267: 27955 | D267: 26476 | E267: 25967 | F267: 22028 | G267: 16293 | H267: 25596 | I267: 23342 | J267: 27361 | K267: 27509 | L267: 24712 | N267: 82 | O267: Dover 014C | P267: No | Q267: No | R267: No | S267: No | T267: No | U267: No | V267: No | W267: No | X267: No | Y267: No
A268: 82 | B268: Dover 013A | C268: 3655 | D268: 4604 | E268: 4557 | F268: 6657 | G268: 1537 | H268: 16287 | I268: 2697 | J268: 9665 | K268: 3966 | L268: 9022 | N268: 82 | O268: Dover 013A | P268: No | Q268: No | R268: No | S268: No | T268: Yes | U268: No | V268: Yes | W268: No | X268: No | Y268: No
A270: 83 | B270: Dover 003C | C270: 26064 | D270: 24187 | E270: 22057 | F270: 21190 | G270: 25515 | H270: 25586 | I270: 11609 | J270: 27306 | K270: 22162 | L270: 25449 | N270: 83 | O270: Dover 003C | P270: No | Q270: No | R270: No | S270: No | T270: No | U270: No | V270: No | W270: No | X270: No | Y270: No
A271: 83 | B271: Dover 003A | C271: 8761 | D271: 6657 | E271: 4920 | F271: 7786 | G271: 9987 | H271: 17612 | I271: 15313 | J271: 30059 | K271: 5377 | L271: 14109 | N271: 83 | O271: Dover 003A | P271: No | Q271: No | R271: No | S271: No | T271: No | U271: No | V271: No | W271: No | X271: No | Y271: No
A272: 83 | B272: Dover 007A | C272: 5963 | D272: 3258 | E272: 4868 | F272: 9294 | G272: 4474 | H272: 22263 | I272: 9757 | J272: 22676 | K272: 2091 | L272: 8301 | N272: 83 | O272: Dover 007A | P272: No | Q272: Yes | R272: No | S272: No | T272: No | U272: No | V272: No | W272: No | X272: Yes | Y272: No
A273: 83 | B273: Dover 003B | C273: 15533 | D273: 15331 | E273: 12016 | F273: 12809 | G273: 10848 | H273: 26050 | I273: 10009 | J273: 25850 | K273: 16971 | L273: 15986 | N273: 83 | O273: Dover 003B | P273: No | Q273: No | R273: No | S273: No | T273: No | U273: No | V273: No | W273: No | X273: No | Y273: No
A274: 83 | B274: Dover 005B | C274: 9251 | D274: 7271 | E274: 7693 | F274: 14932 | G274: 9085 | H274: 6579 | I274: 10251 | J274: 24030 | K274: 3561 | L274: 14017 | N274: 83 | O274: Dover 005B | P274: No | Q274: No | R274: No | S274: No | T274: No | U274: No | V274: No | W274: No | X274: No | Y274: No
A276: 84 | B276: Dover 007B | C276: 11296 | D276: 9166 | E276: 8111 | F276: 15189 | G276: 8399 | H276: 16912 | I276: 9928 | J276: 28354 | K276: 8026 | L276: 11178 | N276: 84 | O276: Dover 007B | P276: No | Q276: No | R276: No | S276: No | T276: No | U276: No | V276: No | W276: No | X276: No | Y276: No
A277: 84 | B277: Dover 005E | C277: 12281 | D277: 9248 | E277: 7873 | F277: 13686 | G277: 8773 | H277: 20594 | I277: 18454 | J277: 29409 | K277: 8893 | L277: 11754 | N277: 84 | O277: Dover 005E | P277: No | Q277: No | R277: No | S277: No | T277: No | U277: No | V277: No | W277: No | X277: No | Y277: No
A278: 84 | B278: Dover 005C | C278: 13745 | D278: 11244 | E278: 9743 | F278: 16915 | G278: 6292 | H278: 24834 | I278: 17023 | J278: 29549 | K278: 9126 | L278: 15286 | N278: 84 | O278: Dover 005C | P278: No | Q278: No | R278: No | S278: No | T278: No | U278: No | V278: No | W278: No | X278: No | Y278: No
A279: 84 | B279: Dover 005D | C279: 16086 | D279: 13995 | E279: 14334 | F279: 16774 | G279: 7016 | H279: 25711 | I279: 16879 | J279: 21325 | K279: 11265 | L279: 16450 | N279: 84 | O279: Dover 005D | P279: No | Q279: No | R279: No | S279: No | T279: No | U279: No | V279: No | W279: No | X279: No | Y279: No
A280: 84 | B280: Dover 007C | C280: 22988 | D280: 20706 | E280: 16918 | F280: 20621 | G280: 16032 | H280: 23207 | I280: 22825 | J280: 26187 | K280: 19871 | L280: 19398 | N280: 84 | O280: Dover 007C | P280: No | Q280: No | R280: No | S280: No | T280: No | U280: No | V280: No | W280: No | X280: No | Y280: No
A282: 85 | B282: Dover 004C | C282: 14058 | D282: 13790 | E282: 10971 | F282: 10941 | G282: 14077 | H282: 15606 | I282: 13374 | J282: 20065 | K282: 20476 | L282: 12888 | N282: 85 | O282: Dover 004C | P282: No | Q282: No | R282: No | S282: No | T282: No | U282: No | V282: No | W282: No | X282: No | Y282: No
A283: 85 | B283: Dover 004A | C283: 14964 | D283: 12758 | E283: 13954 | F283: 19430 | G283: 18942 | H283: 18914 | I283: 7938 | J283: 8463 | K283: 11529 | L283: 13370 | N283: 85 | O283: Dover 004A | P283: No | Q283: No | R283: No | S283: No | T283: No | U283: No | V283: No | W283: No | X283: No | Y283: No
A284: 85 | B284: Dover 004B | C284: 21917 | D284: 15936 | E284: 18575 | F284: 26286 | G284: 16182 | H284: 25985 | I284: 20620 | J284: 17320 | K284: 11339 | L284: 19652 | N284: 85 | O284: Dover 004B | P284: No | Q284: No | R284: No | S284: No | T284: No | U284: No | V284: No | W284: No | X284: No | Y284: No
... 695 more rows

Sheet 2011 Census People
A1: CompositeSheet | E1: Lookup Table to calculate Selection Index Number
B2: District: | C2: =Data!C2 -> 1 | E2: District | F2: 1 | G2: 2 | H2: 3 | I2: 4 | J2: 5 | K2: 6 | L2: 7 | M2: 8 | N2: 9 | O2: 10 | P2: 11 | Q2: 12 | R2: 13 | S2: 14 | T2: 15
B3: Ward: | C3: =Data!C3 -> 1 | E3: Index StartNo | F3: 1 | G3: 36 | H3: 57 | I3: 74 | J3: 165 | K3: 95 | L3: 113 | M3: 139 | N3: 178 | O3: 202 | P3: 225 | Q3: 249 | R3: 269 | S3: 292 | T3: 332
B4: Selection Index Number: | C4: =Data!C4 -> 1 | D4: =IF($C$4<=283,$C$4,"") -> 1
A5: Data Column Numbers: | B5: 5 | C5: 6 | D5: 7 | E5: 8 | F5: 9 | G5: 10 | H5: 11 | I5: 12 | J5: 13 | K5: 14 | L5: 15 | M5: 16 | N5: 17 | O5: 18 | P5: 19 | Q5: 20 | R5: 21 | S5: 22 | T5: 23 | U5: 24 | V5: 25 | W5: 26 | X5: 27 | Y5: 28 | Z5: 29 | AA5: 30 | AB5: 31 | AC5: 32 | AD5: 33 | AE5: 34 | AF5: 35 | AG5: 36 | AH5: 37 | AI5: 38 | AJ5: 39 | AK5: 40 | AL5: 41 | AM5: 42 | AN5: 43 | AO5: 44 | AP5: 45 | AQ5: 46 | AR5: 47 | AS5: 48 | AT5: 49 | AU5: 50 | AV5: 51 | AW5: 52 | AX5: 53 | AY5: 54 | AZ5: 55 | BA5: 56 | BB5: 57 | BC5: 58 | BD5: 59 | BE5: 60 | BF5: 61 | BG5: 62 | BH5: 63 | BI5: 64 | BJ5: 65 | BK5: 66 | BL5: 67 | BM5: 68 | BN5: 69 | BO5: 70 | BP5: 71 | BQ5: 72 | BR5: 73 | BS5: 74 | BT5: 75 | BU5: 76 | BV5: 77 | BW5: 78 | BX5: 79 | BY5: 80 | BZ5: 81 | CA5: 82 | CB5: 83 | CC5: 84 | CD5: 85 | CE5: 86 | CF5: 87 | CG5: 88 | CH5: 89 | CI5: 90 | CJ5: 91 | CK5: 92 | CL5: 93 | CM5: 94 | CN5: 95 | CO5: 96 | CP5: 97 | CQ5: 98 | CR5: 99 | CS5: 100 | CT5: 101 | CU5: 102 | CV5: 103 | CW5: 104 | CX5: 105 | CY5: 106 | CZ5: 107 | DA5: 108 | DB5: 109 | DC5: 110 | DD5: 111 | DE5: 112 | DF5: 113 | DG5: 114 | DH5: 115 | DI5: 116 | DJ5: 117 | DK5: 118 | DL5: 119 | DM5: 120 | DN5: 121 | DO5: 122 | DP5: 123 | DQ5: 124 | DR5: 125 | DS5: 126 | DT5: 127 | DU5: 128 | DV5: 129 | DW5: 130 | DX5: 131 | DY5: 132 | DZ5: 133 | EA5: 134 | EB5: 135 | EC5: 136 | ED5: 137 | EE5: 138 | EF5: 139 | EG5: 140 | EH5: 141 | EI5: 142 | EJ5: 143 | EK5: 144 | EL5: 145 | EM5: 146 | EN5: 147 | EO5: 148 | EP5: 149 | EQ5: 150 | ER5: 151 | ES5: 152 | ET5: 153 | EU5: 154 | EV5: 155 | EW5: 156 | EX5: 157 | EY5: 158 | EZ5: 159 | FA5: 160 | FB5: 161 | FC5: 162 | FD5: 163 | FE5: 164 | FF5: 165 | FG5: 166 | FH5: 167 | FI5: 168 | FJ5: 169 | FK5: 170 | FL5: 171 | FM5: 172 | FN5: 173 | FO5: 174 | FP5: 175 | FQ5: 176 | FR5: 177 | FS5: 178 | FT5: 179 | FU5: 180 | FV5: 181 | FW5: 182 | FX5: 183 | FY5: 184 | FZ5: 185 | GA5: 186 | GB5: 187 | GC5: 188 | GD5: 189 | GE5: 190 | GF5: 191 | GG5: 192 | GH5: 193 | GI5: 194 | GJ5: 195 | GK5: 196 | GL5: 197 | GM5: 198 | GN5: 199 | GO5: 200 | GP5: 201 | GQ5: 202 | GR5: 203 | GS5: 204 | GT5: 205 | GU5: 206 | GV5: 207 | GW5: 208 | GX5: 209 | GY5: 210 | GZ5: 211 | HA5: 212 | HB5: 213 | HC5: 214 | HD5: 215 | HE5: 216 | HF5: 217 | HG5: 218 | HH5: 219 | HI5: 220 | HJ5: 221
B8: =E$16 -> 2011 | C8: =$F$16 -> 2011 | D8: =$G$16 -> 2011 | E8: =$H$16 -> 2011 | F8: =$I$16 -> 2011 | G8: =$J$16 -> 2011 | H8: =$K$16 -> 2011 | I8: =$L$16 -> 2011 | J8: =$M$16 -> 2011 | K8: =$N$16 -> 2011 | L8: =$O$16 -> 2011 | M8: =$P$16 -> 2011 | N8: =$Q$16 -> 2011 | O8: =$R$16 -> 2011 | P8: =$S$16 -> 2011 | Q8: =$T$16 -> 2011 | R8: =$U$16 -> 2011 | S8: =$V$16 -> 2011 | T8: =$W$16 -> 2011 | U8: =$X$16 -> 2011 | V8: =$Y$16 -> 2011 | W8: =$Z$16 -> 2011 | X8: =$AA$16 -> 2011 | Y8: =$AB$16 -> 2011 | Z8: =$AC$16 -> 2011 | AA8: =$AD$16 -> 2011 | AB8: =$AE$16 -> 2011 | AC8: =$AF$16 -> 2011 | AD8: =$AG$16 -> 2011 | AE8: =$AH$16 -> 2011 | AF8: =$AI$16 -> 2011 | AG8: =$AJ$16 -> 2011 | AH8: =$AK$16 -> 2011 | AI8: =$AL$16 -> 2011 | AJ8: =$AM$16 -> 2011 | AK8: =$AN$16 -> 2011 | AL8: =$AO$16 -> 2011 | AM8: =$AP$16 -> 2011 | AN8: =$AQ$16 -> 2011 | AO8: =$AR$16 -> 2011 | AP8: =$AS$16 -> 2011 | AQ8: =$AT$16 -> 2011 | AR8: =$AU$16 -> 2011 | AS8: =$AV$16 -> 2011 | AT8: =$AW$16 -> 2011 | AU8: =$AX$16 -> 2011 | AV8: =$AY$16 -> 2011 | AW8: =$AZ$16 -> 2011 | AX8: =$BA$16 -> 2011 | AY8: =$BB$16 -> 2011 | AZ8: =$BC$16 -> 2011 | BA8: =$BD$16 -> 2011 | BB8: =$BE$16 -> 2011 | BC8: =$BF$16 -> 2011 | BD8: =$BG$16 -> 2011 | BE8: =$BH$16 -> 2011 | BF8: =$BI$16 -> 2011 | BG8: =$BJ$16 -> 2011 | BH8: =$BK$16 -> 2011 | BI8: =$BL$16 -> 2011 | BJ8: =$BM$16 -> 2011 | BK8: =$BN$16 -> 2011 | BL8: =$BO$16 -> 2011 | BM8: =$BP$16 -> 2011 | BN8: =$BQ$16 -> 2011 | BO8: =$BR$16 -> 2011 | BP8: =$BS$16 -> 2011 | BQ8: =$BT$16 -> 2011 | BR8: =$BU$16 -> 2011 | BS8: =$BV$16 -> 2011 | BT8: =$BW$16 -> 2011 | BU8: =$BX$16 -> 2011 | BV8: =$BY$16 -> 2011 | BW8: =$BZ$16 -> 2011 | BX8: =$CA$16 -> 2011 | BY8: =$CB$16 -> 2011 | BZ8: =$CC$16 -> 2011 | CA8: =$CD$16 -> 2011 | CB8: =$CE$16 -> 2011 | CC8: =$CF$16 -> 2011 | CD8: =$CG$16 -> 2011 | CE8: =$CH$16 -> 2011 | CF8: =$CI$16 -> 2011 | CG8: =$CJ$16 -> 2011 | CH8: =$CK$16 -> 2011 | CI8: =$CL$16 -> 2011 | CJ8: =$CM$16 -> 2011 | CK8: =$CN$16 -> 2011 | CL8: =$CO$16 -> 2011 | CM8: =$CP$16 -> 2011 | CN8: =$CQ$16 -> 2011 | CO8: =$CR$16 -> 2011 | CP8: =$CS$16 -> 2011 | CQ8: =$CT$16 -> 2011 | CR8: =$CU$16 -> 2011 | CS8: =$CV$16 -> 2011 | CT8: =$CW$16 -> 2011 | CU8: =$CX$16 -> 2011 | CV8: =$CY$16 -> 2011 | CW8: =$CZ$16 -> 2011 | CX8: =$DA$16 -> 2011 | CY8: =$DB$16 -> 2011 | CZ8: =$DC$16 -> 2011 | DA8: =$DD$16 -> 2011 | DB8: =$DE$16 -> 2011 | DC8: =$DF$16 -> 2011 | DD8: =$DG$16 -> 2011 | DE8: =$DH$16 -> 2011 | DF8: =$DI$16 -> 2011 | DG8: =$DJ$16 -> 2011 | DH8: =$DK$16 -> 2011 | DI8: =$DL$16 -> 2011 | DJ8: =$DM$16 -> 2011 | DK8: =$DN$16 -> 2011 | DL8: =$DO$16 -> 2011 | DM8: =$DP$16 -> 2011 | DN8: =$DQ$16 -> 2011 | DO8: =$DR$16 -> 2011 | DP8: =$DS$16 -> 2011 | DQ8: =$DT$16 -> 2011 | DR8: =$DU$16 -> 2011 | DS8: =$DV$16 -> 2011 | DT8: =$DW$16 -> 2011 | DU8: =$DX$16 -> 2011 | DV8: =$DY$16 -> 2011 | DW8: =$DZ$16 -> 2011 | DX8: =$EA$16 -> 2011 | DY8: =$EB$16 -> 2011 | DZ8: =$EC$16 -> 2011 | EA8: =$ED$16 -> 2011 | EB8: =$EE$16 -> 2011 | EC8: =$EF$16 -> 2011 | ED8: =$EG$16 -> 2011 | EE8: =$EH$16 -> 2011 | EF8: =$EI$16 -> 2011 | EG8: =$EJ$16 -> 2011 | EH8: =$EK$16 -> 2011 | EI8: =$EL$16 -> 2011 | EJ8: =$EM$16 -> 2011 | EK8: =$EN$16 -> 2011 | EL8: =$EO$16 -> 2011 | EM8: =$EP$16 -> 2011 | EN8: =$EQ$16 -> 2001 | EO8: =$ER$16 -> 2001 | EP8: =$ES$16 -> 2011 | EQ8: =$ET$16 -> 2011 | ER8: =$EU$16 -> 2011 | ES8: =$EV$16 -> 2011 | ET8: =$EW$16 -> 2011 | EU8: =$EX$16 -> 2011 | EV8: =$EY$16 -> 2011 | EW8: =$EZ$16 -> 2011 | EX8: =$FA$16 -> 2011 | EY8: =$FB$16 -> 2011 | EZ8: =$FC$16 -> 2011 | FA8: =$FD$16 -> 2011 | FB8: =$FE$16 -> 2011 | FC8: =$FF$16 -> 2011 | FD8: =$FG$16 -> 2011 | FE8: =$FH$16 -> 2011 | FF8: =$FI$16 -> 2011 | FG8: =$FJ$16 -> 2011 | FH8: =$FK$16 -> 2011 | FI8: =$FL$16 -> 2011 | FJ8: =$FM$16 -> 2011 | FK8: =$FN$16 -> 2011 | FL8: =$FO$16 -> 2011 | FM8: =$FP$16 -> 2011 | FN8: =$FQ$16 -> 2011 | FO8: =$FR$16 -> 2011 | FP8: =$FS$16 -> 2011 | FQ8: =$FT$16 -> 2011 | FR8: =$FU$16 -> 2011 | FS8: =$FV$16 -> 2011 | FT8: =$FW$16 -> 2011 | FU8: =$FX$16 -> 2011 | FV8: =$FY$16 -> 2011 | FW8: =$FZ$16 -> 2011 | FX8: =$GA$16 -> 2011 | FY8: =$GB$16 -> 2011 | FZ8: =$GC$16 -> 2011 | GA8: =$GD$16 -> 2011 | GB8: =$GE$16 -> 2011 | GC8: =$GF$16 -> 2011 | GD8: =$GG$16 -> 2011 | GE8: =$GH$16 -> 2011 | GF8: =$GI$16 -> 2011 | GG8: =$GJ$16 -> 2011 | GH8: =$GK$16 -> 2011 | GI8: =$GL$16 -> 2011 | GJ8: =$GM$16 -> 2011 | GK8: =$GN$16 -> 2011 | GL8: =$GO$16 -> 2011 | GM8: =$GP$16 -> 2011 | GN8: =$GQ$16 -> 2011 | GO8: =$GR$16 -> 2011 | GP8: =$GS$16 -> 2011 | GQ8: =$GT$16 -> 2011 | GR8: =$GU$16 -> 2011 | GS8: =$GV$16 -> 2011 | GT8: =$GW$16 -> 2011 | GU8: =$GX$16 -> 2011 | GV8: =$GY$16 -> 2011 | GW8: =$GZ$16 -> 2011 | GX8: =$HA$16 -> 2011 | GY8: =$HB$16 -> 2011 | GZ8: =$HC$16 -> 2011 | HA8: =$HD$16 -> 2011 | HB8: =$HE$16 -> 2011 | HC8: =$HF$16 -> 2011 | HD8: =$HG$16 -> 2011 | HE8: =$HH$16 -> 2011 | HF8: =$HI$16 -> 2011 | HG8: =$HJ$16 -> 2011 | HH8: =$HK$16 -> 2011 | HI8: =$HL$16 -> 0 | HJ8: =$HM$16 -> 0
B9: =E$17 -> 0 | C9: =$F$17 -> QS108 | D9: =$G$17 -> QS108 | E9: =$H$17 -> QS108 | F9: =$I$17 -> QS108 | G9: =$J$17 -> QS108 | H9: =$K$17 -> QS108 | I9: =$L$17 -> QS108 | J9: =$M$17 -> QS108 | K9: =$N$17 -> QS108 | L9: =$O$17 -> QS108 | M9: =$P$17 -> QS108 | N9: =$Q$17 -> QS208 | O9: =$R$17 -> QS208 | P9: =$S$17 -> QS208 | Q9: =$T$17 -> QS208 | R9: =$U$17 -> QS208 | S9: =$V$17 -> QS208 | T9: =$W$17 -> QS208 | U9: =$X$17 -> QS208 | V9: =$Y$17 -> QS208 | W9: =$Z$17 -> QS201 | X9: =$AA$17 -> QS201 | Y9: =$AB$17 -> QS201 | Z9: =$AC$17 -> QS201 | AA9: =$AD$17 -> QS201 | AB9: =$AE$17 -> QS201 | AC9: =$AF$17 -> QS201 | AD9: =$AG$17 -> QS201 | AE9: =$AH$17 -> QS201 | AF9: =$AI$17 -> QS201 | AG9: =$AJ$17 -> QS201 | AH9: =$AK$17 -> QS201 | AI9: =$AL$17 -> QS201 | AJ9: =$AM$17 -> QS201 | AK9: =$AN$17 -> QS201 | AL9: =$AO$17 -> QS201 | AM9: =$AP$17 -> QS201 | AN9: =$AQ$17 -> QS201 | AO9: =$AR$17 -> QS201 | AP9: =$AS$17 -> QS201 | AQ9: =$AT$17 -> QS201 | AR9: =$AU$17 -> QS201 | AS9: =$AV$17 -> QS201 | AT9: =$AW$17 -> QS201 | AU9: =$AX$17 -> QS203 | AV9: =$AY$17 -> QS203 | AW9: =$AZ$17 -> QS203 | AX9: =$BA$17 -> QS203 | AY9: =$BB$17 -> QS203 | AZ9: =$BC$17 -> QS203 | BA9: =$BD$17 -> QS203 | BB9: =$BE$17 -> QS203 | BC9: =$BF$17 -> QS203 | BD9: =$BG$17 -> QS203 | BE9: =$BH$17 -> QS203 | BF9: =$BI$17 -> QS203 | BG9: =$BJ$17 -> QS203 | BH9: =$BK$17 -> QS203 | BI9: =$BL$17 -> QS203 | BJ9: =$BM$17 -> QS203 | BK9: =$BN$17 -> QS203 | BL9: =$BO$17 -> QS203 | BM9: =$BP$17 -> QS203 | BN9: =$BQ$17 -> QS203 | BO9: =$BR$17 -> QS203 | BP9: =$BS$17 -> QS801 | BQ9: =$BT$17 -> QS801 | BR9: =$BU$17 -> QS801 | BS9: =$BV$17 -> QS801 | BT9: =$BW$17 -> QS801 | BU9: =$BX$17 -> QS801 | BV9: =$BY$17 -> QS801 | BW9: =$BZ$17 -> QS801 | BX9: =$CA$17 -> QS801 | BY9: =$CB$17 -> QS801 | BZ9: =$CC$17 -> QS801 | CA9: =$CD$17 -> QS801 | CB9: =$CE$17 -> QS803 | CC9: =$CF$17 -> QS803 | CD9: =$CG$17 -> QS803 | CE9: =$CH$17 -> QS803 | CF9: =$CI$17 -> QS204 | CG9: =$CJ$17 -> QS204 | CH9: =$CK$17 -> QS204 | CI9: =$CL$17 -> QS204 | CJ9: =$CM$17 -> QS204 | CK9: =$CN$17 -> QS204 | CL9: =$CO$17 -> QS204 | CM9: =$CP$17 -> QS204 | CN9: =$CQ$17 -> QS204 | CO9: =$CR$17 -> QS204 | CP9: =$CS$17 -> QS204 | CQ9: =$CT$17 -> QS204 | CR9: =$CU$17 -> QS204 | CS9: =$CV$17 -> QS204 | CT9: =$CW$17 -> QS204 | CU9: =$CX$17 -> QS204 | CV9: =$CY$17 -> QS204 | CW9: =$CZ$17 -> QS204 | CX9: =$DA$17 -> QS204 | CY9: =$DB$17 -> QS204 | CZ9: =$DC$17 -> QS204 | DA9: =$DD$17 -> QS204 | DB9: =$DE$17 -> QS205 | DC9: =$DF$17 -> QS205 | DD9: =$DG$17 -> QS205 | DE9: =$DH$17 -> QS205 | DF9: =$DI$17 -> QS205 | DG9: =$DJ$17 -> QS205 | DH9: =$DK$17 -> QS303 | DI9: =$DL$17 -> QS303 | DJ9: =$DM$17 -> QS303 | DK9: =$DN$17 -> QS303 | DL9: =$DO$17 -> QS302 | DM9: =$DP$17 -> QS302 | DN9: =$DQ$17 -> QS302 | DO9: =$DR$17 -> QS302 | DP9: =$DS$17 -> QS302 | DQ9: =$DT$17 -> QS302 | DR9: =$DU$17 -> LC3302 | DS9: =$DV$17 -> LC3302 | DT9: =$DW$17 -> LC3302 | DU9: =$DX$17 -> LC3302 | DV9: =$DY$17 -> LC3302 | DW9: =$DZ$17 -> LC3302 | DX9: =$EA$17 -> LC3302 | DY9: =$EB$17 -> LC3302 | DZ9: =$EC$17 -> LC3302 | EA9: =$ED$17 -> LC3302 | EB9: =$EE$17 -> LC3302 | EC9: =$EF$17 -> LC3302 | ED9: =$EG$17 -> QS301 | EE9: =$EH$17 -> QS301 | EF9: =$EI$17 -> QS301 | EG9: =$EJ$17 -> QS301 | EH9: =$EK$17 -> LC3304 | EI9: =$EL$17 -> LC3304 | EJ9: =$EM$17 -> LC3304 | EK9: =$EN$17 -> LC3304 | EL9: =$EO$17 -> LC3304 | EM9: =$EP$17 -> LC3304 | EN9: =$EQ$17 -> 0 | EO9: =$ER$17 -> 0 | EP9: =$ES$17 -> KS603 | EQ9: =$ET$17 -> KS603 | ER9: =$EU$17 -> KS603 | ES9: =$EV$17 -> KS603 | ET9: =$EW$17 -> KS603 | EU9: =$EX$17 -> KS603 | EV9: =$EY$17 -> KS603 | EW9: =$EZ$17 -> KS603 | EX9: =$FA$17 -> KS603 | EY9: =$FB$17 -> KS603 | EZ9: =$FC$17 -> KS603 | FA9: =$FD$17 -> KS603 | FB9: =$FE$17 -> KS603 | FC9: =$FF$17 -> QS605 | FD9: =$FG$17 -> QS605 | FE9: =$FH$17 -> QS605 | FF9: =$FI$17 -> QS605 | FG9: =$FJ$17 -> QS605 | FH9: =$FK$17 -> QS605 | FI9: =$FL$17 -> QS605 | FJ9: =$FM$17 -> QS605 | FK9: =$FN$17 -> QS605 | FL9: =$FO$17 -> QS605 | FM9: =$FP$17 -> QS605 | FN9: =$FQ$17 -> QS605 | FO9: =$FR$17 -> QS605 | FP9: =$FS$17 -> QS605 | FQ9: =$FT$17 -> QS605 | FR9: =$FU$17 -> QS605 | FS9: =$FV$17 -> QS605 | FT9: =$FW$17 -> QS605 | FU9: =$FX$17 -> QS605 | FV9: =$FY$17 -> QS605 | FW9: =$FZ$17 -> QS605 | FX9: =$GA$17 -> QS606 | FY9: =$GB$17 -> QS606 | FZ9: =$GC$17 -> QS606 | GA9: =$GD$17 -> QS606 | GB9: =$GE$17 -> QS606 | GC9: =$GF$17 -> QS606 | GD9: =$GG$17 -> QS606 | GE9: =$GH$17 -> QS606 | GF9: =$GI$17 -> QS606 | GG9: =$GJ$17 -> QS701 | GH9: =$GK$17 -> QS701 | GI9: =$GL$17 -> QS701 | GJ9: =$GM$17 -> QS701 | GK9: =$GN$17 -> QS701 | GL9: =$GO$17 -> QS701 | GM9: =$GP$17 -> QS701 | GN9: =$GQ$17 -> QS701 | GO9: =$GR$17 -> QS701 | GP9: =$GS$17 -> QS701 | GQ9: =$GT$17 -> QS701 | GR9: =$GU$17 -> QS702 | GS9: =$GV$17 -> QS702 | GT9: =$GW$17 -> QS702 | GU9: =$GX$17 -> QS702 | GV9: =$GY$17 -> QS702 | GW9: =$GZ$17 -> QS702 | GX9: =$HA$17 -> QS702 | GY9: =$HB$17 -> QS702 | GZ9: =$HC$17 -> QS702 | HA9: =$HD$17 -> QS501 | HB9: =$HE$17 -> QS501 | HC9: =$HF$17 -> QS501 | HD9: =$HG$17 -> QS501 | HE9: =$HH$17 -> QS501 | HF9: =$HI$17 -> QS501 | HG9: =$HJ$17 -> QS501 | HH9: =$HK$17 -> KS603 | HI9: =$HL$17 -> 0 | HJ9: =$HM$17 -> 0
A10: Linked to row 18 | B10: =$E$18 -> Total Population | C10: =$F$18 -> 16+ population | D10: =$G$18 -> Living in a couple: Total | E10: =$H$18 -> Living in a couple: Married | F10: =$I$18 -> Living in a couple: Cohabiting (opposite-sex) | G10: =$J$18 -> Living in a couple: In a registered same-sex civil partnership or cohabiting (same-sex) | H10: =$K$18 -> Not living in a couple: Total | I10: =$L$18 -> Not living in a couple: Single (never married or never registered a same-sex civil partnership) | J10: =$M$18 -> Not living in a couple: Married or in a registered same-sex civil partnership | K10: =$N$18 -> Not living in a couple: Separated (but still legally married or still legally in a same-sex civil partnership) | L10: =$O$18 -> Not living in a couple: Divorced or formerly in a same-sex civil partnership which is now legally dissolved | M10: =$P$18 -> Not living in a couple: Widowed or surviving partner from a same-sex civil partnership | N10: =$Q$18 -> Christian | O10: =$R$18 -> Buddhist | P10: =$S$18 -> Hindu | Q10: =$T$18 -> Jewish | R10: =$U$18 -> Muslim | S10: =$V$18 -> Sikh | T10: =$W$18 -> Other religion | U10: =$X$18 -> No religion | V10: =$Y$18 -> Religion not stated | W10: =$Z$18 -> White | X10: =$AA$18 -> White: English/Welsh/Scottish/Northern Irish/British | Y10: =$AB$18 -> White: Irish | Z10: =$AC$18 -> White: Gypsy or Irish Traveller | AA10: =$AD$18 -> White: Other White | AB10: =$AE$18 -> BME Non-white | AC10: =$AF$18 -> Mixed/multiple ethnic groups | AD10: =$AG$18 -> Mixed/multiple ethnic groups: White and Black Caribbean | AE10: =$AH$18 -> Mixed/multiple ethnic groups: White and Black African | AF10: =$AI$18 -> Mixed/multiple ethnic groups: White and Asian | AG10: =$AJ$18 -> Mixed/multiple ethnic groups: Other Mixed | AH10: =$AK$18 -> Asian/Asian British | AI10: =$AL$18 -> Asian/Asian British: Indian | AJ10: =$AM$18 -> Asian/Asian British: Pakistani | AK10: =$AN$18 -> Asian/Asian British: Bangladeshi | AL10: =$AO$18 -> Asian/Asian British: Chinese | AM10: =$AP$18 -> Asian/Asian British: Other Asian | AN10: =$AQ$18 -> Black/African/Caribbean/Black British | AO10: =$AR$18 -> Black/African/Caribbean/Black British: African | AP10: =$AS$18 -> Black/African/Caribbean/Black British: Caribbean | AQ10: =$AT$18 -> Black/African/Caribbean/Black British: Other Black | AR10: =$AU$18 -> Other ethnic group | AS10: =$AV$18 -> Other ethnic group: Arab | AT10: =$AW$18 -> Other ethnic group: Any other ethnic group | AU10: =$AX$18 -> United Kingdom Total | AV10: =$AY$18 -> England | AW10: =$AZ$18 -> Northern Ireland | AX10: =$BA$18 -> Scotland | AY10: =$BB$18 -> Wales | AZ10: =$BC$18 -> GB Other | BA10: =$BD$18 -> UK Other | BB10: =$BE$18 -> Guernsey | BC10: =$BF$18 -> Jersey | BD10: =$BG$18 -> Channel Islands (other) | BE10: =$BH$18 -> Isle of Man | BF10: =$BI$18 -> Ireland | BG10: =$BJ$18 -> Other EU Total | BH10: =$BK$18 -> Members in March 2001 | BI10: =$BL$18 -> Accession Countries (April 2001 to March 2011) | BJ10: =$BM$18 -> Rest of Europe Total | BK10: =$BN$18 -> Africa Total | BL10: =$BO$18 -> Middle East & Asia | BM10: =$BP$18 -> The Americas & caribbean Total | BN10: =$BQ$18 -> Antarctica & Oceania Total | BO10: =$BR$18 -> Other | BP10: =$BS$18 -> Born in the UK | BQ10: =$BT$18 -> Arrived before 1941 | BR10: =$BU$18 -> Arrived 1941-1950 | BS10: =$BV$18 -> Arrived 1951-1960 | BT10: =$BW$18 -> Arrived 1961-1970 | BU10: =$BX$18 -> Arrived 1971-1980 | BV10: =$BY$18 -> Arrived 1981-1990 | BW10: =$BZ$18 -> Arrived 1991-2000 | BX10: =$CA$18 -> Arrived 2001-2003 | BY10: =$CB$18 -> Arrived 2004-2006 | BZ10: =$CC$18 -> Arrived 2007-2009 | CA10: =$CD$18 -> Arrived 2010-2011 | CB10: =$CE$18 -> Less than 2 years | CC10: =$CF$18 -> More than 2 years and less than 5 years | CD10: =$CG$18 -> Mare than 5 years and less than 10 years | CE10: =$CH$18 -> 10 years or more | CF10: =$CI$18 -> All usual residents aged 3 and over | CG10: =$CJ$18 -> English (English or Welsh if in Wales) | CH10: =$CK$18 -> Welsh/Cymraeg (in England only) | CI10: =$CL$18 -> Other UK language: Total | CJ10: =$CM$18 -> French | CK10: =$CN$18 -> Portuguese | CL10: =$CO$18 -> Spanish | CM10: =$CP$18 -> Other European Language (EU): Total | CN10: =$CQ$18 -> Other European Language (non EU): Total | CO10: =$CR$18 -> Other European Language (non-national): Total | CP10: =$CS$18 -> Russian | CQ10: =$CT$18 -> Turkish | CR10: =$CU$18 -> Arabic | CS10: =$CV$18 -> West/Central Asian Language: Total | CT10: =$CW$18 -> South Asian Language: Total | CU10: =$CX$18 -> East Asian Language: Total | CV10: =$CY$18 -> Oceanic/Australian language (any) | CW10: =$CZ$18 -> North/South American language (any) | CX10: =$DA$18 -> Caribbean Creole: Total | CY10: =$DB$18 -> African Language: Total | CZ10: =$DC$18 -> Other Languages: Total | DA10: =$DD$18 -> Sign Language: Total | DB10: =$DE$18 -> All categories: Proficiency in English | DC10: =$DF$18 -> Main language is English (English or Welsh in Wales) | DD10: =$DG$18 -> Main language is not English (English or Welsh in Wales): Can speak English very well | DE10: =$DH$18 -> Main language is not English (English or Welsh in Wales): Can speak English well | DF10: =$DI$18 -> Main language is not English (English or Welsh in Wales): Cannot speak English well | DG10: =$DJ$18 -> Main language is not English (English or Welsh in Wales): Cannot speak English | DH10: =$DK$18 -> All categories: Long-term health problem or disability | DI10: =$DL$18 -> Day-to-day activities limited a lot | DJ10: =$DM$18 -> Day-to-day activities limited a little | DK10: =$DN$18 -> Day-to-day activities not limited | DL10: =$DO$18 -> All categories: General health | DM10: =$DP$18 -> Very good health | DN10: =$DQ$18 -> Good health | DO10: =$DR$18 -> Fair health | DP10: =$DS$18 -> Bad health | DQ10: =$DT$18 -> Very bad health | DR10: =$DU$18 -> Long term health problem or disability_All people | DS10: =$DV$18 -> Long term health problem or disability_Males | DT10: =$DW$18 -> Long term health problem or disability_Females | DU10: =$DX$18 -> Long term health problem or disability - 50-64 | DV10: =$DY$18 -> Long term health problem or disability - 65-84 | DW10: =$DZ$18 -> Long term health problem or disability - 85+ | DX10: =$EA$18 -> Long term health problem or disability - 50-64 Males | DY10: =$EB$18 -> Long term health problem or disability - 65-84 Males | DZ10: =$EC$18 -> Long term health problem or disability - 85+ Males | EA10: =$ED$18 -> Long term health problem or disability - 50-64 Females | EB10: =$EE$18 -> Long term health problem or disability - 65-84 Females | EC10: =$EF$18 -> Long term health problem or disability - 85+ Females | ED10: =$EG$18 -> People providing no unpaid care | EE10: =$EH$18 -> People providing unpaid care: 1 to 19 hours a week | EF10: =$EI$18 -> People providing unpaid care: 20 to 49 hours a week | EG10: =$EJ$18 -> People providing unpaid care : 50 or more hours a week | EH10: =$EK$18 -> Unpaid care | EI10: =$EL$18 -> 0-15 | EJ10: =$EM$18 -> 16-34 | EK10: =$EN$18 -> 35-49 | EL10: =$EO$18 -> 50-64 | EM10: =$EP$18 -> 65+ | EN10: =$EQ$18 -> 0 | EO10: =$ER$18 -> 0 | EP10: =$ES$18 -> All usual residents aged 16 to 74 in employment the week before the census | EQ10: =$ET$18 -> Total Economically Active | ER10: =$EU$18 -> Part-time | ES10: =$EV$18 -> Full-time | ET10: =$EW$18 -> Self-Employed | EU10: =$EX$18 -> Full-time Student | EV10: =$EY$18 -> Unemployed | EW10: =$EZ$18 -> Total Economically Inactive | EX10: =$FA$18 -> Retired | EY10: =$FB$18 -> Student | EZ10: =$FC$18 -> Looking after home/ family | FA10: =$FD$18 -> Permanently sick/disabled | FB10: =$FE$18 -> Other | FC10: =$FF$18 -> All categories: Industry | FD10: =$FG$18 -> A Agriculture, forestry and fishing | FE10: =$FH$18 -> B Mining and quarrying | FF10: =$FI$18 -> C Manufacturing | FG10: =$FJ$18 -> D Electricity, gas, steam and air conditioning supply | FH10: =$FK$18 -> E Water supply, sewerage, waste management and remediation activities | FI10: =$FL$18 -> F Construction | FJ10: =$FM$18 -> G Wholesale and retail trade; repair of motor vehicles and motor cycles | FK10: =$FN$18 -> H Transport and storage | FL10: =$FO$18 -> I Accommodation and food service activities | FM10: =$FP$18 -> J Information and communication | FN10: =$FQ$18 -> K Financial and insurance activities | FO10: =$FR$18 -> L Real estate activities | FP10: =$FS$18 -> M Professional, scientific and technical activities | FQ10: =$FT$18 -> N Administrative and support service activities | FR10: =$FU$18 -> O Public administration and defence; compulsory social security | FS10: =$FV$18 -> P Education | FT10: =$FW$18 -> Q Human health and social work activities | FU10: =$FX$18 -> R,S Arts, entertainment and recreation; other service activities | FV10: =$FY$18 -> T Activities of households as employers; undifferentiated goods - and services - producing activities of households for own use | FW10: =$FZ$18 -> U Activities of extraterritorial organisations and bodies | FX10: =$GA$18 -> Managers and Senior Officials | FY10: =$GB$18 -> Professional Occupations | FZ10: =$GC$18 -> Associate Professional and Technical Occupations | GA10: =$GD$18 -> Administrative and Secretarial Occupations | GB10: =$GE$18 -> Skilled Trades Occupations | GC10: =$GF$18 -> Personal Service Occupations | GD10: =$GG$18 -> Sales and Customer Service Occupations | GE10: =$GH$18 -> Process; Plant and Machine Operatives | GF10: =$GI$18 -> Elementary Occupations | GG10: =$GJ$18 -> Work mainly at or from home | GH10: =$GK$18 -> Underground, metro, light rail, tram | GI10: =$GL$18 -> Train | GJ10: =$GM$18 -> Bus, minibus or coach | GK10: =$GN$18 -> Taxi | GL10: =$GO$18 -> Motorcycle, scooter or moped | GM10: =$GP$18 -> Driving a car or van | GN10: =$GQ$18 -> Passenger in a car or van | GO10: =$GR$18 -> Bicycle | GP10: =$GS$18 -> On foot | GQ10: =$GT$18 -> Other method of travel to work | GR10: =$GU$18 -> Less than 2km | GS10: =$GV$18 -> 2km to less than 5km | GT10: =$GW$18 -> 5km to less than 10km | GU10: =$GX$18 -> 10km to less than 20 km | GV10: =$GY$18 -> 20km to less than 40km | GW10: =$GZ$18 -> 40km to less than 60km | GX10: =$HA$18 -> 60km and over | GY10: =$HB$18 -> Working at or from home | GZ10: =$HC$18 -> Other | HA10: =$HD$18 -> No qualifications | HB10: =$HE$18 -> Level 1 qualifications | HC10: =$HF$18 -> Level 2 qualifications | HD10: =$HG$18 -> Apprenticeship | HE10: =$HH$18 -> Level 3 qualifications | HF10: =$HI$18 -> Level 4 qualifications and above | HG10: =$HJ$18 -> Other qualifications | HH10: =$HK$18 -> All usual residents aged 16-74, economically active, in employment | HI10: =$HL$18 -> 0 | HJ10: =$HM$18 -> 0
A12: =INDEX($A$37:$A$367,$C$4) -> Aylesford Green | B12: =INDEX(E$37:E$367,$C$4) -> 2872 | C12: 2224 | D12: 1204 | E12: 888 | F12: 308 | G12: 8 | H12: 1020 | I12: 603 | J12: 26 | K12: 49 | L12: 199 | M12: 143 | N12: 1647 | O12: 30 | P12: 49 | Q12: 4 | R12: 33 | S12: 0 | T12: 3 | U12: 911 | V12: 195 | W12: 2639 | X12: 2541 | Y12: 19 | Z12: 10 | AA12: 69 | AB12: 233 | AC12: 44 | AD12: 16 | AE12: 7 | AF12: 7 | AG12: 14 | AH12: 150 | AI12: 54 | AJ12: 2 | AK12: 8 | AL12: 2 | AM12: 84 | AN12: 32 | AO12: 22 | AP12: 8 | AQ12: 2 | AR12: 7 | AS12: 0 | AT12: 7 | AU12: 2617 | AV12: 2568 | AW12: 8 | AX12: 30 | AY12: 11 | AZ12: 0 | BA12: 0 | BB12: 0 | BC12: 2 | BD12: 0 | BE12: 0 | BF12: 14 | BG12: 66 | BH12: 33 | BI12: 33 | BJ12: 12 | BK12: 29 | BL12: 118 | BM12: 13 | BN12: =INDEX(BQ$37:BQ$367,$C$4) -> 1 | BO12: 0 | BP12: 2617 | BQ12: 0 | BR12: 5 | BS12: 8 | BT12: 13 | BU12: 17 | BV12: 16 | BW12: 32 | BX12: 36 | BY12: 42 | BZ12: 64 | CA12: 22 | CB12: 32 | CC12: 66 | CD12: 64 | CE12: 93 | CF12: 2730 | CG12: 2580 | CH12: 0 | CI12: 0 | CJ12: 3 | CK12: 0 | CL12: 1 | CM12: 31 | CN12: 11 | CO12: 0 | CP12: 1 | CQ12: 2 | CR12: 0 | CS12: 5 | CT12: 79 | CU12: 6 | CV12: 0 | CW12: 0 | CX12: 0 | CY12: 8 | CZ12: 0 | DA12: 3 | DB12: 2730 | DC12: 2580 | DD12: 61 | DE12: 61 | DF12: 23 | DG12: 5 | DH12: 2872 | DI12: 322 | DJ12: 302 | DK12: 2248 | DL12: 2872 | DM12: 1117 | DN12: 1051 | DO12: 481 | DP12: 171 | DQ12: 52 | DR12: 624 | DS12: 281 | DT12: 343 | DU12: 135 | DV12: 205 | DW12: 55 | DX12: 69 | DY12: 89 | DZ12: =INDEX(EC$37:EC$367,$C$4) -> 14 | EA12: 66 | EB12: 116 | EC12: 41 | ED12: 2569 | EE12: 164 | EF12: 50 | EG12: 89 | EH12: 303 | EI12: 11 | EJ12: 54 | EK12: 95 | EL12: 91 | EM12: 52 | EN12: 0 | EO12: 0 | EP12: 2027 | EQ12: 1393 | ER12: 288 | ES12: 778 | ET12: 132 | EU12: 68 | EV12: 127 | EW12: 634 | EX12: 237 | EY12: 68 | EZ12: 130 | FA12: 138 | FB12: 61 | FC12: 1250 | FD12: 2 | FE12: 1 | FF12: 132 | FG12: 7 | FH12: 10 | FI12: 122 | FJ12: 229 | FK12: 90 | FL12: 74 | FM12: 29 | FN12: 17 | FO12: 7 | FP12: 54 | FQ12: 96 | FR12: 39 | FS12: 86 | FT12: 194 | FU12: 60 | FV12: 0 | FW12: 1 | FX12: 87 | FY12: 132 | FZ12: 106 | GA12: 106 | GB12: 170 | GC12: 167 | GD12: 137 | GE12: 122 | GF12: 223 | GG12: 43 | GH12: 0 | GI12: 50 | GJ12: 77 | GK12: 3 | GL12: =INDEX(GO$37:GO$367,$C$4) -> 10 | GM12: 655 | GN12: 103 | GO12: 73 | GP12: 231 | GQ12: 5 | GR12: 480 | GS12: 206 | GT12: 42 | GU12: 101 | GV12: 133 | GW12: 24 | GX12: 72 | GY12: 88 | GZ12: 104 | HA12: 706 | HB12: 424 | HC12: 374 | HD12: 69 | HE12: 252 | HF12: 280 | HG12: 119 | HH12: 1198 | HI12: 0 | HJ12: 0
A13: =Data!$A$13 -> Ashford | B13: =VLOOKUP($A$13,CensusDistricts,$B$5) -> 117956 | C13: =VLOOKUP($A$13,CensusDistricts,$C$5) -> 92512 | D13: =VLOOKUP($A$13,CensusDistricts,$D$5) -> 59329 | E13: =VLOOKUP($A$13,CensusDistricts,$E$5) -> 46996 | F13: =VLOOKUP($A$13,CensusDistricts,$F$5) -> 11649 | G13: =VLOOKUP($A$13,CensusDistricts,$G$5) -> 684 | H13: =VLOOKUP($A$13,CensusDistricts,$H$5) -> 33183 | I13: =VLOOKUP($A$13,CensusDistricts,$I$5) -> 18814 | J13: =VLOOKUP($A$13,CensusDistricts,$J$5) -> 977 | K13: =VLOOKUP($A$13,CensusDistricts,$K$5) -> 1967 | L13: =VLOOKUP($A$13,CensusDistricts,$L$5) -> 5711 | M13: =VLOOKUP($A$13,CensusDistricts,$M$5) -> 5714 | N13: =VLOOKUP($A$13,CensusDistricts,$N$5) -> 74253 | O13: =VLOOKUP($A$13,CensusDistricts,$O$5) -> 803 | P13: =VLOOKUP($A$13,CensusDistricts,$P$5) -> 1282 | Q13: =VLOOKUP($A$13,CensusDistricts,$Q$5) -> 116 | R13: =VLOOKUP($A$13,CensusDistricts,$R$5) -> 1019 | S13: =VLOOKUP($A$13,CensusDistricts,$S$5) -> 95 | T13: =VLOOKUP($A$13,CensusDistricts,$T$5) -> 432 | U13: =VLOOKUP($A$13,CensusDistricts,$U$5) -> 30984 | V13: =VLOOKUP($A$13,CensusDistricts,$V$5) -> 8972 | W13: =VLOOKUP($A$13,CensusDistricts,$W$5) -> 110520 | X13: =VLOOKUP($A$13,CensusDistricts,$X$5) -> 105498 | Y13: =VLOOKUP($A$13,CensusDistricts,$Y$5) -> 753 | Z13: =VLOOKUP($A$13,CensusDistricts,$Z$5) -> 531 | AA13: =VLOOKUP($A$13,CensusDistricts,$AA$5) -> 3738 | AB13: =VLOOKUP($A$13,CensusDistricts,$AB$5) -> 7436 | AC13: =VLOOKUP($A$13,CensusDistricts,$AC$5) -> 1682 | AD13: =VLOOKUP($A$13,CensusDistricts,$AD$5) -> 544 | AE13: =VLOOKUP($A$13,CensusDistricts,$AE$5) -> 235 | AF13: =VLOOKUP($A$13,CensusDistricts,$AF$5) -> 507 | AG13: =VLOOKUP($A$13,CensusDistricts,$AG$5) -> 396 | AH13: =VLOOKUP($A$13,CensusDistricts,$AH$5) -> 3991 | AI13: =VLOOKUP($A$13,CensusDistricts,$AI$5) -> 958 | AJ13: =VLOOKUP($A$13,CensusDistricts,$AJ$5) -> 161 | AK13: =VLOOKUP($A$13,CensusDistricts,$AK$5) -> 185 | AL13: =VLOOKUP($A$13,CensusDistricts,$AL$5) -> 431 | AM13: =VLOOKUP($A$13,CensusDistricts,$AM$5) -> 2256 | AN13: =VLOOKUP($A$13,CensusDistricts,$AN$5) -> 1375 | AO13: =VLOOKUP($A$13,CensusDistricts,$AO$5) -> 948 | AP13: =VLOOKUP($A$13,CensusDistricts,$AP$5) -> 327 | AQ13: =VLOOKUP($A$13,CensusDistricts,$AQ$5) -> 100 | AR13: =VLOOKUP($A$13,CensusDistricts,$AR$5) -> 388 | AS13: =VLOOKUP($A$13,CensusDistricts,$AS$5) -> 87 | AT13: =VLOOKUP($A$13,CensusDistricts,$AT$5) -> 301 | AU13: =VLOOKUP($A$13,CensusDistricts,$AU$5) -> 106993 | AV13: =VLOOKUP($A$13,CensusDistricts,$AV$5) -> 104391 | AW13: =VLOOKUP($A$13,CensusDistricts,$AW$5) -> 367 | AX13: =VLOOKUP($A$13,CensusDistricts,$AX$5) -> 1393 | AY13: =VLOOKUP($A$13,CensusDistricts,$AY$5) -> 839 | AZ13: =VLOOKUP($A$13,CensusDistricts,$AZ$5) -> 1 | BA13: =VLOOKUP($A$13,CensusDistricts,$BA$5) -> 2 | BB13: =VLOOKUP($A$13,CensusDistricts,$BB$5) -> 11 | BC13: =VLOOKUP($A$13,CensusDistricts,$BC$5) -> 21 | BD13: =VLOOKUP($A$13,CensusDistricts,$BD$5) -> 3 | BE13: =VLOOKUP($A$13,CensusDistricts,$BE$5) -> 12 | BF13: =VLOOKUP($A$13,CensusDistricts,$BF$5) -> 620 | BG13: =VLOOKUP($A$13,CensusDistricts,$BG$5) -> 3348 | BH13: =VLOOKUP($A$13,CensusDistricts,$BH$5) -> 1680 | BI13: =VLOOKUP($A$13,CensusDistricts,$BI$5) -> 1668 | BJ13: =VLOOKUP($A$13,CensusDistricts,$BJ$5) -> 375 | BK13: =VLOOKUP($A$13,CensusDistricts,$BK$5) -> 1680 | BL13: =VLOOKUP($A$13,CensusDistricts,$BL$5) -> 3848 | BM13: =VLOOKUP($A$13,CensusDistricts,$BM$5) -> 700 | BN13: =VLOOKUP($A$13,CensusDistricts,$BN$5) -> 345 | BO13: =VLOOKUP($A$13,CensusDistricts,$BO$5) -> 0 | BP13: =VLOOKUP($A$13,CensusDistricts,$BP$5) -> 106993 | BQ13: =VLOOKUP($A$13,CensusDistricts,$BQ$5) -> 146 | BR13: =VLOOKUP($A$13,CensusDistricts,$BR$5) -> 314 | BS13: =VLOOKUP($A$13,CensusDistricts,$BS$5) -> 565 | BT13: =VLOOKUP($A$13,CensusDistricts,$BT$5) -> 881 | BU13: =VLOOKUP($A$13,CensusDistricts,$BU$5) -> 767 | BV13: =VLOOKUP($A$13,CensusDistricts,$BV$5) -> 745 | BW13: =VLOOKUP($A$13,CensusDistricts,$BW$5) -> 1581 | BX13: =VLOOKUP($A$13,CensusDistricts,$BX$5) -> 1177 | BY13: =VLOOKUP($A$13,CensusDistricts,$BY$5) -> 1994 | BZ13: =VLOOKUP($A$13,CensusDistricts,$BZ$5) -> 1915 | CA13: =VLOOKUP($A$13,CensusDistricts,$CA$5) -> 878 | CB13: =VLOOKUP($A$13,CensusDistricts,$CB$5) -> 1374 | CC13: =VLOOKUP($A$13,CensusDistricts,$CC$5) -> 2065 | CD13: =VLOOKUP($A$13,CensusDistricts,$CD$5) -> 2426 | CE13: =VLOOKUP($A$13,CensusDistricts,$CE$5) -> 5098 | CF13: =VLOOKUP($A$13,CensusDistricts,$CF$5) -> 113353 | CG13: =VLOOKUP($A$13,CensusDistricts,$CG$5) -> 107842 | CH13: =VLOOKUP($A$13,CensusDistricts,$CH$5) -> 12 | CI13: =VLOOKUP($A$13,CensusDistricts,$CI$5) -> 8 | CJ13: =VLOOKUP($A$13,CensusDistricts,$CJ$5) -> 326 | CK13: =VLOOKUP($A$13,CensusDistricts,$CK$5) -> 79 | CL13: =VLOOKUP($A$13,CensusDistricts,$CL$5) -> 82 | CM13: =VLOOKUP($A$13,CensusDistricts,$CM$5) -> 1658 | CN13: =VLOOKUP($A$13,CensusDistricts,$CN$5) -> 86 | CO13: =VLOOKUP($A$13,CensusDistricts,$CO$5) -> 5 | CP13: =VLOOKUP($A$13,CensusDistricts,$CP$5) -> 84 | CQ13: =VLOOKUP($A$13,CensusDistricts,$CQ$5) -> 98 | CR13: =VLOOKUP($A$13,CensusDistricts,$CR$5) -> 68 | CS13: =VLOOKUP($A$13,CensusDistricts,$CS$5) -> 116 | CT13: =VLOOKUP($A$13,CensusDistricts,$CT$5) -> 2224 | CU13: =VLOOKUP($A$13,CensusDistricts,$CU$5) -> 407 | CV13: =VLOOKUP($A$13,CensusDistricts,$CV$5) -> 1 | CW13: =VLOOKUP($A$13,CensusDistricts,$CW$5) -> 1 | CX13: =VLOOKUP($A$13,CensusDistricts,$CX$5) -> 1 | CY13: =VLOOKUP($A$13,CensusDistricts,$CY$5) -> 201 | CZ13: =VLOOKUP($A$13,CensusDistricts,$CZ$5) -> 15 | DA13: =VLOOKUP($A$13,CensusDistricts,$DA$5) -> 39 | DB13: =VLOOKUP($A$13,CensusDistricts,$DB$5) -> 113353 | DC13: =VLOOKUP($A$13,CensusDistricts,$DC$5) -> 107842 | DD13: =VLOOKUP($A$13,CensusDistricts,$DD$5) -> 2539 | DE13: =VLOOKUP($A$13,CensusDistricts,$DE$5) -> 2130 | DF13: =VLOOKUP($A$13,CensusDistricts,$DF$5) -> 704 | DG13: =VLOOKUP($A$13,CensusDistricts,$DG$5) -> 138 | DH13: =VLOOKUP($A$13,CensusDistricts,$DH$5) -> 117956 | DI13: =VLOOKUP($A$13,CensusDistricts,$DI$5) -> 8416 | DJ13: =VLOOKUP($A$13,CensusDistricts,$DJ$5) -> 10669 | DK13: =VLOOKUP($A$13,CensusDistricts,$DK$5) -> 98871 | DL13: =VLOOKUP($A$13,CensusDistricts,$DL$5) -> 117956 | DM13: =VLOOKUP($A$13,CensusDistricts,$DM$5) -> 56128 | DN13: =VLOOKUP($A$13,CensusDistricts,$DN$5) -> 41385 | DO13: =VLOOKUP($A$13,CensusDistricts,$DO$5) -> 15027 | DP13: =VLOOKUP($A$13,CensusDistricts,$DP$5) -> 4163 | DQ13: =VLOOKUP($A$13,CensusDistricts,$DQ$5) -> 1253 | DR13: =VLOOKUP($A$13,CensusDistricts,$DR$5) -> 18381 | DS13: =VLOOKUP($A$13,CensusDistricts,$DS$5) -> 8347 | DT13: =VLOOKUP($A$13,CensusDistricts,$DT$5) -> 10034 | DU13: =VLOOKUP($A$13,CensusDistricts,$DU$5) -> 4262 | DV13: =VLOOKUP($A$13,CensusDistricts,$DV$5) -> 7177 | DW13: =VLOOKUP($A$13,CensusDistricts,$DW$5) -> 1944 | DX13: =VLOOKUP($A$13,CensusDistricts,$DX$5) -> 2010 | DY13: =VLOOKUP($A$13,CensusDistricts,$DY$5) -> 3202 | DZ13: =VLOOKUP($A$13,CensusDistricts,$DZ$5) -> 649 | EA13: =VLOOKUP($A$13,CensusDistricts,$EA$5) -> 2252 | EB13: =VLOOKUP($A$13,CensusDistricts,$EB$5) -> 3975 | EC13: =VLOOKUP($A$13,CensusDistricts,$EC$5) -> 1295 | ED13: =VLOOKUP($A$13,CensusDistricts,$ED$5) -> 106137 | EE13: =VLOOKUP($A$13,CensusDistricts,$EE$5) -> 7686 | EF13: =VLOOKUP($A$13,CensusDistricts,$EF$5) -> 1428 | EG13: =VLOOKUP($A$13,CensusDistricts,EG$5) -> 2705 | EH13: 11819 | EI13: 262 | EJ13: 1363 | EK13: 3150 | EL13: 4294 | EM13: 2750 | EN13: 0 | EO13: 0 | EP13: 84252 | EQ13: 61189 | ER13: 12334 | ES13: 33223 | ET13: 10002 | EU13: 2572 | EV13: 3058 | EW13: 23063 | EX13: 12141 | EY13: 2771 | EZ13: 4114 | FA13: 2626 | FB13: 1411 | FC13: 57546 | FD13: 951 | FE13: 47 | FF13: 4986 | FG13: 382 | FH13: 432 | FI13: 5930 | FJ13: 9845 | FK13: 3070 | FL13: 2955 | FM13: =VLOOKUP($A$13,CensusDistricts,FM$5) -> 1710 | FN13: 1935 | FO13: 650 | FP13: 3519 | FQ13: 3155 | FR13: 2891 | FS13: 5002 | FT13: 7255 | FU13: 2725 | FV13: 95 | FW13: 11 | FX13: 7025 | FY13: 9056 | FZ13: 6704 | GA13: 6261 | GB13: 7600 | GC13: 5283 | GD13: 5185 | GE13: 4179 | GF13: 6253 | GG13: 3995 | GH13: 95 | GI13: 3755 | GJ13: 1507 | GK13: 151 | GL13: 377 | GM13: 36833 | GN13: 3134 | GO13: 1465 | GP13: 5920 | GQ13: 314 | GR13: 9451 | GS13: =VLOOKUP($A$13,CensusDistricts,GS$5) -> 10813 | GT13: 5025 | GU13: 5994 | GV13: 7339 | GW13: 1310 | GX13: 4917 | GY13: 7206 | GZ13: 5491 | HA13: 19777 | HB13: 14578 | HC13: 16639 | HD13: 3602 | HE13: 11229 | HF13: 23007 | HG13: 4579 | HH13: 55559 | HI13: 0 | HJ13: 0
A14: =$A$34 -> KCC Area | B14: =$E$34 -> 1463740 | C14: =$F$34 -> 1154344 | D14: =$G$34 -> 705406 | E14: =$H$34 -> 558238 | F14: =$I$34 -> 138424 | G14: =$J$34 -> 8744 | H14: =$K$34 -> 448938 | I14: =$L$34 -> 259064 | J14: =$M$34 -> 12576 | K14: =$N$34 -> 24994 | L14: =$O$34 -> 76549 | M14: =$P$34 -> 75755 | N14: =$Q$34 -> 915200 | O14: =$R$34 -> 6802 | P14: =$S$34 -> 10943 | Q14: =$T$34 -> 1777 | R14: =$U$34 -> 13932 | S14: =$V$34 -> 10545 | T14: =$W$34 -> 6145 | U14: =$X$34 -> 391591 | V14: =$Y$34 -> 106805 | W14: =$Z$34 -> 1371102 | X14: =$AA$34 -> 1303558 | Y14: =$AB$34 -> 10239 | Z14: =$AC$34 -> 4685 | AA14: =$AD$34 -> 52620 | AB14: =$AE$34 -> 92638 | AC14: =$AF$34 -> 22107 | AD14: =$AG$34 -> 6266 | AE14: =$AH$34 -> 2997 | AF14: =$AI$34 -> 7520 | AG14: =$AJ$34 -> 5324 | AH14: =$AK$34 -> 47614 | AI14: =$AL$34 -> 18136 | AJ14: =$AM$34 -> 2406 | AK14: =$AN$34 -> 3381 | AL14: =$AO$34 -> 5978 | AM14: =$AP$34 -> 17713 | AN14: =$AQ$34 -> 16216 | AO14: =$AR$34 -> 11523 | AP14: =$AS$34 -> 3293 | AQ14: =$AT$34 -> 1400 | AR14: =$AU$34 -> 6701 | AS14: =$AV$34 -> 1535 | AT14: =$AW$34 -> 5166 | AU14: =$AX$34 -> 1329988 | AV14: =$AY$34 -> 1296325 | AW14: =$AZ$34 -> 5231 | AX14: =$BA$34 -> 17405 | AY14: =$BB$34 -> 10930 | AZ14: =$BC$34 -> 28 | BA14: =$BD$34 -> 69 | BB14: =$BE$34 -> 194 | BC14: =$BF$34 -> 234 | BD14: =$BG$34 -> 54 | BE14: =$BH$34 -> 145 | BF14: =$BI$34 -> 8419 | BG14: =$BJ$34 -> 46650 | BH14: =$BK$34 -> 20778 | BI14: =$BL$34 -> 25872 | BJ14: =$BM$34 -> 5130 | BK14: =$BN$34 -> 20737 | BL14: =$BO$34 -> 38226 | BM14: =$BP$34 -> 9647 | BN14: =$BQ$34 -> 4315 | BO14: =$BR$34 -> 1 | BP14: =$BS$34 -> 1329988 | BQ14: =$BT$34 -> 1669 | BR14: =$BU$34 -> 3979 | BS14: =$BV$34 -> 7718 | BT14: =$BW$34 -> 12000 | BU14: =$BX$34 -> 10618 | BV14: =$BY$34 -> 10353 | BW14: =$BZ$34 -> 20147 | BX14: =$CA$34 -> 12281 | BY14: =$CB$34 -> 20718 | BZ14: =$CC$34 -> 23437 | CA14: =$CD$34 -> 10832 | CB14: =$CE$34 -> 18228 | CC14: =$CF$34 -> 22043 | CD14: =$CG$34 -> 25990 | CE14: =$CH$34 -> 67491 | CF14: =$CI$34 -> 1410434 | CG14: =$CJ$34 -> 1346814 | CH14: =$CK$34 -> 113 | CI14: =$CL$34 -> 112 | CJ14: =$CM$34 -> 3093 | CK14: =$CN$34 -> 1190 | CL14: =$CO$34 -> 1470 | CM14: =$CP$34 -> 25553 | CN14: =$CQ$34 -> 995 | CO14: =$CR$34 -> 46 | CP14: =$CS$34 -> 1753 | CQ14: =$CT$34 -> 1506 | CR14: =$CU$34 -> 950 | CS14: =$CV$34 -> 1492 | CT14: =$CW$34 -> 16344 | CU14: =$CX$34 -> 6150 | CV14: =$CY$34 -> 31 | CW14: =$CZ$34 -> 1 | CX14: =$DA$34 -> 3 | CY14: =$DB$34 -> 1903 | CZ14: =$DC$34 -> 320 | DA14: =$DD$34 -> 595 | DB14: =$DE$34 -> 1410434 | DC14: =$DF$34 -> 1346814 | DD14: =$DG$34 -> 27276 | DE14: =$DH$34 -> 24248 | DF14: =$DI$34 -> 10185 | DG14: =$DJ$34 -> 1911 | DH14: =$DK$34 -> 1463740 | DI14: =$DL$34 -> 116407 | DJ14: =$DM$34 -> 140631 | DK14: =$DN$34 -> 1206702 | DL14: =$DO$34 -> 1463740 | DM14: =$DP$34 -> 683205 | DN14: =$DQ$34 -> 510399 | DO14: =$DR$34 -> 194931 | DP14: =$DS$34 -> 58536 | DQ14: =$DT$34 -> 16669 | DR14: =$DU$34 -> 243206 | DS14: =$DV$34 -> 112083 | DT14: =$DW$34 -> 131123 | DU14: =$DX$34 -> 4274 | DV14: =$DY$34 -> 97226 | DW14: =$DZ$34 -> 25157 | DX14: =$EA$34 -> 27120 | DY14: =$EB$34 -> 43902 | DZ14: =$EC$34 -> 8408 | EA14: =$ED$34 -> 29532 | EB14: =$EE$34 -> 53324 | EC14: =$EF$34 -> 16749 | ED14: =$EG$34 -> 1311963 | EE14: =$EH$34 -> 97464 | EF14: =$EI$34 -> 18432 | EG14: =$EJ$34 -> 35881 | EH14: =$EK$34 -> 151777 | EI14: =$EL$34 -> 3436 | EJ14: =$EM$34 -> 18826 | EK14: =$EN$34 -> 38614 | EL14: =$EO$34 -> 55706 | EM14: =$EP$34 -> 35195 | EN14: =$EQ$34 -> 0 | EO14: =$ER$34 -> 0 | EP14: =$ES$34 -> 1055397 | EQ14: =$ET$34 -> 737908 | ER14: =$EU$34 -> 149177 | ES14: =$EV$34 -> 399625 | ET14: =$EW$34 -> 114681 | EU14: =$EX$34 -> 32884 | EV14: =$EY$34 -> 41541 | EW14: =$EZ$34 -> 317489 | EX14: =$FA$34 -> 159127 | EY14: =$FB$34 -> 50767 | EZ14: =$FC$34 -> 49761 | FA14: =$FD$34 -> 37471 | FB14: =$FE$34 -> 20363 | FC14: =$FF$34 -> 688434 | FD14: =$FG$34 -> 7151 | FE14: =$FH$34 -> 610 | FF14: =$FI$34 -> 46349 | FG14: =$FJ$34 -> 3966 | FH14: =$FK$34 -> 5357 | FI14: =$FL$34 -> 66876 | FJ14: =$FM$34 -> 111960 | FK14: =$FN$34 -> 37834 | FL14: =$FO$34 -> 33912 | FM14: =$FP$34 -> 21272 | FN14: =$FQ$34 -> 34447 | FO14: =$FR$34 -> 9455 | FP14: =$FS$34 -> 44006 | FQ14: =$FT$34 -> 34981 | FR14: =$FU$34 -> 42383 | FS14: =$FV$34 -> 70363 | FT14: =$FW$34 -> 84796 | FU14: =$FX$34 -> 31620 | FV14: =$FY$34 -> 883 | FW14: =$FZ$34 -> 213 | FX14: =$GA$34 -> 79504 | FY14: =$GB$34 -> 110988 | FZ14: =$GC$34 -> 87041 | GA14: =$GD$34 -> 80621 | GB14: =$GE$34 -> 84252 | GC14: =$GF$34 -> 67451 | GD14: =$GG$34 -> 58242 | GE14: =$GH$34 -> 46284 | GF14: =$GI$34 -> 74051 | GG14: =$GJ$34 -> 41072 | GH14: =$GK$34 -> 1884 | GI14: =$GL$34 -> 63247 | GJ14: =$GM$34 -> 25917 | GK14: =$GN$34 -> 2756 | GL14: =$GO$34 -> 5991 | GM14: =$GP$34 -> 419206 | GN14: =$GQ$34 -> 35285 | GO14: =$GR$34 -> 11948 | GP14: =$GS$34 -> 77057 | GQ14: =$GT$34 -> 4071 | GR14: =$GU$34 -> 114309 | GS14: =$GV$34 -> 99394 | GT14: =$GW$34 -> 84633 | GU14: =$GX$34 -> 92759 | GV14: =$GY$34 -> 90348 | GW14: =$GZ$34 -> 33558 | GX14: =$HA$34 -> 31595 | GY14: =$HB$34 -> 76873 | GZ14: =$HC$34 -> 64965 | HA14: =$HD$34 -> 265326 | HB14: =$HE$34 -> 173165 | HC14: =$HF$34 -> 199627 | HD14: =$HG$34 -> 44992 | HE14: =$HH$34 -> 145519 | HF14: =$HI$34 -> 291211 | HG14: =$HJ$34 -> 60346 | HH14: =$HK$34 -> 663483 | HI14: =$HL$34 -> 0 | HJ14: =$HM$34 -> 0
D16: Date: | E16: 2011 | F16: 2011 | G16: 2011 | H16: 2011 | I16: 2011 | J16: 2011 | K16: 2011 | L16: 2011 | M16: 2011 | N16: 2011 | O16: 2011 | P16: 2011 | Q16: 2011 | R16: 2011 | S16: 2011 | T16: 2011 | U16: 2011 | V16: 2011 | W16: 2011 | X16: 2011 | Y16: 2011 | Z16: 2011 | AA16: 2011 | AB16: 2011 | AC16: 2011 | AD16: 2011 | AE16: 2011 | AF16: 2011 | AG16: 2011 | AH16: 2011 | AI16: 2011 | AJ16: 2011 | AK16: 2011 | AL16: 2011 | AM16: 2011 | AN16: 2011 | AO16: 2011 | AP16: 2011 | AQ16: 2011 | AR16: 2011 | AS16: 2011 | AT16: 2011 | AU16: 2011 | AV16: 2011 | AW16: 2011 | AX16: 2011 | AY16: 2011 | AZ16: 2011 | BA16: 2011 | BB16: 2011 | BC16: 2011 | BD16: 2011 | BE16: 2011 | BF16: 2011 | BG16: 2011 | BH16: 2011 | BI16: 2011 | BJ16: 2011 | BK16: 2011 | BL16: 2011 | BM16: 2011 | BN16: 2011 | BO16: 2011 | BP16: 2011 | BQ16: 2011 | BR16: 2011 | BS16: 2011 | BT16: 2011 | BU16: 2011 | BV16: 2011 | BW16: 2011 | BX16: 2011 | BY16: 2011 | BZ16: 2011 | CA16: 2011 | CB16: 2011 | CC16: 2011 | CD16: 2011 | CE16: 2011 | CF16: 2011 | CG16: 2011 | CH16: 2011 | CI16: 2011 | CJ16: 2011 | CK16: 2011 | CL16: 2011 | CM16: 2011 | CN16: 2011 | CO16: 2011 | CP16: 2011 | CQ16: 2011 | CR16: 2011 | CS16: 2011 | CT16: 2011 | CU16: 2011 | CV16: 2011 | CW16: 2011 | CX16: 2011 | CY16: 2011 | CZ16: 2011 | DA16: 2011 | DB16: 2011 | DC16: 2011 | DD16: 2011 | DE16: 2011 | DF16: 2011 | DG16: 2011 | DH16: 2011 | DI16: 2011 | DJ16: 2011 | DK16: 2011 | DL16: 2011 | DM16: 2011 | DN16: 2011 | DO16: 2011 | DP16: 2011 | DQ16: 2011 | DR16: 2011 | DS16: 2011 | DT16: 2011 | DU16: 2011 | DV16: 2011 | DW16: 2011 | DX16: 2011 | DY16: 2011 | DZ16: 2011 | EA16: 2011 | EB16: 2011 | EC16: 2011 | ED16: 2011 | EE16: 2011 | EF16: 2011 | EG16: 2011 | EH16: 2011 | EI16: 2011 | EJ16: 2011 | EK16: 2011 | EL16: 2011 | EM16: 2011 | EN16: 2011 | EO16: 2011 | EP16: 2011 | EQ16: 2001 | ER16: 2001 | ES16: 2011 | ET16: 2011 | EU16: 2011 | EV16: 2011 | EW16: 2011 | EX16: 2011 | EY16: 2011 | EZ16: 2011 | FA16: 2011 | FB16: 2011 | FC16: 2011 | FD16: 2011 | FE16: 2011 | FF16: 2011 | FG16: 2011 | FH16: 2011 | FI16: 2011 | FJ16: 2011 | FK16: 2011 | FL16: 2011 | FM16: 2011 | FN16: 2011 | FO16: 2011 | FP16: 2011 | FQ16: 2011 | FR16: 2011 | FS16: 2011 | FT16: 2011 | FU16: 2011 | FV16: 2011 | FW16: 2011 | FX16: 2011 | FY16: 2011 | FZ16: 2011 | GA16: 2011 | GB16: 2011 | GC16: 2011 | GD16: 2011 | GE16: 2011 | GF16: 2011 | GG16: 2011 | GH16: 2011 | GI16: 2011 | GJ16: 2011 | GK16: 2011 | GL16: 2011 | GM16: 2011 | GN16: 2011 | GO16: 2011 | GP16: 2011 | GQ16: 2011 | GR16: 2011 | GS16: 2011 | GT16: 2011 | GU16: 2011 | GV16: 2011 | GW16: 2011 | GX16: 2011 | GY16: 2011 | GZ16: 2011 | HA16: 2011 | HB16: 2011 | HC16: 2011 | HD16: 2011 | HE16: 2011 | HF16: 2011 | HG16: 2011 | HH16: 2011 | HI16: 2011 | HJ16: 2011 | HK16: 2011
D17: Table : | F17: QS108 | G17: QS108 | H17: QS108 | I17: QS108 | J17: QS108 | K17: QS108 | L17: QS108 | M17: QS108 | N17: QS108 | O17: QS108 | P17: QS108 | Q17: QS208 | R17: QS208 | S17: QS208 | T17: QS208 | U17: QS208 | V17: QS208 | W17: QS208 | X17: QS208 | Y17: QS208 | Z17: QS201 | AA17: QS201 | AB17: QS201 | AC17: QS201 | AD17: QS201 | AE17: QS201 | AF17: QS201 | AG17: QS201 | AH17: QS201 | AI17: QS201 | AJ17: QS201 | AK17: QS201 | AL17: QS201 | AM17: QS201 | AN17: QS201 | AO17: QS201 | AP17: QS201 | AQ17: QS201 | AR17: QS201 | AS17: QS201 | AT17: QS201 | AU17: QS201 | AV17: QS201 | AW17: QS201 | AX17: QS203 | AY17: QS203 | AZ17: QS203 | BA17: QS203 | BB17: QS203 | BC17: QS203 | BD17: QS203 | BE17: QS203 | BF17: QS203 | BG17: QS203 | BH17: QS203 | BI17: QS203 | BJ17: QS203 | BK17: QS203 | BL17: QS203 | BM17: QS203 | BN17: QS203 | BO17: QS203 | BP17: QS203 | BQ17: QS203 | BR17: QS203 | BS17: QS801 | BT17: QS801 | BU17: QS801 | BV17: QS801 | BW17: QS801 | BX17: QS801 | BY17: QS801 | BZ17: QS801 | CA17: QS801 | CB17: QS801 | CC17: QS801 | CD17: QS801 | CE17: QS803 | CF17: QS803 | CG17: QS803 | CH17: QS803 | CI17: QS204 | CJ17: QS204 | CK17: QS204 | CL17: QS204 | CM17: QS204 | CN17: QS204 | CO17: QS204 | CP17: QS204 | CQ17: QS204 | CR17: QS204 | CS17: QS204 | CT17: QS204 | CU17: QS204 | CV17: QS204 | CW17: QS204 | CX17: QS204 | CY17: QS204 | CZ17: QS204 | DA17: QS204 | DB17: QS204 | DC17: QS204 | DD17: QS204 | DE17: QS205 | DF17: QS205 | DG17: QS205 | DH17: QS205 | DI17: QS205 | DJ17: QS205 | DK17: QS303 | DL17: QS303 | DM17: QS303 | DN17: QS303 | DO17: QS302 | DP17: QS302 | DQ17: QS302 | DR17: QS302 | DS17: QS302 | DT17: QS302 | DU17: LC3302 | DV17: LC3302 | DW17: LC3302 | DX17: LC3302 | DY17: LC3302 | DZ17: LC3302 | EA17: LC3302 | EB17: LC3302 | EC17: LC3302 | ED17: LC3302 | EE17: LC3302 | EF17: LC3302 | EG17: QS301 | EH17: QS301 | EI17: QS301 | EJ17: QS301 | EK17: LC3304 | EL17: LC3304 | EM17: LC3304 | EN17: LC3304 | EO17: LC3304 | EP17: LC3304 | ES17: KS603 | ET17: KS603 | EU17: KS603 | EV17: KS603 | EW17: KS603 | EX17: KS603 | EY17: KS603 | EZ17: KS603 | FA17: KS603 | FB17: KS603 | FC17: KS603 | FD17: KS603 | FE17: KS603 | FF17: QS605 | FG17: QS605 | FH17: QS605 | FI17: QS605 | FJ17: QS605 | FK17: QS605 | FL17: QS605 | FM17: QS605 | FN17: QS605 | FO17: QS605 | FP17: QS605 | FQ17: QS605 | FR17: QS605 | FS17: QS605 | FT17: QS605 | FU17: QS605 | FV17: QS605 | FW17: QS605 | FX17: QS605 | FY17: QS605 | FZ17: QS605 | GA17: QS606 | GB17: QS606 | GC17: QS606 | GD17: QS606 | GE17: QS606 | GF17: QS606 | GG17: QS606 | GH17: QS606 | GI17: QS606 | GJ17: QS701 | GK17: QS701 | GL17: QS701 | GM17: QS701 | GN17: QS701 | GO17: QS701 | GP17: QS701 | GQ17: QS701 | GR17: QS701 | GS17: QS701 | GT17: QS701 | GU17: QS702 | GV17: QS702 | GW17: QS702 | GX17: QS702 | GY17: QS702 | GZ17: QS702 | HA17: QS702 | HB17: QS702 | HC17: QS702 | HD17: QS501 | HE17: QS501 | HF17: QS501 | HG17: QS501 | HH17: QS501 | HI17: QS501 | HJ17: QS501 | HK17: KS603
E18: Total Population | F18: 16+ population | G18: Living in a couple: Total | H18: Living in a couple: Married | I18: Living in a couple: Cohabiting (opposite-sex) | J18: Living in a couple: In a registered same-sex civil partnership or cohabiting (same-sex) | K18: Not living in a couple: Total | L18: Not living in a couple: Single (never married or never registered a same-sex civil partnership) | M18: Not living in a couple: Married or in a registered same-sex civil partnership | N18: Not living in a couple: Separated (but still legally married or still legally in a same-sex civil partnership) | O18: Not living in a couple: Divorced or formerly in a same-sex civil partnership which is now legally dissolved | P18: Not living in a couple: Widowed or surviving partner from a same-sex civil partnership | Q18: Christian | R18: Buddhist | S18: Hindu | T18: Jewish | U18: Muslim | V18: Sikh | W18: Other religion | X18: No religion | Y18: Religion not stated | Z18: White | AA18: White: English/Welsh/Scottish/Northern Irish/British | AB18: White: Irish | AC18: White: Gypsy or Irish Traveller | AD18: White: Other White | AE18: BME Non-white | AF18: Mixed/multiple ethnic groups | AG18: Mixed/multiple ethnic groups: White and Black Caribbean | AH18: Mixed/multiple ethnic groups: White and Black African | AI18: Mixed/multiple ethnic groups: White and Asian | AJ18: Mixed/multiple ethnic groups: Other Mixed | AK18: Asian/Asian British | AL18: Asian/Asian British: Indian | AM18: Asian/Asian British: Pakistani | AN18: Asian/Asian British: Bangladeshi | AO18: Asian/Asian British: Chinese | AP18: Asian/Asian British: Other Asian | AQ18: Black/African/Caribbean/Black British | AR18: Black/African/Caribbean/Black British: African | AS18: Black/African/Caribbean/Black British: Caribbean | AT18: Black/African/Caribbean/Black British: Other Black | AU18: Other ethnic group | AV18: Other ethnic group: Arab | AW18: Other ethnic group: Any other ethnic group | AX18: United Kingdom Total | AY18: England | AZ18: Northern Ireland | BA18: Scotland | BB18: Wales | BC18: GB Other | BD18: UK Other | BE18: Guernsey | BF18: Jersey | BG18: Channel Islands (other) | BH18: Isle of Man | BI18: Ireland | BJ18: Other EU Total | BK18: Members in March 2001 | BL18: Accession Countries (April 2001 to March 2011) | BM18: Rest of Europe Total | BN18: Africa Total | BO18: Middle East & Asia | BP18: The Americas & caribbean Total | BQ18: Antarctica & Oceania Total | BR18: Other | BS18: Born in the UK | BT18: Arrived before 1941 | BU18: Arrived 1941-1950 | BV18: Arrived 1951-1960 | BW18: Arrived 1961-1970 | BX18: Arrived 1971-1980 | BY18: Arrived 1981-1990 | BZ18: Arrived 1991-2000 | CA18: Arrived 2001-2003 | CB18: Arrived 2004-2006 | CC18: Arrived 2007-2009 | CD18: Arrived 2010-2011 | CE18: Less than 2 years | CF18: More than 2 years and less than 5 years | CG18: Mare than 5 years and less than 10 years | CH18: 10 years or more | CI18: All usual residents aged 3 and over | CJ18: English (English or Welsh if in Wales) | CK18: Welsh/Cymraeg (in England only) | CL18: Other UK language: Total | CM18: French | CN18: Portuguese | CO18: Spanish | CP18: Other European Language (EU): Total | CQ18: Other European Language (non EU): Total | CR18: Other European Language (non-national): Total | CS18: Russian | CT18: Turkish | CU18: Arabic | CV18: West/Central Asian Language: Total | CW18: South Asian Language: Total | CX18: East Asian Language: Total | CY18: Oceanic/Australian language (any) | CZ18: North/South American language (any) | DA18: Caribbean Creole: Total | DB18: African Language: Total | DC18: Other Languages: Total | DD18: Sign Language: Total | DE18: All categories: Proficiency in English | DF18: Main language is English (English or Welsh in Wales) | DG18: Main language is not English (English or Welsh in Wales): Can speak English very well | DH18: Main language is not English (English or Welsh in Wales): Can speak English well | DI18: Main language is not English (English or Welsh in Wales): Cannot speak English well | DJ18: Main language is not English (English or Welsh in Wales): Cannot speak English | DK18: All categories: Long-term health problem or disability | DL18: Day-to-day activities limited a lot | DM18: Day-to-day activities limited a little | DN18: Day-to-day activities not limited | DO18: All categories: General health | DP18: Very good health | DQ18: Good health | DR18: Fair health | DS18: Bad health | DT18: Very bad health | DU18: Long term health problem or disability_All people | DV18: Long term health problem or disability_Males | DW18: Long term health problem or disability_Females | DX18: Long term health problem or disability - 50-64 | DY18: Long term health problem or disability - 65-84 | DZ18: Long term health problem or disability - 85+ | EA18: Long term health problem or disability - 50-64 Males | EB18: Long term health problem or disability - 65-84 Males | EC18: Long term health problem or disability - 85+ Males | ED18: Long term health problem or disability - 50-64 Females | EE18: Long term health problem or disability - 65-84 Females | EF18: Long term health problem or disability - 85+ Females | EG18: People providing no unpaid care | EH18: People providing unpaid care: 1 to 19 hours a week | EI18: People providing unpaid care: 20 to 49 hours a week | EJ18: People providing unpaid care : 50 or more hours a week | EK18: Unpaid care | EL18: 0-15 | EM18: 16-34 | EN18: 35-49 | EO18: 50-64 | EP18: 65+ | ES18: All usual residents aged 16 to 74 in employment the week before the census | ET18: Total Economically Active | EU18: Part-time | EV18: Full-time | EW18: Self-Employed | EX18: Full-time Student | EY18: Unemployed | EZ18: Total Economically Inactive | FA18: Retired | FB18: Student | FC18: Looking after home/ family | FD18: Permanently sick/disabled | FE18: Other | FF18: All categories: Industry | FG18: A Agriculture, forestry and fishing | FH18: B Mining and quarrying | FI18: C Manufacturing | FJ18: D Electricity, gas, steam and air conditioning supply | FK18: E Water supply, sewerage, waste management and remediation activities | FL18: F Construction | FM18: G Wholesale and retail trade; repair of motor vehicles and motor cycles | FN18: H Transport and storage | FO18: I Accommodation and food service activities | FP18: J Information and communication | FQ18: K Financial and insurance activities | FR18: L Real estate activities | FS18: M Professional, scientific and technical activities | FT18: N Administrative and support service activities | FU18: O Public administration and defence; compulsory social security | FV18: P Education | FW18: Q Human health and social work activities | FX18: R,S Arts, entertainment and recreation; other service activities | FY18: T Activities of households as employers; undifferentiated goods - and services - producing activities of households for own use | FZ18: U Activities of extraterritorial organisations and bodies | GA18: Managers and Senior Officials | GB18: Professional Occupations | GC18: Associate Professional and Technical Occupations | GD18: Administrative and Secretarial Occupations | GE18: Skilled Trades Occupations | GF18: Personal Service Occupations | GG18: Sales and Customer Service Occupations | GH18: Process; Plant and Machine Operatives | GI18: Elementary Occupations | GJ18: Work mainly at or from home | GK18: Underground, metro, light rail, tram | GL18: Train | GM18: Bus, minibus or coach | GN18: Taxi | GO18: Motorcycle, scooter or moped | GP18: Driving a car or van | GQ18: Passenger in a car or van | GR18: Bicycle | GS18: On foot | GT18: Other method of travel to work | GU18: Less than 2km | GV18: 2km to less than 5km | GW18: 5km to less than 10km | GX18: 10km to less than 20 km | GY18: 20km to less than 40km | GZ18: 40km to less than 60km | HA18: 60km and over | HB18: Working at or from home | HC18: Other | HD18: No qualifications | HE18: Level 1 qualifications | HF18: Level 2 qualifications | HG18: Apprenticeship | HH18: Level 3 qualifications | HI18: Level 4 qualifications and above | HJ18: Other qualifications | HK18: All usual residents aged 16-74, economically active, in employment
A19: District | B19: Code | C19: IndexNo | D19: Spacer
A20: Ashford | B20: UB | C20: 1 | E20: 117956 | F20: 92512 | G20: 59329 | H20: 46996 | I20: 11649 | J20: 684 | K20: 33183 | L20: 18814 | M20: 977 | N20: 1967 | O20: 5711 | P20: 5714 | Q20: 74253 | R20: 803 | S20: 1282 | T20: 116 | U20: 1019 | V20: 95 | W20: 432 | X20: 30984 | Y20: 8972 | Z20: 110520 | AA20: 105498 | AB20: 753 | AC20: 531 | AD20: 3738 | AE20: 7436 | AF20: 1682 | AG20: 544 | AH20: 235 | AI20: 507 | AJ20: 396 | AK20: 3991 | AL20: 958 | AM20: 161 | AN20: 185 | AO20: 431 | AP20: 2256 | AQ20: 1375 | AR20: 948 | AS20: 327 | AT20: 100 | AU20: 388 | AV20: 87 | AW20: 301 | AX20: 106993 | AY20: 104391 | AZ20: 367 | BA20: 1393 | BB20: 839 | BC20: 1 | BD20: 2 | BE20: 11 | BF20: 21 | BG20: 3 | BH20: 12 | BI20: 620 | BJ20: 3348 | BK20: 1680 | BL20: 1668 | BM20: 375 | BN20: 1680 | BO20: 3848 | BP20: 700 | BQ20: 345 | BR20: 0 | BS20: 106993 | BT20: 146 | BU20: 314 | BV20: 565 | BW20: 881 | BX20: 767 | BY20: 745 | BZ20: 1581 | CA20: 1177 | CB20: 1994 | CC20: 1915 | CD20: 878 | CE20: 1374 | CF20: 2065 | CG20: 2426 | CH20: 5098 | CI20: 113353 | CJ20: 107842 | CK20: 12 | CL20: 8 | CM20: 326 | CN20: 79 | CO20: 82 | CP20: 1658 | CQ20: 86 | CR20: 5 | CS20: 84 | CT20: 98 | CU20: 68 | CV20: 116 | CW20: 2224 | CX20: 407 | CY20: 1 | CZ20: 1 | DA20: 1 | DB20: 201 | DC20: 15 | DD20: 39 | DE20: 113353 | DF20: 107842 | DG20: 2539 | DH20: 2130 | DI20: 704 | DJ20: 138 | DK20: 117956 | DL20: 8416 | DM20: 10669 | DN20: 98871 | DO20: 117956 | DP20: 56128 | DQ20: 41385 | DR20: 15027 | DS20: 4163 | DT20: 1253 | DU20: 18381 | DV20: 8347 | DW20: 10034 | DX20: 4262 | DY20: 7177 | DZ20: 1944 | EA20: 2010 | EB20: 3202 | EC20: 649 | ED20: 2252 | EE20: 3975 | EF20: 1295 | EG20: 106137 | EH20: 7686 | EI20: 1428 | EJ20: 2705 | EK20: 11819 | EL20: 262 | EM20: 1363 | EN20: 3150 | EO20: 4294 | EP20: 2750 | ES20: 84252 | ET20: 61189 | EU20: 12334 | EV20: 33223 | EW20: 10002 | EX20: 2572 | EY20: 3058 | EZ20: 23063 | FA20: 12141 | FB20: 2771 | FC20: 4114 | FD20: 2626 | FE20: 1411 | FF20: 57546 | FG20: 951 | FH20: 47 | FI20: 4986 | FJ20: 382 | FK20: 432 | FL20: 5930 | FM20: 9845 | FN20: 3070 | FO20: 2955 | FP20: 1710 | FQ20: 1935 | FR20: 650 | FS20: 3519 | FT20: 3155 | FU20: 2891 | FV20: 5002 | FW20: 7255 | FX20: 2725 | FY20: 95 | FZ20: 11 | GA20: 7025 | GB20: 9056 | GC20: 6704 | GD20: 6261 | GE20: 7600 | GF20: 5283 | GG20: 5185 | GH20: 4179 | GI20: 6253 | GJ20: 3995 | GK20: 95 | GL20: 3755 | GM20: 1507 | GN20: 151 | GO20: 377 | GP20: 36833 | GQ20: 3134 | GR20: 1465 | GS20: 5920 | GT20: 314 | GU20: 9451 | GV20: 10813 | GW20: 5025 | GX20: 5994 | GY20: 7339 | GZ20: 1310 | HA20: 4917 | HB20: 7206 | HC20: 5491 | HD20: 19777 | HE20: 14578 | HF20: 16639 | HG20: 3602 | HH20: 11229 | HI20: 23007 | HJ20: 4579 | HK20: 55559
A21: Canterbury | B21: UC | C21: 2 | E21: 151145 | F21: 117822 | G21: 65777 | H21: 52274 | I21: 12564 | J21: 939 | K21: 52045 | L21: 33098 | M21: 1273 | N21: 2189 | O21: 7388 | P21: 8097 | Q21: 91122 | R21: 880 | S21: 1055 | T21: 267 | U21: 1838 | V21: 245 | W21: 760 | X21: 43117 | Y21: 11861 | Z21: 140620 | AA21: 132269 | AB21: 1260 | AC21: 374 | AD21: 6717 | AE21: 10525 | AF21: 2551 | AG21: 680 | AH21: 305 | AI21: 897 | AJ21: 669 | AK21: 5135 | AL21: 1448 | AM21: 306 | AN21: 251 | AO21: 1436 | AP21: 1694 | AQ21: 1937 | AR21: 1338 | AS21: 437 | AT21: 162 | AU21: 902 | AV21: 405 | AW21: 497 | AX21: 134587 | AY21: 130414 | AZ21: 797 | BA21: 2160 | BB21: 1200 | BC21: 4 | BD21: 12 | BE21: 27 | BF21: 35 | BG21: 9 | BH21: 16 | BI21: 964 | BJ21: 5732 | BK21: 3311 | BL21: 2421 | BM21: 848 | BN21: 2305 | BO21: 4675 | BP21: 1442 | BQ21: 505 | BR21: 0 | BS21: 134587 | BT21: 185 | BU21: 467 | BV21: 802 | BW21: 1028 | BX21: 1012 | BY21: 1056 | BZ21: 2344 | CA21: 1451 | CB21: 2074 | CC21: 3521 | CD21: 2618 | CE21: 3952 | CF21: 2821 | CG21: 2793 | CH21: 6992 | CI21: 146601 | CJ21: 138737 | CK21: 17 | CL21: 22 | CM21: 625 | CN21: 158 | CO21: 277 | CP21: 2772 | CQ21: 177 | CR21: 0 | CS21: 229 | CT21: 222 | CU21: 288 | CV21: 201 | CW21: 1077 | CX21: 1491 | CY21: 16 | CZ21: 0 | DA21: 0 | DB21: 189 | DC21: 40 | DD21: 63 | DE21: 146601 | DF21: 138737 | DG21: 4229 | DH21: 2892 | DI21: 648 | DJ21: 95 | DK21: 151145 | DL21: 12427 | DM21: 14891 | DN21: 123827 | DO21: 151145 | DP21: 70764 | DQ21: 52338 | DR21: 20211 | DS21: 6133 | DT21: 1699 | DU21: 25356 | DV21: 11397 | DW21: 13959 | DX21: 5534 | DY21: 10448 | DZ21: 3066 | EA21: 2612 | EB21: 4642 | EC21: 1026 | ED21: 2922 | EE21: 5806 | EF21: 2040 | EG21: 135562 | EH21: 10089 | EI21: 1815 | EJ21: 3679 | EK21: 15583 | EL21: 331 | EM21: 2016 | EN21: 3647 | EO21: 5700 | EP21: 3889 | ES21: 111867 | ET21: 71322 | EU21: 14268 | EV21: 34938 | EW21: 10787 | EX21: 7919 | EY21: 3410 | EZ21: 40545 | FA21: 16830 | FB21: 13955 | FC21: 4037 | FD21: 3717 | FE21: 2006 | FF21: 65620 | FG21: 545 | FH21: 28 | FI21: 3341 | FJ21: 209 | FK21: 350 | FL21: 5415 | FM21: 11063 | FN21: 2546 | FO21: 4282 | FP21: 1734 | FQ21: 1725 | FR21: 778 | FS21: 3810 | FT21: 2569 | FU21: 3725 | FV21: 10669 | FW21: 9546 | FX21: 3207 | FY21: 59 | FZ21: 19 | GA21: 6964 | GB21: 13470 | GC21: 7768 | GD21: 6449 | GE21: 7446 | GF21: 6692 | GG21: 6144 | GH21: 3317 | GI21: 7370 | GJ21: 4165 | GK21: 186 | GL21: 3384 | GM21: 3279 | GN21: 196 | GO21: 446 | GP21: 38249 | GQ21: 3201 | GR21: 1803 | GS21: 10363 | GT21: 348 | GU21: 13863 | GV21: 8069 | GW21: 9812 | GX21: 7095 | GY21: 6718 | GZ21: 1922 | HA21: 4957 | HB21: 7592 | HC21: 5592 | HD21: 25778 | HE21: 14824 | HF21: 18056 | HG21: 4212 | HH21: 22117 | HI21: 34385 | HJ21: 6599 | HK21: 59993
A22: Dartford | B22: UD | C22: 3 | E22: 97365 | F22: 76368 | G22: 45750 | H22: 35152 | I22: 10032 | J22: 566 | K22: 30618 | L22: 18920 | M22: 943 | N22: 1764 | O22: 4746 | P22: 4245 | Q22: 59045 | R22: 382 | S22: 1547 | T22: 86 | U22: 1566 | V22: 1543 | W22: 319 | X22: 26486 | Y22: 6391 | Z22: 85070 | AA22: 80466 | AB22: 767 | AC22: 244 | AD22: 3593 | AE22: 12295 | AF22: 2161 | AG22: 620 | AH22: 346 | AI22: 693 | AJ22: 502 | AK22: 5799 | AL22: 2670 | AM22: 179 | AN22: 431 | AO22: 538 | AP22: 1981 | AQ22: 3578 | AR22: 2814 | AS22: 497 | AT22: 267 | AU22: 757 | AV22: 179 | AW22: 578 | AX22: 86384 | AY22: 84966 | AZ22: 245 | BA22: 701 | BB22: 455 | BC22: 3 | BD22: 14 | BE22: 5 | BF22: 5 | BG22: 0 | BH22: 4 | BI22: 636 | BJ22: 3174 | BK22: 1030 | BL22: 2144 | BM22: 344 | BN22: 2728 | BO22: 3318 | BP22: 581 | BQ22: 186 | BR22: 0 | BS22: 86384 | BT22: 54 | BU22: 231 | BV22: 461 | BW22: 943 | BX22: 938 | BY22: 939 | BZ22: 1715 | CA22: 1322 | CB22: 1865 | CC22: 1811 | CD22: 702 | CE22: 1228 | CF22: 1715 | CG22: 2653 | CH22: 5385 | CI22: 93198 | CJ22: 87855 | CK22: 6 | CL22: 5 | CM22: 169 | CN22: 94 | CO22: 91 | CP22: 2047 | CQ22: 67 | CR22: 0 | CS22: 189 | CT22: 136 | CU22: 88 | CV22: 97 | CW22: 1423 | CX22: 517 | CY22: 0 | CZ22: 0 | DA22: 2 | DB22: 318 | DC22: 66 | DD22: 28 | DE22: 93198 | DF22: 87855 | DG22: 2274 | DH22: 2066 | DI22: 856 | DJ22: 147 | DK22: 97365 | DL22: 6621 | DM22: 8114 | DN22: 82630 | DO22: 97365 | DP22: 47273 | DQ22: 33941 | DR22: 11837 | DS22: 3314 | DT22: 1000 | DU22: 13919 | DV22: 6521 | DW22: 7398 | DX22: 4264 | DY22: 5376 | DZ22: 1209 | EA22: 1568 | EB22: 2467 | EC22: 430 | ED22: 1646 | EE22: 2909 | EF22: 779 | EG22: 88146 | EH22: 5927 | EI22: 1126 | EJ22: 2166 | EK22: 9219 | EL22: 205 | EM22: 1338 | EN22: 2718 | EO22: 3188 | EP22: 1770 | ES22: 70488 | ET22: 53184 | EU22: 9765 | EV22: 31440 | EW22: 6915 | EX22: 1965 | EY22: 3099 | EZ22: 17304 | FA22: 8359 | FB22: 2468 | FC22: 3131 | FD22: 2098 | FE22: 1248 | FF22: 49611 | FG22: 106 | FH22: 44 | FI22: 3202 | FJ22: 252 | FK22: 518 | FL22: 5337 | FM22: 8721 | FN22: 3285 | FO22: 2084 | FP22: 1747 | FQ22: 2922 | FR22: 733 | FS22: 3005 | FT22: 2515 | FU22: 3041 | FV22: 4041 | FW22: 5852 | FX22: 2149 | FY22: 44 | FZ22: 13 | GA22: 5124 | GB22: 7220 | GC22: 6153 | GD22: 7269 | GE22: 6242 | GF22: 4415 | GG22: 4526 | GH22: 3710 | GI22: 4952 | GJ22: 1786 | GK22: 362 | GL22: 8537 | GM22: 2563 | GN22: 327 | GO22: 691 | GP22: 28785 | GQ22: 2184 | GR22: 535 | GS22: 3609 | GT22: 232 | GU22: 6564 | GV22: 8033 | GW22: 7190 | GX22: 6864 | GY22: 10863 | GZ22: 632 | HA22: 762 | HB22: 3809 | HC22: 4894 | HD22: 16334 | HE22: 13410 | HF22: 14036 | HG22: 3310 | HH22: 8930 | HI22: 17053 | HJ22: 4269 | HK22: 48120
A23: Dover | B23: UE | C23: 4 | E23: 111674 | F23: 89540 | G23: 54254 | H23: 42790 | I23: 10714 | J23: 750 | K23: 35286 | L23: 19058 | M23: 867 | N23: 2078 | O23: 6686 | P23: 6597 | Q23: 71541 | R23: 523 | S23: 682 | T23: 97 | U23: 521 | V23: 50 | W23: 525 | X23: 29047 | Y23: 8688 | Z23: 107966 | AA23: 103848 | AB23: 572 | AC23: 234 | AD23: 3312 | AE23: 3708 | AF23: 1029 | AG23: 281 | AH23: 133 | AI23: 360 | AJ23: 255 | AK23: 2031 | AL23: 397 | AM23: 40 | AN23: 151 | AO23: 274 | AP23: 1169 | AQ23: 386 | AR23: 265 | AS23: 85 | AT23: 36 | AU23: 262 | AV23: 65 | AW23: 197 | AX23: 103507 | AY23: 100109 | AZ23: 462 | BA23: 1745 | BB23: 1185 | BC23: 3 | BD23: 3 | BE23: 25 | BF23: 21 | BG23: 8 | BH23: 16 | BI23: 488 | BJ23: 3383 | BK23: 1709 | BL23: 1674 | BM23: 254 | BN23: 854 | BO23: 2135 | BP23: 739 | BQ23: 244 | BR23: 0 | BS23: 103507 | BT23: 150 | BU23: 325 | BV23: 543 | BW23: 801 | BX23: 705 | BY23: 545 | BZ23: 1200 | CA23: 587 | CB23: 1342 | CC23: 1500 | CD23: 469 | CE23: 1052 | CF23: 1279 | CG23: 1496 | CH23: 4340 | CI23: 107932 | CJ23: 104285 | CK23: 9 | CL23: 7 | CM23: 242 | CN23: 50 | CO23: 77 | CP23: 1584 | CQ23: 46 | CR23: 0 | CS23: 121 | CT23: 61 | CU23: 57 | CV23: 88 | CW23: 898 | CX23: 293 | CY23: 1 | CZ23: 0 | DA23: 0 | DB23: 57 | DC23: 18 | DD23: 38 | DE23: 107932 | DF23: 104285 | DG23: 1450 | DH23: 1450 | DI23: 625 | DJ23: 122 | DK23: 111674 | DL23: 10853 | DM23: 12404 | DN23: 88417 | DO23: 111674 | DP23: 48433 | DQ23: 39477 | DR23: 16745 | DS23: 5538 | DT23: 1481 | DU23: 21913 | DV23: 10409 | DW23: 11504 | DX23: 4265 | DY23: 8922 | DZ23: 2112 | EA23: 2711 | EB23: 4165 | EC23: 715 | ED23: 2718 | EE23: 4757 | EF23: 1397 | EG23: 99020 | EH23: 7892 | EI23: 1579 | EJ23: 3183 | EK23: 12654 | EL23: 292 | EM23: 1509 | EN23: 3076 | EO23: 4727 | EP23: 3050 | ES23: 80786 | ET23: 54478 | EU23: 11864 | EV23: 29124 | EW23: 7931 | EX23: 1952 | EY23: 3607 | EZ23: 26308 | FA23: 14215 | FB23: 3208 | FC23: 3578 | FD23: 3596 | FE23: 1711 | FF23: 50396 | FG23: 641 | FH23: 42 | FI23: 2951 | FJ23: 211 | FK23: 328 | FL23: 4241 | FM23: 7241 | FN23: 5014 | FO23: 2718 | FP23: 826 | FQ23: 1209 | FR23: 504 | FS23: 2714 | FT23: 2565 | FU23: 4444 | FV23: 5202 | FW23: 7179 | FX23: 2297 | FY23: 56 | FZ23: 13 | GA23: 4949 | GB23: 7228 | GC23: 5911 | GD23: 5596 | GE23: 6197 | GF23: 6463 | GG23: 4347 | GH23: 3970 | GI23: 5735 | GJ23: 2685 | GK23: 89 | GL23: 1833 | GM23: 1830 | GN23: 245 | GO23: 439 | GP23: 32435 | GQ23: 3100 | GR23: 1086 | GS23: 6227 | GT23: 427 | GU23: 9500 | GV23: 6126 | GW23: 5906 | GX23: 9853 | GY23: 5430 | GZ23: 954 | HA23: 2755 | HB23: 5191 | HC23: 4681 | HD23: 22885 | HE23: 13376 | HF23: 15941 | HG23: 3371 | HH23: 11049 | HI23: 20071 | HJ23: 4689 | HK23: 48919
